Workbook

Sheet Seizoen 2009-2010
B1: Competitie | M1: Wedstrijden
U2: Thuis | Z2: Uit
B3: Speler | C3: Aanwezig | D3: Matchen | E3: Afvaller | F3: Forfait | G3: Doelpunten | H3: Gem doelp. | I3: % aandeel | J3: Geel | K3: Rood | M3: Datum | N3: Wedstrijd | O3: Winst | P3: Gelijk | Q3: Verlies | R3: Voor | S3: Tegen | T3: DS | U3: Winst | V3: Gelijk | W3: Verlies | X3: Voor | Y3: Tegen | Z3: Winst | AA3: Gelijk | AB3: Verlies | AC3: Voor | AD3: Tegen
B4: De Decker Guy | C4: =SUM(D4:F4) -> 16 | D4: 16 | E4: 0 | F4: 0 | G4: 0 | H4: =G4/D4 -> 0 | I4: =$G4/$G$15 -> 0 | J4: 0 | K4: 0 | M4: 2009-09-17 | N4: De Cupmaten - Spinpedes B | O4: =U4+Z4 -> 0 | P4: =V4+AA4 -> 0 | Q4: =W4+AB4 -> 1 | R4: =X4+AC4 -> 0 | S4: =Y4+AD4 -> 10 | T4: =R4-S4 -> -10 | U4: 0 | V4: 0 | W4: 1 | X4: 0 | Y4: 10 | Z4: 0 | AA4: 0 | AB4: 0 | AC4: 0 | AD4: 0
B5: Lenaerts Jaan | C5: =SUM(D5:F5) -> 15 | D5: 15 | E5: 0 | F5: 0 | G5: 0 | H5: =G5/D5 -> 0 | I5: =$G5/$G$15 -> 0 | J5: 0 | K5: 0 | M5: 2009-09-23 | N5: De Waterput - De Cupmaten | O5: =U5+Z5 -> 0 | P5: =V5+AA5 -> 0 | Q5: =W5+AB5 -> 1 | R5: =X5+AC5 -> 3 | S5: =Y5+AD5 -> 12 | T5: =R5-S5 -> -9 | U5: 0 | V5: 0 | W5: 0 | X5: 0 | Y5: 0 | Z5: 0 | AA5: 0 | AB5: 1 | AC5: 3 | AD5: 12
B6: De Decker Koen | C6: 13 | D6: 13 | E6: 0 | F6: 0 | G6: 4 | H6: 0.3076923077 | I6: 0.05555555556 | J6: 0 | K6: 0 | M6: 2009-10-01 | N6: De Cupmaten - Boomerangs B | O6: 1 | P6: 0 | Q6: 0 | R6: 6 | S6: 2 | T6: 4 | U6: 1 | V6: 0 | W6: 0 | X6: 6 | Y6: 2 | Z6: 0 | AA6: 0 | AB6: 0 | AC6: 0 | AD6: 0
B7: Van Gils Bart | C7: 15 | D7: 15 | E7: 0 | F7: 0 | G7: 15 | H7: 1 | I7: 0.2083333333 | J7: 1 | K7: 1 | M7: 2009-10-05 | N7: Het Kafeeke - De Cupmaten (BK) | O7: 0 | P7: 0 | Q7: 1 | R7: 3 | S7: 6 | T7: -3 | U7: 0 | V7: 0 | W7: 0 | X7: 0 | Y7: 0 | Z7: 0 | AA7: 0 | AB7: 1 | AC7: 3 | AD7: 6
B8: Vajda Dierckx Davy | C8: 12 | D8: 12 | E8: 0 | F8: 0 | G8: 5 | H8: 0.4166666667 | I8: 0.06944444444 | J8: 0 | K8: 0 | M8: 2009-10-15 | N8: De Cupmaten - Boost (BK) | O8: 0 | P8: 0 | Q8: 1 | R8: 2 | S8: 7 | T8: -5 | U8: 0 | V8: 0 | W8: 1 | X8: 2 | Y8: 7 | Z8: 0 | AA8: 0 | AB8: 0 | AC8: 0 | AD8: 0
B9: De Decker Hans | C9: 19 | D9: 19 | E9: 0 | F9: 0 | G9: 12 | H9: 0.6315789474 | I9: 0.1666666667 | J9: 0 | K9: 0 | M9: 2009-10-19 | N9: Wollewei - De Cupmaten | O9: 0 | P9: 0 | Q9: 1 | R9: 3 | S9: 9 | T9: -6 | U9: 0 | V9: 0 | W9: 0 | X9: 0 | Y9: 0 | Z9: 0 | AA9: 0 | AB9: 1 | AC9: 3 | AD9: 9
B10: Broeders Martijn | C10: 4 | D10: 4 | E10: 0 | F10: 0 | G10: 1 | H10: 0.25 | I10: 0.01388888889 | J10: 0 | K10: 0 | M10: 2009-10-29 | N10: De Cupmaten - De Plekkers (JK) | O10: 0 | P10: 0 | Q10: 1 | R10: 1 | S10: 12 | T10: -11 | U10: 0 | V10: 0 | W10: 1 | X10: 1 | Y10: 12 | Z10: 0 | AA10: 0 | AB10: 0 | AC10: 0 | AD10: 0
B11: Van Dijck Vincent | C11: 15 | D11: 14 | E11: 1 | F11: 0 | G11: 2 | H11: 0.1428571429 | I11: 0.02777777778 | J11: 0 | K11: 0 | M11: 2009-11-12 | N11: De Cupmaten – KDS. Turnhout | O11: 0 | P11: 0 | Q11: 1 | R11: 2 | S11: 3 | T11: -1 | U11: 0 | V11: 0 | W11: 1 | X11: 2 | Y11: 3 | Z11: 0 | AA11: 0 | AB11: 0 | AC11: 0 | AD11: 0
B12: Westhof Jan | C12: 19 | D12: 18 | E12: 1 | F12: 0 | G12: 11 | H12: 0.6111111111 | I12: 0.1527777778 | J12: 0 | K12: 0 | M12: 2009-11-16 | N12: Ministerie - De Cupmaten | O12: 0 | P12: 0 | Q12: 1 | R12: 3 | S12: 10 | T12: -7 | U12: 0 | V12: 0 | W12: 0 | X12: 0 | Y12: 0 | Z12: 0 | AA12: 0 | AB12: 1 | AC12: 3 | AD12: 10
B13: Dom Steven | C13: 20 | D13: 19 | E13: 1 | F13: 0 | G13: 22 | H13: 1.157894737 | I13: 0.3055555556 | J13: 3 | K13: 0 | M13: 2009-11-30 | N13: Tugas - De Cupmaten | O13: 0 | P13: 0 | Q13: 1 | R13: 3 | S13: 7 | T13: -4 | U13: 0 | V13: 0 | W13: 0 | X13: 0 | Y13: 0 | Z13: 0 | AA13: 0 | AB13: 1 | AC13: 3 | AD13: 7
M14: 2009-12-07 | N14: Turnhout 86 - De Cupmaten | O14: 0 | P14: 0 | Q14: 1 | R14: 4 | S14: 6 | T14: -2 | U14: 0 | V14: 0 | W14: 0 | X14: 0 | Y14: 0 | Z14: 0 | AA14: 0 | AB14: 1 | AC14: 4 | AD14: 6
D15: 20 | G15: =SUM(G4:G13) -> 72 | H15: =G15/D15 -> 3.6 | J15: =SUM(J4:J14) -> 4 | K15: =SUM(K4:K14) -> 1 | M15: 2009-12-10 | N15: De Cupmaten – Desportivo | O15: 0 | P15: 0 | Q15: 1 | R15: 1 | S15: 5 | T15: -4 | U15: 0 | V15: 0 | W15: 1 | X15: 1 | Y15: 5 | Z15: 0 | AA15: 0 | AB15: 0 | AC15: 0 | AD15: 0
M16: 2009-12-17 | N16: De Cupmaten – P&V Turnhout | O16: 0 | P16: 0 | Q16: 1 | R16: 3 | S16: 5 | T16: -2 | U16: 0 | V16: 0 | W16: 1 | X16: 3 | Y16: 5 | Z16: 0 | AA16: 0 | AB16: 0 | AC16: 0 | AD16: 0
B17: Beker | M17: 2010-01-14 | N17: De Cupmaten - Tugas | O17: 0 | P17: 0 | Q17: 1 | R17: 3 | S17: 5 | T17: -2 | U17: 0 | V17: 0 | W17: 1 | X17: 3 | Y17: 5 | Z17: 0 | AA17: 0 | AB17: 0 | AC17: 0 | AD17: 0
M18: 2010-01-21 | N18: Spinpedes B - De Cupmaten | O18: 1 | P18: 0 | Q18: 0 | R18: 5 | S18: 3 | T18: 2 | U18: 0 | V18: 0 | W18: 0 | X18: 0 | Y18: 0 | Z18: 1 | AA18: 0 | AB18: 0 | AC18: 5 | AD18: 3
B19: Speler | C19: Aanwezig | D19: Matchen | E19: Afvaller | F19: Forfait | G19: Doelpunten | H19: Gem doelp. | I19: % aandeel | J19: Geel | K19: Rood | M19: 2010-02-04 | N19: De Cupmaten – De Waterput | O19: 0 | P19: 0 | Q19: 1 | R19: 4 | S19: 8 | T19: -4 | U19: 0 | V19: 0 | W19: 1 | X19: 4 | Y19: 8 | Z19: 0 | AA19: 0 | AB19: 0 | AC19: 0 | AD19: 0
B20: De Decker Guy | C20: =SUM(D20:F20) -> 3 | D20: 3 | E20: 0 | F20: 0 | G20: 0 | H20: =G20/D20 -> 0 | I20: =$G20/$G$31 -> 0 | J20: 0 | K20: 0 | M20: 2010-02-18 | N20: De Cupmaten - Wollewei | O20: 0 | P20: 1 | Q20: 0 | R20: 3 | S20: 3 | T20: 0 | U20: 0 | V20: 1 | W20: 0 | X20: 3 | Y20: 3 | Z20: 0 | AA20: 0 | AB20: 0 | AC20: 0 | AD20: 0
B21: Lenaerts Jaan | C21: =SUM(D21:F21) -> 3 | D21: 3 | E21: 0 | F21: 0 | G21: 0 | H21: =G21/D21 -> 0 | I21: =$G21/$G$31 -> 0 | J21: 0 | K21: 0 | M21: 2010-03-03 | N21: Desportivo - De Cupmaten | O21: 0 | P21: 0 | Q21: 1 | R21: 1 | S21: 8 | T21: -7 | U21: 0 | V21: 0 | W21: 0 | X21: 0 | Y21: 0 | Z21: 0 | AA21: 0 | AB21: 1 | AC21: 1 | AD21: 8
B22: De Decker Koen | C22: 2 | D22: 2 | E22: 0 | F22: 0 | G22: 0 | H22: 0 | I22: 0 | J22: 0 | K22: 0 | M22: 2010-03-10 | N22: P&V Turnhout- De Cupmaten | O22: 0 | P22: 1 | Q22: 0 | R22: 6 | S22: 6 | T22: 0 | U22: 0 | V22: 0 | W22: 0 | X22: 0 | Y22: 0 | Z22: 0 | AA22: 1 | AB22: 0 | AC22: 6 | AD22: 6
B23: Van Gils Bart | C23: 3 | D23: 3 | E23: 0 | F23: 0 | G23: 1 | H23: 0.3333333333 | I23: 0.1666666667 | J23: 0 | K23: 0 | M23: 2010-03-18 | N23: De Cupmaten – Ministerie | O23: 0 | P23: 0 | Q23: 1 | R23: 1 | S23: 5 | T23: -4 | U23: 0 | V23: 0 | W23: 1 | X23: 1 | Y23: 5 | Z23: 0 | AA23: 0 | AB23: 0 | AC23: 0 | AD23: 0
B24: Vajda Dierckx Davy | C24: 2 | D24: 2 | E24: 0 | F24: 0 | G24: 0 | H24: 0 | I24: 0 | J24: 0 | K24: 0 | M24: 2010-03-24 | N24: KDS. Turnhout- De Cupmaten | O24: 1 | P24: 0 | Q24: 0 | R24: 7 | S24: 3 | T24: 4 | U24: 0 | V24: 0 | W24: 0 | X24: 0 | Y24: 0 | Z24: 1 | AA24: 0 | AB24: 0 | AC24: 7 | AD24: 3
B25: De Decker Hans | C25: 3 | D25: 3 | E25: 0 | F25: 0 | G25: 3 | H25: 1 | I25: 0.5 | J25: 0 | K25: 0 | M25: 2010-04-01 | N25: De Cupmaten – Turnhout 86 | O25: 0 | P25: 0 | Q25: 1 | R25: 4 | S25: 8 | T25: -4 | U25: 0 | V25: 0 | W25: 1 | X25: 4 | Y25: 8 | Z25: 0 | AA25: 0 | AB25: 0 | AC25: 0 | AD25: 0
B26: Broeders Martijn | C26: 0 | D26: 0 | E26: 0 | F26: 0 | G26: 0 | H26: 0 | I26: 0 | J26: 0 | K26: 0 | M26: 2010-03-24 | N26: Boomerangs B - De Cupmaten | O26: 1 | P26: 0 | Q26: 0 | R26: 10 | S26: 9 | T26: 1 | U26: 0 | V26: 0 | W26: 0 | X26: 0 | Y26: 0 | Z26: 1 | AA26: 0 | AB26: 0 | AC26: 10 | AD26: 9
B27: Van Dijck Vincent | C27: 3 | D27: 3 | E27: 0 | F27: 0 | G27: 1 | H27: 0.3333333333 | I27: 0.1666666667 | J27: 0 | K27: 0 | M27: Totaal | O27: =SUM(O4:O26) -> 4 | P27: =SUM(P4:P26) -> 2 | Q27: 17 | R27: 78 | S27: 152 | T27: =SUM(T4:T26) -> -74 | U27: 1 | V27: 1 | W27: 10 | X27: 30 | Y27: 73 | Z27: 3 | AA27: 1 | AB27: 7 | AC27: 48 | AD27: 79
B28: Westhof Jan | C28: 3 | D28: 3 | E28: 0 | F28: 0 | G28: 1 | H28: 0.3333333333 | I28: 0.1666666667 | J28: 0 | K28: 0
B29: Dom Steven | C29: 1 | D29: 1 | E29: 0 | F29: 0 | G29: 0 | H29: 0 | I29: 0 | J29: 0 | K29: 0 | N29: Gemiddelde | O29: =$O27/$D$63 -> 0.1739130435 | P29: =P27/D63 -> 0.08695652174 | Q29: =Q27/D63 -> 0.7391304348 | R29: =R27/D63 -> 3.391304348 | S29: =S27/D63 -> 6.608695652 | T29: =T27/D63 -> -3.217391304 | U29: =U27/12 -> 0.08333333333 | V29: =V27/12 -> 0.08333333333 | W29: =W27/12 -> 0.8333333333 | X29: =X27/12 -> 2.5 | Y29: =Y27/12 -> 6.083333333 | Z29: =Z27/11 -> 0.2727272727 | AA29: =AA27/11 -> 0.09090909091 | AB29: =AB27/11 -> 0.6363636364 | AC29: =AC27/11 -> 4.363636364 | AD29: =AD27/11 -> 7.181818182
D31: 3 | G31: =SUM(G20:G29) -> 6 | H31: =G31/D31 -> 2 | J31: =SUM(J20:J30) -> 0 | K31: =SUM(K20:K30) -> 0
M32: Eindklassement
B33: Totaal
B35: Speler | C35: Aanwezig | D35: Matchen | E35: Afvaller | F35: Forfait | G35: Doelpunten | H35: Gem doelp. | I35: % aandeel | J35: Geel | K35: Rood
A36: =$G36-$G36/100-(G36/D36)+(D36/100) -> 0.19 | B36: De Decker Guy | C36: =C4+C20 -> 19 | D36: =D4+D20 -> 19 | E36: =E4+E20 -> 0 | F36: =F4+F20 -> 0 | G36: =G20+G4 -> 0 | H36: =G36/D36 -> 0 | I36: =$G36/$G$47 -> 0 | J36: =J4+J20 -> 0 | K36: 0
A37: =$G37-$G37/100-(G37/D37)+(D37/100)-0.1 -> 0.08 | B37: Lenaerts Jaan | C37: =C5+C21 -> 18 | D37: 18 | E37: 0 | F37: 0 | G37: 0 | H37: =G37/D37 -> 0 | I37: =$G37/$G$47 -> 0 | J37: 0 | K37: 0
A38: =$G38-$G38/100-(G38/D38)+(D38/100) -> 3.843333333 | B38: De Decker Koen | C38: 15 | D38: 15 | E38: 0 | F38: 0 | G38: 4 | H38: 0.2666666667 | I38: 0.05128205128 | J38: 0 | K38: 0
A39: =$G39-$G39/100-(G39/D39)+(D39/100) -> 15.13111111 | B39: Van Gils Bart | C39: 18 | D39: 18 | E39: 0 | F39: 0 | G39: 16 | H39: 0.8888888889 | I39: 0.2051282051 | J39: 1 | K39: 1
A40: 4.732857143 | B40: Vajda Dierckx Davy | C40: 14 | D40: 14 | E40: 0 | F40: 0 | G40: 5 | H40: 0.3571428571 | I40: 0.0641025641 | J40: 0 | K40: 0
A41: 14.38818182 | B41: De Decker Hans | C41: 22 | D41: 22 | E41: 0 | F41: 0 | G41: 15 | H41: 0.6818181818 | I41: 0.1923076923 | J41: 0 | K41: 0
A42: 0.78 | B42: Broeders Martijn | C42: 4 | D42: 4 | E42: 0 | F42: 0 | G42: 1 | H42: 0.25 | I42: 0.01282051282 | J42: 0 | K42: 0
A43: 2.963529412 | B43: Van Dijck Vincent | C43: 18 | D43: 17 | E43: 1 | F43: 0 | G43: 3 | H43: 0.1764705882 | I43: 0.03846153846 | J43: 0 | K43: 0
A44: 11.51857143 | B44: Westhof Jan | C44: 22 | D44: 21 | E44: 1 | F44: 0 | G44: 12 | H44: 0.5714285714 | I44: 0.1538461538 | J44: 0 | K44: 0
A45: 20.88 | B45: Dom Steven | C45: 21 | D45: 20 | E45: 1 | F45: 0 | G45: 22 | H45: 1.1 | I45: 0.2820512821 | J45: 3 | K45: 0
D47: =D15+D31 -> 23 | G47: =SUM(G36:G45) -> 78 | H47: =G47/D47 -> 3.391304348 | J47: =SUM(J36:J46) -> 4 | K47: =SUM(K36:K46) -> 1
B49: Totaal
N50: Ploeg | O50: Winst | P50: Gelijk | Q50: Verlies | R50: Voor | S50: Tegen | T50: DS | U50: Punten
B51: Speler | C51: Aanwezig | D51: Matchen | E51: Afvaller | F51: Forfait | G51: Doelpunten | H51: Gem doelp. | I51: % aandeel | J51: Geel | K51: Rood | M51: 1 | N51: Tugas | O51: 16 | P51: 2 | Q51: 2 | R51: 164 | S51: 52 | T51: =R51-S51 -> 112 | U51: 50
A52: =LARGE($A$36:$A$45,ROW(A1)) -> 20.88 | B52: =VLOOKUP($A52,$A$36:$H$45,COLUMN(B1),FALSE) -> Dom Steven | C52: =VLOOKUP($A52,$A$36:$H$45,COLUMN(C1),FALSE) -> 21 | D52: 20 | E52: 1 | F52: 0 | G52: 22 | H52: 1.1 | I52: =VLOOKUP($A52,$A$36:$K$45,COLUMN(I1),FALSE) -> 0.2820512821 | J52: 3 | K52: 0 | M52: 2 | N52: Desportivo | O52: 15 | P52: 2 | Q52: 3 | R52: 131 | S52: 53 | T52: =R52-S52 -> 78 | U52: 47
A53: =LARGE($A$36:$A$45,ROW(A2)) -> 15.13111111 | B53: Van Gils Bart | C53: =VLOOKUP($A53,$A$36:$H$45,COLUMN(C2),FALSE) -> 18 | D53: 18 | E53: 0 | F53: 0 | G53: 16 | H53: 0.8888888889 | I53: 0.2051282051 | J53: 1 | K53: 1 | M53: 3 | N53: P&V Turnhout | O53: 14 | P53: 2 | Q53: 4 | R53: 138 | S53: 65 | T53: 73 | U53: 44
A54: 14.38818182 | B54: De Decker Hans | C54: 22 | D54: 22 | E54: 0 | F54: 0 | G54: 15 | H54: 0.6818181818 | I54: 0.1923076923 | J54: 0 | K54: 0 | M54: 4 | N54: De Waterput | O54: 14 | P54: 1 | Q54: 5 | R54: 120 | S54: 82 | T54: 38 | U54: 43
A55: 11.51857143 | B55: Westhof Jan | C55: 22 | D55: 21 | E55: 1 | F55: 0 | G55: 12 | H55: 0.5714285714 | I55: 0.1538461538 | J55: 0 | K55: 0 | M55: 5 | N55: Spinpedes B | O55: 11 | P55: 1 | Q55: 8 | R55: 126 | S55: 80 | T55: 46 | U55: 34
A56: 4.732857143 | B56: Vajda Dierckx Davy | C56: 14 | D56: 14 | E56: 0 | F56: 0 | G56: 5 | H56: 0.3571428571 | I56: 0.0641025641 | J56: 0 | K56: 0 | M56: 6 | N56: Ministerie | O56: 11 | P56: 0 | Q56: 9 | R56: 169 | S56: 105 | T56: 64 | U56: 33
A57: 3.843333333 | B57: De Decker Koen | C57: 15 | D57: 15 | E57: 0 | F57: 0 | G57: 4 | H57: 0.2666666667 | I57: 0.05128205128 | J57: 0 | K57: 0 | M57: 7 | N57: Wollewei | O57: 7 | P57: 2 | Q57: 11 | R57: 96 | S57: 118 | T57: -22 | U57: 23
A58: 2.963529412 | B58: Van Dijck Vincent | C58: 18 | D58: 17 | E58: 1 | F58: 0 | G58: 3 | H58: 0.1764705882 | I58: 0.03846153846 | J58: 0 | K58: 0 | M58: 8 | N58: Turnhout 86 | O58: 7 | P58: 1 | Q58: 12 | R58: 89 | S58: 112 | T58: -23 | U58: 22
A59: 0.78 | B59: Broeders Martijn | C59: 4 | D59: 4 | E59: 0 | F59: 0 | G59: 1 | H59: 0.25 | I59: 0.01282051282 | J59: 0 | K59: 0 | M59: 9 | N59: De Cupmaten | O59: 4 | P59: 2 | Q59: 14 | R59: 73 | S59: 127 | T59: -54 | U59: 14
A60: 0.19 | B60: De Decker Guy | C60: 19 | D60: 19 | E60: 0 | F60: 0 | G60: 0 | H60: 0 | I60: =VLOOKUP($A60,$A$36:$K$45,COLUMN(I9),FALSE) -> 0 | J60: 0 | K60: 0 | M60: 10 | N60: KDS. Turnhout | O60: 4 | P60: 0 | Q60: 16 | R60: 54 | S60: 154 | T60: -100 | U60: 12
A61: 0.08 | B61: =VLOOKUP($A61,$A$36:$H$45,COLUMN(B10),FALSE) -> Lenaerts Jaan | C61: 18 | D61: 18 | E61: 0 | F61: 0 | G61: 0 | H61: 0 | I61: 0 | J61: 0 | K61: 0 | M61: 11 | N61: Boomerangs B | O61: 0 | P61: 1 | Q61: 19 | R61: 50 | S61: 262 | T61: -212 | U61: 1
C63: 23 | D63: =D47 -> 23 | G63: =G47 -> 78 | H63: =H47 -> 3.391304348 | J63: =J47 -> 4 | K63: =K47 -> 1

Sheet Seizoen 2010-2011
B1: Competitie | M1: Wedstrijden
U2: Thuis | Z2: Uit
B3: Speler | C3: Aanwezig | D3: Matchen | E3: Afvaller | F3: Forfait | G3: Doelpunten | H3: Gem doelp. | I3: % aandeel | J3: Geel | K3: Rood | M3: Datum | N3: Wedstrijd | O3: Winst | P3: Gelijk | Q3: Verlies | R3: Voor | S3: Tegen | T3: DS | U3: Winst | V3: Gelijk | W3: Verlies | X3: Voor | Y3: Tegen | Z3: Winst | AA3: Gelijk | AB3: Verlies | AC3: Voor | AD3: Tegen
B4: De Decker Guy | C4: =D4+E4+F4 -> 13 | D4: 11 | E4: 1 | F4: 1 | G4: 0 | H4: =G4/D4 -> 0 | I4: =$G4/$G$15 -> 0 | J4: 0 | K4: 0 | M4: 2010-09-09 | N4: De Cupmaten - Boomerangs B (Forfait) | O4: =U4+Z4 -> 1 | P4: =V4+AA4 -> 0 | Q4: =W4+AB4 -> 0 | R4: =X4+AC4 -> 5 | S4: =Y4+AD4 -> 0 | T4: =R4-S4 -> 5 | U4: 1 | V4: 0 | W4: 0 | X4: 5 | Y4: 0 | Z4: 0 | AA4: 0 | AB4: 0 | AC4: 0 | AD4: 0
B5: Lenaerts Jaan | C5: =D5+E5+F5 -> 11 | D5: 10 | E5: 0 | F5: 1 | G5: 2 | H5: =G5/D5 -> 0.2 | I5: =$G5/$G$15 -> 0.02739726027 | J5: 2 | K5: 1 | M5: 2010-09-13 | N5: Ministerie - De Cupmaten | O5: =U5+Z5 -> 0 | P5: =V5+AA5 -> 0 | Q5: =W5+AB5 -> 1 | R5: =X5+AC5 -> 1 | S5: =Y5+AD5 -> 8 | T5: =R5-S5 -> -7 | U5: 0 | V5: 0 | W5: 0 | X5: 0 | Y5: 0 | Z5: 0 | AA5: 0 | AB5: 1 | AC5: 1 | AD5: 8
B6: De Decker Koen | C6: 14 | D6: 13 | E6: 0 | F6: 1 | G6: 2 | H6: 0.1538461538 | I6: 0.02739726027 | J6: 0 | K6: 0 | M6: 2010-09-21 | N6: Barza – De Cupmaten | O6: 0 | P6: 0 | Q6: 1 | R6: 6 | S6: 8 | T6: -2 | U6: 0 | V6: 0 | W6: 0 | X6: 0 | Y6: 0 | Z6: 0 | AA6: 0 | AB6: 1 | AC6: 6 | AD6: 8
B7: Van Gils Bart | C7: 12 | D7: 12 | E7: 0 | F7: 0 | G7: 10 | H7: 0.8333333333 | I7: 0.1369863014 | J7: 3 | K7: 1 | M7: 2010-10-07 | N7: De Cupmaten – Verschilboys B | O7: 1 | P7: 0 | Q7: 0 | R7: 6 | S7: 4 | T7: 2 | U7: 1 | V7: 0 | W7: 0 | X7: 6 | Y7: 4 | Z7: 0 | AA7: 0 | AB7: 0 | AC7: 0 | AD7: 0
B8: Vajda Dierckx Davy | C8: 11 | D8: 10 | E8: 0 | F8: 1 | G8: 8 | H8: 0.8 | I8: 0.1095890411 | J8: 0 | K8: 0 | M8: 2010-10-21 | N8: De Cupmaten – De Waterput | O8: 0 | P8: 0 | Q8: 1 | R8: 5 | S8: 9 | T8: -4 | U8: 0 | V8: 0 | W8: 1 | X8: 5 | Y8: 9 | Z8: 0 | AA8: 0 | AB8: 0 | AC8: 0 | AD8: 0
B9: De Decker Hans | C9: 18 | D9: 17 | E9: 0 | F9: 1 | G9: 2 | H9: 0.1176470588 | I9: 0.02739726027 | J9: 0 | K9: 0 | M9: 2010-10-25 | N9: Turnhout 86 - De Cupmaten | O9: 0 | P9: 0 | Q9: 1 | R9: 4 | S9: 5 | T9: -1 | U9: 0 | V9: 0 | W9: 0 | X9: 0 | Y9: 0 | Z9: 0 | AA9: 0 | AB9: 1 | AC9: 4 | AD9: 5
B10: Stymans Gert | C10: 6 | D10: 5 | E10: 0 | F10: 1 | G10: 2 | H10: 0.4 | I10: 0.02739726027 | J10: 1 | K10: 0 | M10: 2010-11-04 | N10: De Cupmaten - De Zwaluw (BK) | O10: 0 | P10: 0 | Q10: 1 | R10: 7 | S10: 15 | T10: -8 | U10: 0 | V10: 0 | W10: 1 | X10: 7 | Y10: 15 | Z10: 0 | AA10: 0 | AB10: 0 | AC10: 0 | AD10: 0
B11: Van Dijck Vincent | C11: 17 | D11: 16 | E11: 1 | F11: 0 | G11: 5 | H11: 0.3125 | I11: 0.06849315068 | J11: 1 | K11: 0 | M11: 2010-11-04 | N11: Supraboys - De Cupmaten | O11: 0 | P11: 1 | Q11: 0 | R11: 4 | S11: 4 | T11: 0 | U11: 0 | V11: 0 | W11: 0 | X11: 0 | Y11: 0 | Z11: 0 | AA11: 1 | AB11: 0 | AC11: 4 | AD11: 4
B12: Westhof Jan | C12: 17 | D12: 16 | E12: 0 | F12: 1 | G12: 10 | H12: 0.625 | I12: 0.1369863014 | J12: 1 | K12: 0 | M12: 2010-11-18 | N12: De Cupmaten – KDS. Turnhout | O12: 1 | P12: 0 | Q12: 0 | R12: 12 | S12: 1 | T12: 11 | U12: 1 | V12: 0 | W12: 0 | X12: 12 | Y12: 1 | Z12: 0 | AA12: 0 | AB12: 0 | AC12: 0 | AD12: 0
B13: Dom Steven | C13: 18 | D13: 17 | E13: 0 | F13: 1 | G13: 32 | H13: 1.882352941 | I13: 0.4383561644 | J13: 0 | K13: 0 | M13: 2010-11-22 | N13: Atlético - De Cupmaten (BK) | O13: 0 | P13: 0 | Q13: 1 | R13: 1 | S13: 11 | T13: -10 | U13: 0 | V13: 0 | W13: 0 | X13: 0 | Y13: 0 | Z13: 0 | AA13: 0 | AB13: 1 | AC13: 1 | AD13: 11
M14: 2010-12-16 | N14: De Cupmaten - Jumpaz United | O14: 0 | P14: 0 | Q14: 1 | R14: 3 | S14: 9 | T14: -6 | U14: 0 | V14: 0 | W14: 1 | X14: 3 | Y14: 9 | Z14: 0 | AA14: 0 | AB14: 0 | AC14: 0 | AD14: 0
C15: 18 | D15: 17 | F15: 1 | G15: =SUM(G4:G13) -> 73 | H15: =G15/D15 -> 4.294117647 | J15: =SUM(J4:J14) -> 8 | K15: =SUM(K4:K14) -> 2 | M15: 2011-01-06 | N15: De Cupmaten - Fettah (BK) (Forfait) | O15: 1 | P15: 0 | Q15: 0 | R15: 5 | S15: 0 | T15: 5 | U15: 1 | V15: 0 | W15: 0 | X15: 5 | Y15: 0 | Z15: 0 | AA15: 0 | AB15: 0 | AC15: 0 | AD15: 0
M16: 2011-01-13 | N16: De Cupmaten – Ministerie | O16: 0 | P16: 0 | Q16: 1 | R16: 4 | S16: 10 | T16: -6 | U16: 0 | V16: 0 | W16: 1 | X16: 4 | Y16: 10 | Z16: 0 | AA16: 0 | AB16: 0 | AC16: 0 | AD16: 0
B17: Beker | M17: 2011-01-26 | N17: Boomerangs B - De Cupmaten | O17: 0 | P17: 0 | Q17: 1 | R17: 4 | S17: 5 | T17: -1 | U17: 0 | V17: 0 | W17: 0 | X17: 0 | Y17: 0 | Z17: 0 | AA17: 0 | AB17: 1 | AC17: 4 | AD17: 5
M18: 2011-02-10 | N18: De Cupmaten - Barza | O18: 1 | P18: 0 | Q18: 0 | R18: =X18+AC18 -> 3 | S18: 1 | T18: 2 | U18: 1 | V18: 0 | W18: 0 | X18: 3 | Y18: 1 | Z18: 0 | AA18: 0 | AB18: 0 | AC18: 0 | AD18: 0
B19: Speler | C19: Aanwezig | D19: Matchen | E19: Afvaller | F19: Forfait | G19: Doelpunten | H19: Gem doelp. | I19: % aandeel | J19: Geel | K19: Rood | M19: 2011-03-04 | N19: Verschilboys B - De Cupmaten | O19: 0 | P19: 0 | Q19: 1 | R19: 1 | S19: 8 | T19: -7 | U19: 0 | V19: 0 | W19: 0 | X19: 0 | Y19: 0 | Z19: 0 | AA19: 0 | AB19: 1 | AC19: 1 | AD19: 8
B20: De Decker Guy | C20: =D20+E20+F20 -> 1 | D20: 1 | E20: 0 | F20: 0 | G20: 0 | H20: =G20/D20 -> 0 | I20: =$G20/$G$31 -> 0 | J20: 0 | K20: 0 | M20: 2011-03-10 | N20: De Cupmaten - Supraboys | O20: 0 | P20: 0 | Q20: 1 | R20: 5 | S20: 6 | T20: -1 | U20: 0 | V20: 0 | W20: 1 | X20: 5 | Y20: 6 | Z20: 0 | AA20: 0 | AB20: 0 | AC20: 0 | AD20: 0
B21: Lenaerts Jaan | C21: =D21+E21+F21 -> 1 | D21: 1 | E21: 0 | F21: 0 | G21: 0 | H21: =G21/D21 -> 0 | I21: =$G21/$G$31 -> 0 | J21: 0 | K21: 0 | M21: 2011-03-14 | N21: Jumpaz United - De Cupmaten | O21: 0 | P21: 0 | Q21: 1 | R21: 1 | S21: 6 | T21: -5 | U21: 0 | V21: 0 | W21: 0 | X21: 0 | Y21: 0 | Z21: 0 | AA21: 0 | AB21: 1 | AC21: 1 | AD21: 6
B22: De Decker Koen | C22: 3 | D22: 2 | E22: 0 | F22: 1 | G22: 1 | H22: 0.5 | I22: 0.125 | J22: 0 | K22: 0 | M22: 2011-03-24 | N22: De Cupmaten - Turnhout 86 | O22: 0 | P22: 0 | Q22: 1 | R22: 4 | S22: 6 | T22: -2 | U22: 0 | V22: 0 | W22: 1 | X22: 4 | Y22: 6 | Z22: 0 | AA22: 0 | AB22: 0 | AC22: 0 | AD22: 0
B23: Van Gils Bart | C23: 1 | D23: 0 | E23: 0 | F23: 1 | G23: 0 | H23: 0 | I23: 0 | J23: 0 | K23: 0 | M23: 2011-03-28 | N23: KDS. Turnhout- De Cupmaten | O23: 1 | P23: 0 | Q23: 0 | R23: 8 | S23: 1 | T23: 7 | U23: 0 | V23: 0 | W23: 0 | X23: 0 | Y23: 0 | Z23: 1 | AA23: 0 | AB23: 0 | AC23: 8 | AD23: 1
B24: Vajda Dierckx Davy | C24: 1 | D24: 1 | E24: 0 | F24: 0 | G24: 1 | H24: 1 | I24: 0.125 | J24: 0 | K24: 0 | M24: 2011-04-11 | N24: De Waterput - De Cupmaten | O24: 0 | P24: 0 | Q24: 1 | R24: 3 | S24: 11 | T24: -8 | U24: 0 | V24: 0 | W24: 0 | X24: 0 | Y24: 0 | Z24: 0 | AA24: 0 | AB24: 1 | AC24: 3 | AD24: 11
B25: De Decker Hans | C25: 3 | D25: 2 | E25: 0 | F25: 1 | G25: 0 | H25: 0 | I25: 0 | J25: 0 | K25: 0 | M25: Totaal | O25: =SUM(O4:O24) -> 6 | P25: =SUM(P4:P24) -> 1 | Q25: 14 | R25: =SUM(R4:R24) -> 92 | S25: 128 | T25: =SUM(T4:T24) -> -36 | U25: 5 | V25: =SUM(V4:V24) -> 0 | W25: 6 | X25: 59 | Y25: 61 | Z25: 1 | AA25: 1 | AB25: 8 | AC25: 33 | AD25: 67
B26: Stymans Gert | C26: 1 | D26: 1 | E26: 0 | F26: 0 | G26: 1 | H26: 1 | I26: 0.125 | J26: 0 | K26: 0
B27: Van Dijck Vincent | C27: 2 | D27: 1 | E27: 0 | F27: 1 | G27: 0 | H27: 0 | I27: 0 | J27: 0 | K27: 0 | N27: Gemiddelde | O27: =O$25/($O$25+$P$25+$Q$25) -> 0.2857142857 | P27: 0.04761904762 | Q27: 0.6666666667 | R27: 4.380952381 | S27: 6.095238095 | T27: -1.714285714 | U27: =U$25/($U$25+$V$25+$W$25) -> 0.4545454545 | V27: =V$25/($U$25+$V$25+$W$25) -> 0 | W27: =W$25/($U$25+$V$25+$W$25) -> 0.5454545455 | X27: =X$25/($U$25+$V$25+$W$25) -> 5.363636364 | Y27: =Y$25/($U$25+$V$25+$W$25) -> 5.545454545 | Z27: =Z$25/($Z$25+$AA$25+$AB$25) -> 0.1 | AA27: =AA$25/($Z$25+$AA$25+$AB$25) -> 0.1 | AB27: =AB$25/($Z$25+$AA$25+$AB$25) -> 0.8 | AC27: =AC$25/($Z$25+$AA$25+$AB$25) -> 3.3 | AD27: =AD$25/($Z$25+$AA$25+$AB$25) -> 6.7
B28: Westhof Jan | C28: 3 | D28: 2 | E28: 0 | F28: 1 | G28: 0 | H28: 0 | I28: 0 | J28: 0 | K28: 0
B29: Dom Steven | C29: 3 | D29: 2 | E29: 0 | F29: 1 | G29: 5 | H29: 2.5 | I29: 0.625 | J29: 0 | K29: 0
C31: 3 | D31: 2 | F31: 1 | G31: =SUM(G20:G29) -> 8 | H31: =G31/D31 -> 4 | J31: =SUM(J20:J30) -> 0 | K31: =SUM(K20:K30) -> 0 | R31: Forfait
B33: Totaal
B35: Speler | C35: Aanwezig | D35: Matchen | E35: Afvaller | F35: Forfait | G35: Doelpunten | H35: Gem doelp. | I35: % aandeel | J35: Geel | K35: Rood
A36: =$G36-$G36/100-(G36/D36)+(D36/100) -> 0.12 | B36: De Decker Guy | C36: =C20+C4 -> 14 | D36: =D20+D4 -> 12 | E36: =E20+E4 -> 1 | F36: =F20+F4 -> 1 | G36: =G20+G4 -> 0 | H36: =G36/D36 -> 0 | I36: =$G36/$G$47 -> 0 | J36: =J4+J20 -> 0 | K36: =K4+K20 -> 0
A37: =$G37-$G37/100-(G37/D37)+(D37/100) -> 1.908181818 | B37: Lenaerts Jaan | C37: =C21+C5 -> 12 | D37: 11 | E37: 0 | F37: 1 | G37: 2 | H37: =G37/D37 -> 0.1818181818 | I37: =$G37/$G$47 -> 0.02469135802 | J37: =J5+J21 -> 2 | K37: 1
A38: 2.92 | B38: De Decker Koen | C38: 17 | D38: 15 | E38: 0 | F38: 2 | G38: 3 | H38: 0.2 | I38: 0.03703703704 | J38: 0 | K38: 0
A39: 9.186666667 | B39: Van Gils Bart | C39: 13 | D39: 12 | E39: 0 | F39: 1 | G39: 10 | H39: 0.8333333333 | I39: 0.1234567901 | J39: 3 | K39: 1
A40: 8.201818182 | B40: Vajda Dierckx Davy | C40: 12 | D40: 11 | E40: 0 | F40: 1 | G40: 9 | H40: 0.8181818182 | I40: 0.1111111111 | J40: 0 | K40: 0
A41: 2.064736842 | B41: De Decker Hans | C41: 21 | D41: 19 | E41: 0 | F41: 2 | G41: 2 | H41: 0.1052631579 | I41: 0.02469135802 | J41: 0 | K41: 0
A42: 2.53 | B42: Stymans Gert | C42: 7 | D42: 6 | E42: 0 | F42: 1 | G42: 3 | H42: 0.5 | I42: 0.03703703704 | J42: 1 | K42: 0
A43: 4.825882353 | B43: Van Dijck Vincent | C43: 19 | D43: 17 | E43: 1 | F43: 1 | G43: 5 | H43: 0.2941176471 | I43: 0.06172839506 | J43: 1 | K43: 0
A44: 9.524444444 | B44: Westhof Jan | C44: 20 | D44: 18 | E44: 0 | F44: 2 | G44: 10 | H44: 0.5555555556 | I44: 0.1234567901 | J44: 1 | K44: 0
A45: 34.87263158 | B45: Dom Steven | C45: 21 | D45: 19 | E45: 0 | F45: 2 | G45: 37 | H45: 1.947368421 | I45: 0.4567901235 | J45: 0 | K45: 0
D47: =D15+D31 -> 19 | G47: =SUM(G36:G45) -> 81 | H47: =G47/D47 -> 4.263157895 | J47: =SUM(J36:J46) -> 8 | K47: =SUM(K36:K46) -> 2
B51: Totaal
B53: Speler | C53: Aanwezig | D53: Matchen | E53: Afvaller | F53: Forfait | G53: Doelpunten | H53: Gem doelp. | I53: % aandeel | J53: Geel | K53: Rood | M53: Eindklassement
A54: =LARGE($A$36:$A$45,ROW(A1)) -> 34.87263158 | B54: =VLOOKUP($A54,$A$36:$K$45,COLUMN(B1),FALSE) -> Dom Steven | C54: =VLOOKUP($A54,$A$36:$K$45,COLUMN(C1),FALSE) -> 21 | D54: 19 | E54: 0 | F54: 2 | G54: 37 | H54: 1.947368421 | I54: 0.4567901235 | J54: 0 | K54: 0
A55: =LARGE($A$36:$A$45,ROW(A2)) -> 9.524444444 | B55: Westhof Jan | C55: =VLOOKUP($A55,$A$36:$K$45,COLUMN(C2),FALSE) -> 20 | D55: 18 | E55: 0 | F55: 2 | G55: 10 | H55: 0.5555555556 | I55: 0.1234567901 | J55: 1 | K55: 0 | N55: Ploeg | O55: Winst | P55: Gelijk | Q55: Verlies | R55: Voor | S55: Tegen | T55: DS | U55: Punten
A56: 9.186666667 | B56: Van Gils Bart | C56: =VLOOKUP($A56,$A$36:$K$45,COLUMN(C3),FALSE) -> 13 | D56: 12 | E56: 0 | F56: 1 | G56: 10 | H56: 0.8333333333 | I56: 0.1234567901 | J56: 3 | K56: 1 | M56: 1 | N56: Ministerie | O56: 18 | P56: 0 | Q56: 0 | R56: 199 | S56: 49 | T56: 150 | U56: 54
A57: 8.201818182 | B57: Vajda Dierckx Davy | C57: =VLOOKUP($A57,$A$36:$K$45,COLUMN(C4),FALSE) -> 12 | D57: 11 | E57: 0 | F57: 1 | G57: 9 | H57: 0.8181818182 | I57: 0.1111111111 | J57: 0 | K57: 0 | M57: 2 | N57: Jumpaz United | O57: 15 | P57: 1 | Q57: 2 | R57: 161 | S57: 53 | T57: 108 | U57: 46
A58: 4.825882353 | B58: Van Dijck Vincent | C58: =VLOOKUP($A58,$A$36:$K$45,COLUMN(C5),FALSE) -> 19 | D58: 17 | E58: 1 | F58: 1 | G58: 5 | H58: 0.2941176471 | I58: 0.06172839506 | J58: 1 | K58: 0 | M58: 3 | N58: Turnhout 86 | O58: 13 | P58: 1 | Q58: 4 | R58: 109 | S58: 69 | T58: 40 | U58: 40
A59: 2.92 | B59: De Decker Koen | C59: =VLOOKUP($A59,$A$36:$K$45,COLUMN(C6),FALSE) -> 17 | D59: 15 | E59: 0 | F59: 2 | G59: 3 | H59: 0.2 | I59: 0.03703703704 | J59: 0 | K59: 0 | M59: 4 | N59: De Waterput | O59: 11 | P59: 3 | Q59: 4 | R59: 119 | S59: 84 | T59: 35 | U59: 36
A60: 2.53 | B60: Stymans Gert | C60: =VLOOKUP($A60,$A$36:$K$45,COLUMN(C7),FALSE) -> 7 | D60: 6 | E60: 0 | F60: 1 | G60: 3 | H60: 0.5 | I60: 0.03703703704 | J60: 1 | K60: 0 | M60: 5 | N60: Verschilboys B | O60: 8 | P60: 1 | Q60: 9 | R60: 86 | S60: 104 | T60: -18 | U60: 25
A61: 2.064736842 | B61: De Decker Hans | C61: =VLOOKUP($A61,$A$36:$K$45,COLUMN(C8),FALSE) -> 21 | D61: 19 | E61: 0 | F61: 2 | G61: 2 | H61: 0.1052631579 | I61: 0.02469135802 | J61: 0 | K61: 0 | M61: 6 | N61: Supraboys | O61: 7 | P61: 2 | Q61: 9 | R61: 114 | S61: 86 | T61: 28 | U61: 23
A62: 1.908181818 | B62: =VLOOKUP($A62,$A$36:$K$45,COLUMN(B9),FALSE) -> Lenaerts Jaan | C62: 12 | D62: 11 | E62: 0 | F62: 1 | G62: 2 | H62: 0.1818181818 | I62: 0.02469135802 | J62: 2 | K62: 1 | M62: 7 | N62: De Cupmaten | O62: 5 | P62: 1 | Q62: 12 | R62: 79 | S62: 102 | T62: -23 | U62: 16
A63: 0.12 | B63: =VLOOKUP($A63,$A$36:$K$45,COLUMN(B10),FALSE) -> De Decker Guy | C63: 14 | D63: 12 | E63: 1 | F63: 1 | G63: 0 | H63: 0 | I63: 0 | J63: 0 | K63: 0 | M63: 8 | N63: Barza | O63: 4 | P63: 1 | Q63: 13 | R63: 69 | S63: 122 | T63: -53 | U63: 13
M64: 9 | N64: KDS. Turnhout | O64: 2 | P64: 0 | Q64: 16 | R64: 53 | S64: 160 | T64: -107 | U64: 6
C65: 21 | D65: =D47 -> 19 | F65: 2 | G65: =G47 -> 81 | H65: =H47 -> 4.263157895 | J65: =J47 -> 8 | K65: =K47 -> 2 | M65: 10 | N65: Boomerangs B | O65: 2 | P65: 0 | Q65: 16 | R65: 53 | S65: 213 | T65: -160 | U65: 6

Sheet Seizoen 2011-2012
B1: Competitie | M1: Wedstrijden
B3: Speler | C3: Aanwezig | D3: Matchen | E3: Afvaller | F3: Forfait | G3: Doelpunten | H3: Gem doelp. | I3: % aandeel | J3: Geel | K3: Rood | U3: Thuis | Z3: Uit
B4: De Decker Guy | C4: 15 | D4: 14 | E4: 1 | H4: =IF(ISERROR(G4/D4),"",G4/D4) -> 0 | I4: =IF(ISERROR($G4/$G$16),"",$G4/$G$16) -> 0 | J4: 0 | K4: 0 | M4: Datum | N4: Wedstrijd | O4: Winst | P4: Gelijk | Q4: Verlies | R4: Voor | S4: Tegen | T4: DS | U4: Winst | V4: Gelijk | W4: Verlies | X4: Voor | Y4: Tegen | Z4: Winst | AA4: Gelijk | AB4: Verlies | AC4: Voor | AD4: Tegen
B5: Lenaerts Jaan | C5: 6 | D5: 6 | H5: 0 | I5: =IF(ISERROR($G5/$G$16),"",$G5/$G$16) -> 0 | J5: 0 | K5: 0 | M5: 2011-09-05 | N5: Arendonk - De Cupmaten | O5: =U5+Z5 -> 0 | P5: 0 | Q5: 1 | R5: 2 | S5: 6 | T5: =R5-S5 -> -4 | U5: 0 | V5: 0 | W5: 0 | X5: 0 | Y5: 0 | Z5: 0 | AA5: 0 | AB5: 1 | AC5: 2 | AD5: 6
B6: De Decker Koen | C6: 16 | D6: 15 | E6: 1 | G6: 2 | H6: =IF(ISERROR(G6/D6),"",G6/D6) -> 0.1333333333 | I6: 0.01851851852 | J6: 1 | K6: 0 | M6: 2011-09-15 | N6: De Cupmaten - Supraboys | O6: 0 | P6: 0 | Q6: 1 | R6: 3 | S6: 8 | T6: =R6-S6 -> -5 | U6: 0 | V6: 0 | W6: 1 | X6: 3 | Y6: 8 | Z6: 0 | AA6: 0 | AB6: 0 | AC6: 0 | AD6: 0
B7: Van Gils Bart | C7: 19 | D7: 19 | G7: 16 | H7: =IF(ISERROR(G7/D7),"",G7/D7) -> 0.8421052632 | I7: 0.1481481481 | J7: 2 | K7: 0 | M7: 2011-09-21 | N7: De Ster – De Cupmaten | O7: 0 | P7: 0 | Q7: 1 | R7: 5 | S7: 10 | T7: -5 | U7: 0 | V7: 0 | W7: 0 | X7: 0 | Y7: 0 | Z7: 0 | AA7: 0 | AB7: 1 | AC7: 5 | AD7: 10
B8: Vajda Dierckx Davy | C8: 12 | D8: 11 | E8: 1 | G8: 12 | H8: =IF(ISERROR(G8/D8),"",G8/D8) -> 1.090909091 | I8: 0.1111111111 | J8: 0 | K8: 0 | M8: 2011-09-29 | N8: De Cupmaten – Hoek van Portugal | O8: 0 | P8: 0 | Q8: 1 | R8: 1 | S8: 4 | T8: -3 | U8: 0 | V8: 0 | W8: 1 | X8: 1 | Y8: 4 | Z8: 0 | AA8: 0 | AB8: 0 | AC8: 0 | AD8: 0
B9: De Decker Hans | C9: 21 | D9: 21 | G9: 8 | H9: 0.380952381 | I9: 0.07407407407 | J9: 2 | K9: 1 | M9: 2011-10-13 | N9: De Cupmaten – KDS. Turnhout | O9: 1 | P9: 0 | Q9: 0 | R9: 4 | S9: 3 | T9: 1 | U9: 1 | V9: 0 | W9: 0 | X9: 4 | Y9: 3 | Z9: 0 | AA9: 0 | AB9: 0 | AC9: 0 | AD9: 0
B10: Daemen Jan | C10: 8 | D10: 8 | G10: 1 | H10: 0.125 | I10: 0.009259259259 | J10: 0 | K10: 0 | M10: 2011-10-19 | N10: De Sjepap - De Cupmaten | O10: 0 | P10: 0 | Q10: 1 | R10: 4 | S10: 12 | T10: -8 | U10: 0 | V10: 0 | W10: 0 | X10: 0 | Y10: 0 | Z10: 0 | AA10: 0 | AB10: 1 | AC10: 4 | AD10: 12
B11: Van Dijck Vincent | C11: 20 | D11: 19 | E11: 1 | G11: 8 | H11: 0.4210526316 | I11: 0.07407407407 | J11: 0 | K11: 0 | M11: 2011-10-27 | N11: De Cupmaten - Boomerangs B | O11: 1 | P11: 0 | Q11: 0 | R11: 14 | S11: 6 | T11: 8 | U11: 1 | V11: 0 | W11: 0 | X11: 14 | Y11: 6 | Z11: 0 | AA11: 0 | AB11: 0 | AC11: 0 | AD11: 0
B12: Westhof Jan | C12: 22 | D12: 21 | E12: 1 | G12: 11 | H12: 0.5238095238 | I12: 0.1018518519 | J12: 0 | K12: 0 | M12: 2011-11-14 | N12: Boost - De Cupmaten | O12: 0 | P12: 0 | Q12: 1 | R12: 6 | S12: 10 | T12: -4 | U12: 0 | V12: 0 | W12: 0 | X12: 0 | Y12: 0 | Z12: 0 | AA12: 0 | AB12: 1 | AC12: 6 | AD12: 10
B13: Dom Steven | C13: 23 | D13: 23 | G13: 38 | H13: 1.652173913 | I13: 0.3518518519 | J13: 1 | K13: 0 | M13: 2011-11-23 | N13: De Bergen A - De Cupmaten (BK) | O13: =U13+Z13 -> 0 | P13: =V13+AA13 -> 0 | Q13: =W13+AB13 -> 1 | R13: =X13+AC13 -> 4 | S13: =Y13+AD13 -> 6 | T13: =R13-S13 -> -2 | U13: 0 | V13: 0 | W13: 0 | X13: 0 | Y13: 0 | Z13: 0 | AA13: 0 | AB13: 1 | AC13: 4 | AD13: 6
B14: Daemen Geert-Jan | C14: 18 | D14: 17 | E14: 1 | G14: 12 | H14: 0.7058823529 | I14: =IF(ISERROR($G14/$G$16),"",$G14/$G$16) -> 0.1111111111 | J14: 0 | K14: 0 | M14: 2011-12-01 | N14: De Cupmaten – Vijfde Wiel (Forfait) | O14: =U14+Z14 -> 1 | P14: =V14+AA14 -> 0 | Q14: =W14+AB14 -> 0 | R14: =X14+AC14 -> 5 | S14: =Y14+AD14 -> 0 | T14: =R14-S14 -> 5 | U14: 1 | V14: 0 | W14: 0 | X14: 5 | Y14: 0 | Z14: 0 | AA14: 0 | AB14: 0 | AC14: 0 | AD14: 0
M15: 2011-12-05 | N15: Biljart Palace - De Cupmaten | O15: =U15+Z15 -> 1 | P15: =V15+AA15 -> 0 | Q15: =W15+AB15 -> 0 | R15: =X15+AC15 -> 6 | S15: =Y15+AD15 -> 2 | T15: =R15-S15 -> 4 | U15: 0 | V15: 0 | W15: 0 | X15: 0 | Y15: 0 | Z15: 1 | AA15: 0 | AB15: 0 | AC15: 6 | AD15: 2
C16: 23 | D16: 23 | F16: 1 | G16: =SUM(G4:G14) -> 108 | H16: =IF(ISERROR(G16/D16),"",G16/D16) -> 4.695652174 | J16: =SUM(J4:J15) -> 6 | K16: =SUM(K4:K15) -> 1 | M16: 2011-12-08 | N16: De Cupmaten - De Kempen (BK) | O16: 1 | P16: 0 | Q16: 0 | R16: 7 | S16: 2 | T16: 5 | U16: 1 | V16: 0 | W16: 0 | X16: 7 | Y16: 2 | Z16: 0 | AA16: 0 | AB16: 0 | AC16: 0 | AD16: 0
M17: 2011-12-14 | N17: P&V Turnhout - De Cupmaten | O17: 0 | P17: 1 | Q17: 0 | R17: 7 | S17: 7 | T17: 0 | U17: 0 | V17: 0 | W17: 0 | X17: 0 | Y17: 0 | Z17: 0 | AA17: 1 | AB17: 0 | AC17: 7 | AD17: 7
B18: Beker | M18: 2011-12-22 | N18: De Cupmaten - Montana | O18: 0 | P18: 0 | Q18: 1 | R18: 1 | S18: 5 | T18: -4 | U18: 0 | V18: 0 | W18: 1 | X18: 1 | Y18: 5 | Z18: 0 | AA18: 0 | AB18: 0 | AC18: 0 | AD18: 0
M19: 2012-01-11 | N19: Supraboys - De Cupmaten | O19: 1 | P19: 0 | Q19: 0 | R19: 3 | S19: 2 | T19: 1 | U19: 0 | V19: 0 | W19: 0 | X19: 0 | Y19: 0 | Z19: 1 | AA19: 0 | AB19: 0 | AC19: 3 | AD19: 2
B20: Speler | C20: Aanwezig | D20: Matchen | E20: Afvaller | F20: Forfait | G20: Doelpunten | H20: Gem doelp. | I20: % aandeel | J20: Geel | K20: Rood | M20: 2012-01-19 | N20: De Cupmaten – Arendonk | O20: 0 | P20: 0 | Q20: 1 | R20: 5 | S20: 10 | T20: -5 | U20: 0 | V20: 0 | W20: 1 | X20: 5 | Y20: 10 | Z20: 0 | AA20: 0 | AB20: 0 | AC20: 0 | AD20: 0
B21: De Decker Guy | C21: 2 | D21: 2 | H21: =IF(ISERROR(G21/D21),"",G21/D21) -> 0 | I21: =IF(ISERROR($G21/$G$33),"",$G21/$G$33) -> 0 | J21: 0 | K21: 0 | M21: 2012-01-23 | N21: Montana - De Cupmaten | O21: 0 | P21: 0 | Q21: 1 | R21: 2 | S21: 7 | T21: -5 | U21: 0 | V21: 0 | W21: 0 | X21: 0 | Y21: 0 | Z21: 0 | AA21: 0 | AB21: 1 | AC21: 2 | AD21: 7
B22: Lenaerts Jaan | C22: 1 | D22: 1 | H22: =IF(ISERROR(G22/D22),"",G22/D22) -> 0 | I22: =IF(ISERROR($G22/$G$33),"",$G22/$G$33) -> 0 | J22: 0 | K22: 0 | M22: 2012-02-02 | N22: De Cupmaten - Boost | O22: 1 | P22: 0 | Q22: 0 | R22: 6 | S22: 5 | T22: 1 | U22: 1 | V22: 0 | W22: 0 | X22: 6 | Y22: 5 | Z22: 0 | AA22: 0 | AB22: 0 | AC22: 0 | AD22: 0
B23: De Decker Koen | C23: 2 | D23: 2 | G23: 1 | H23: 0.5 | I23: 0.09090909091 | J23: 0 | K23: 0 | M23: 2012-02-08 | N23: Boomerangs B - De Cupmaten | O23: 0 | P23: 0 | Q23: 1 | R23: 3 | S23: 5 | T23: -2 | U23: 0 | V23: 0 | W23: 0 | X23: 0 | Y23: 0 | Z23: 0 | AA23: 0 | AB23: 1 | AC23: 3 | AD23: 5
B24: Van Gils Bart | C24: 1 | D24: 1 | G24: 4 | H24: 4 | I24: 0.3636363636 | J24: 0 | K24: 0 | M24: 2012-02-23 | N24: De Cupmaten - De Ster | O24: 0 | P24: 0 | Q24: 1 | R24: 6 | S24: 10 | T24: -4 | U24: 0 | V24: 0 | W24: 1 | X24: 6 | Y24: 10 | Z24: 0 | AA24: 0 | AB24: 0 | AC24: 0 | AD24: 0
B25: Vajda Dierckx Davy | I25: =IF(ISERROR($G25/$G$33),"",$G25/$G$33) -> 0 | J25: 0 | K25: 0 | M25: 2012-03-08 | N25: De Cupmaten - Biljart Palace | O25: 1 | P25: 0 | Q25: 0 | R25: 13 | S25: 3 | T25: 10 | U25: 1 | V25: 0 | W25: 0 | X25: 13 | Y25: 3 | Z25: 0 | AA25: 0 | AB25: 0 | AC25: 0 | AD25: 0
B26: De Decker Hans | C26: 2 | D26: 2 | G26: 1 | H26: 0.5 | I26: 0.09090909091 | J26: 0 | K26: 0 | M26: 2012-03-14 | N26: KDS. Turnhout- De Cupmaten | O26: 1 | P26: 0 | Q26: 0 | R26: 8 | S26: 4 | T26: 4 | U26: 0 | V26: 0 | W26: 0 | X26: 0 | Y26: 0 | Z26: 1 | AA26: 0 | AB26: 0 | AC26: 8 | AD26: 4
B27: Daemen Jan | I27: 0 | J27: 0 | K27: 0 | M27: 2012-03-22 | N27: De Cupmaten - De Sjepap | O27: 0 | P27: 0 | Q27: 1 | R27: 1 | S27: 6 | T27: -5 | U27: 0 | V27: 0 | W27: 1 | X27: 1 | Y27: 6 | Z27: 0 | AA27: 0 | AB27: 0 | AC27: 0 | AD27: 0
B28: Van Dijck Vincent | C28: 2 | D28: 2 | G28: 2 | H28: =IF(ISERROR(G28/D28),"",G28/D28) -> 1 | I28: 0.1818181818 | J28: 0 | K28: 0 | M28: 2012-03-28 | N28: Vijfde Wiel - De Cupmaten | O28: 0 | P28: 1 | Q28: 0 | R28: 4 | S28: 4 | T28: 0 | U28: 0 | V28: 0 | W28: 0 | X28: 0 | Y28: 0 | Z28: 0 | AA28: 1 | AB28: 0 | AC28: 4 | AD28: 4
B29: Westhof Jan | C29: 2 | D29: 2 | G29: 1 | H29: 0.5 | I29: 0.09090909091 | J29: 0 | K29: 0 | M29: 2012-04-12 | N29: De Cupmaten - P&V Turnhout | O29: 0 | P29: 0 | Q29: 1 | R29: 1 | S29: 8 | T29: -7 | U29: 0 | V29: 0 | W29: 1 | X29: 1 | Y29: 8 | Z29: 0 | AA29: 0 | AB29: 0 | AC29: 0 | AD29: 0
B30: Dom Steven | C30: 2 | D30: 2 | G30: 2 | H30: 1 | I30: 0.1818181818 | J30: 0 | K30: 0 | M30: 2012-04-25 | N30: Hoek Van Portugal - De Cupmaten | O30: 1 | P30: 0 | Q30: 0 | R30: 7 | S30: 4 | T30: 3 | U30: 0 | V30: 0 | W30: 0 | X30: 0 | Y30: 0 | Z30: 1 | AA30: 0 | AB30: 0 | AC30: 7 | AD30: 4
B31: Daemen Geert-Jan | C31: 1 | D31: 1 | H31: 0 | I31: =IF(ISERROR($G31/$G$33),"",$G31/$G$33) -> 0 | J31: 0 | K31: 0 | M31: Totaal | O31: =SUM(O5:O30) -> 10 | P31: =SUM(P5:P30) -> 2 | Q31: 14 | R31: 128 | S31: 149 | T31: -21 | U31: 6 | V31: 0 | W31: 7 | X31: 67 | Y31: 70 | Z31: 4 | AA31: 2 | AB31: 7 | AC31: 61 | AD31: =SUM(AD5:AD30) -> 79
C33: 2 | D33: 2 | F33: 0 | G33: =SUM(G21:G31) -> 11 | H33: =IF(ISERROR(G33/D33),"",G33/D33) -> 5.5 | J33: =SUM(J21:J32) -> 0 | K33: =SUM(K21:K32) -> 0 | N33: Gemiddelde | O33: =IF(ISERROR(O$31/($O$31+$P$31+$Q$31)),"",O$31/($O$31+$P$31+$Q$31)) -> 0.3846153846 | P33: =IF(ISERROR(P$31/($O$31+$P$31+$Q$31)),"",P$31/($O$31+$P$31+$Q$31)) -> 0.07692307692 | Q33: 0.5384615385 | R33: =IF(ISERROR(R$31/($O$31+$P$31+$Q$31)),"",R$31/($O$31+$P$31+$Q$31)) -> 4.923076923 | S33: =IF(ISERROR(S$31/($O$31+$P$31+$Q$31)),"",S$31/($O$31+$P$31+$Q$31)) -> 5.730769231 | T33: -0.8076923077 | U33: =IF(ISERROR(U$31/($U$31+$V$31+$W$31)),"",U$31/($U$31+$V$31+$W$31)) -> 0.4615384615 | V33: =IF(ISERROR(V$31/($U$31+$V$31+$W$31)),"",V$31/($U$31+$V$31+$W$31)) -> 0 | W33: 0.5384615385 | X33: =IF(ISERROR(X$31/($U$31+$V$31+$W$31)),"",X$31/($U$31+$V$31+$W$31)) -> 5.153846154 | Y33: =IF(ISERROR(Y$31/($U$31+$V$31+$W$31)),"",Y$31/($U$31+$V$31+$W$31)) -> 5.384615385 | Z33: =IF(ISERROR(Z$31/($Z$31+$AA$31+$AB$31)),"",Z$31/($Z$31+$AA$31+$AB$31)) -> 0.3076923077 | AA33: =IF(ISERROR(AA$31/($Z$31+$AA$31+$AB$31)),"",AA$31/($Z$31+$AA$31+$AB$31)) -> 0.1538461538 | AB33: 0.5384615385 | AC33: =IF(ISERROR(AC$31/($Z$31+$AA$31+$AB$31)),"",AC$31/($Z$31+$AA$31+$AB$31)) -> 4.692307692 | AD33: =IF(ISERROR(AD$31/($Z$31+$AA$31+$AB$31)),"",AD$31/($Z$31+$AA$31+$AB$31)) -> 6.076923077
B35: Totaal
B37: Speler | C37: Aanwezig | D37: Matchen | E37: Afvaller | F37: Forfait | G37: Doelpunten | H37: Gem doelp. | I37: % aandeel | J37: Geel | K37: Rood
A38: =$G38-$G38/100+(D38/100)-0.06 -> 0.1 | B38: De Decker Guy | C38: =C21+C4 -> 17 | D38: 16 | E38: 1 | F38: 0 | G38: 0 | H38: =IF(ISERROR(G38/D38),"",G38/D38) -> 0 | I38: =IF(ISERROR($G38/$G$50),"",$G38/$G$50) -> 0 | J38: =J4+J21 -> 0 | K38: 0
A39: =$G39-$G39/100+(D39/100) -> 0.07 | B39: Lenaerts Jaan | C39: 7 | D39: 7 | E39: 0 | F39: 0 | G39: 0 | H39: =IF(ISERROR(G39/D39),"",G39/D39) -> 0 | I39: =IF(ISERROR($G39/$G$50),"",$G39/$G$50) -> 0 | J39: 0 | K39: 0
A40: =$G40-$G40/100+(D40/100)-0.055 -> 3.085 | B40: De Decker Koen | C40: 18 | D40: 17 | E40: 1 | F40: 0 | G40: 3 | H40: 0.1764705882 | I40: 0.02521008403 | J40: 1 | K40: 0
A41: =$G41-$G41/100+(D41/100)-0.07 -> 19.93 | B41: Van Gils Bart | C41: 20 | D41: 20 | E41: 0 | F41: 0 | G41: 20 | H41: 1 | I41: 0.1680672269 | J41: 2 | K41: 0
A42: =$G42-$G42/100+(D42/100)-0.085 -> 11.905 | B42: Vajda Dierckx Davy | C42: 12 | D42: 11 | E42: 1 | F42: 0 | G42: 12 | H42: 1.090909091 | I42: 0.1008403361 | J42: 0 | K42: 0
A43: =$G43-$G43/100+(D43/100)-0.02 -> 9.12 | B43: De Decker Hans | C43: 23 | D43: 23 | E43: 0 | F43: 0 | G43: 9 | H43: 0.3913043478 | I43: 0.0756302521 | J43: 2 | K43: 1
A44: =$G44-$G44/100+(D44/100)-0.1 -> 0.97 | B44: Daemen Jan | C44: 8 | D44: 8 | E44: 0 | F44: 0 | G44: 1 | H44: 0.125 | I44: 0.008403361345 | J44: 0 | K44: 0
A45: =$G45-$G45/100+(D45/100)-0.04 -> 10.07 | B45: Van Dijck Vincent | C45: 22 | D45: 21 | E45: 1 | F45: 0 | G45: 10 | H45: 0.4761904762 | I45: 0.08403361345 | J45: 0 | K45: 0
A46: =$G46-$G46/100+(D46/100)-0.03 -> 12.08 | B46: Westhof Jan | C46: 24 | D46: =D29+D12 -> 23 | E46: 1 | F46: 0 | G46: 12 | H46: 0.5217391304 | I46: 0.1008403361 | J46: 0 | K46: 0
A47: =$G47-$G47/100+(D47/100)-0.01 -> 39.84 | B47: Dom Steven | C47: 25 | D47: =D30+D13 -> 25 | E47: 0 | F47: 0 | G47: 40 | H47: 1.6 | I47: 0.3361344538 | J47: 1 | K47: 0
A48: =$G48-$G48/100+(D48/100) -> 12.06 | B48: Daemen Geert-Jan | C48: 19 | D48: 18 | E48: 1 | F48: 0 | G48: 12 | H48: =IF(ISERROR(G48/D48),"",G48/D48) -> 0.6666666667 | I48: 0.1008403361 | J48: 0 | K48: 0
C50: =C33+C16 -> 25 | D50: =D16+D33 -> 25 | F50: =F16+F33 -> 1 | G50: =SUM(G38:G48) -> 119 | H50: =IF(ISERROR(G50/D50),"",G50/D50) -> 4.76 | J50: =SUM(J38:J49) -> 6 | K50: =SUM(K38:K49) -> 1
B52: Totaal
R53: Forfait
B54: Speler | C54: Aanwezig | D54: Matchen | E54: Afvaller | F54: Forfait | G54: Doelpunten | H54: Gem doelp. | I54: % aandeel | J54: Geel | K54: Rood | M54: Eindklassement
A55: =LARGE($A$38:$A$48,ROW(A1)) -> 39.84 | B55: =VLOOKUP($A55,$A$38:$K$48,COLUMN(B1),FALSE) -> Dom Steven | C55: 25 | D55: 25 | E55: 0 | F55: 0 | G55: 40 | H55: 1.6 | I55: 0.3361344538 | J55: 1 | K55: 0
A56: 19.93 | B56: =VLOOKUP($A56,$A$38:$K$48,COLUMN(B2),FALSE) -> Van Gils Bart | C56: =VLOOKUP($A56,$A$38:$K$48,COLUMN(C2),FALSE) -> 20 | D56: 20 | E56: 0 | F56: 0 | G56: 20 | H56: 1 | I56: 0.1680672269 | J56: 2 | K56: 0 | N56: Ploeg | O56: Winst | P56: Gelijk | Q56: Verlies | R56: Voor | S56: Tegen | T56: DS | U56: Punten
A57: 12.08 | B57: =VLOOKUP($A57,$A$38:$K$48,COLUMN(B3),FALSE) -> Westhof Jan | C57: =VLOOKUP($A57,$A$38:$K$48,COLUMN(C3),FALSE) -> 24 | D57: 23 | E57: 1 | F57: 0 | G57: 12 | H57: 0.5217391304 | I57: 0.1008403361 | J57: 0 | K57: 0 | M57: 1 | N57: Montana | O57: 23 | P57: 1 | Q57: 0 | R57: 248 | S57: 41 | T57: 207 | U57: 70
A58: 12.06 | B58: =VLOOKUP($A58,$A$38:$K$48,COLUMN(B4),FALSE) -> Daemen Geert-Jan | C58: =VLOOKUP($A58,$A$38:$K$48,COLUMN(C4),FALSE) -> 19 | D58: 18 | E58: 1 | F58: 0 | G58: 12 | H58: 0.6666666667 | I58: 0.1008403361 | J58: 0 | K58: 0 | M58: 2 | N58: De Ster | O58: 19 | P58: 0 | Q58: 5 | R58: 178 | S58: 71 | T58: 107 | U58: 57
A59: 11.905 | B59: =VLOOKUP($A59,$A$38:$K$48,COLUMN(B5),FALSE) -> Vajda Dierckx Davy | C59: =VLOOKUP($A59,$A$38:$K$48,COLUMN(C5),FALSE) -> 12 | D59: 11 | E59: 1 | F59: 0 | G59: 12 | H59: 1.090909091 | I59: 0.1008403361 | J59: 0 | K59: 0 | M59: 3 | N59: De Sjepap | O59: 17 | P59: 1 | Q59: 6 | R59: 193 | S59: 95 | T59: 98 | U59: 52
A60: 10.07 | B60: =VLOOKUP($A60,$A$38:$K$48,COLUMN(B6),FALSE) -> Van Dijck Vincent | C60: 22 | D60: 21 | E60: 1 | F60: 0 | G60: 10 | H60: 0.4761904762 | I60: 0.08403361345 | J60: 0 | K60: 0 | M60: 4 | N60: Arendonk | O60: 16 | P60: 3 | Q60: 5 | R60: 158 | S60: 89 | T60: 69 | U60: 51
A61: 9.12 | B61: De Decker Hans | C61: 23 | D61: 23 | E61: 0 | F61: 0 | G61: 9 | H61: 0.3913043478 | I61: 0.0756302521 | J61: 2 | K61: 1 | M61: 5 | N61: P&V Turnhout | O61: 16 | P61: 2 | Q61: 6 | R61: 181 | S61: 78 | T61: 103 | U61: 50
A62: 3.085 | B62: De Decker Koen | C62: 18 | D62: 17 | E62: 1 | F62: 0 | G62: 3 | H62: 0.1764705882 | I62: 0.02521008403 | J62: 1 | K62: 0 | M62: 6 | N62: Hoek Van Portugal | O62: 12 | P62: 4 | Q62: 8 | R62: 155 | S62: 79 | T62: 76 | U62: 40
A63: 0.97 | B63: =VLOOKUP($A63,$A$38:$K$48,COLUMN(B9),FALSE) -> Daemen Jan | C63: =VLOOKUP($A63,$A$38:$K$48,COLUMN(C9),FALSE) -> 8 | D63: 8 | E63: 0 | F63: 0 | G63: 1 | H63: 0.125 | I63: 0.008403361345 | J63: 0 | K63: 0 | M63: 7 | N63: Boost | O63: 11 | P63: 2 | Q63: 11 | R63: 166 | S63: 130 | T63: 36 | U63: 35
A64: 0.1 | B64: =VLOOKUP($A64,$A$38:$K$48,COLUMN(B10),FALSE) -> De Decker Guy | C64: =VLOOKUP($A64,$A$38:$K$48,COLUMN(C10),FALSE) -> 17 | D64: 16 | E64: 1 | F64: 0 | G64: 0 | H64: 0 | I64: 0 | J64: 0 | K64: 0 | M64: 8 | N64: De Cupmaten | O64: 9 | P64: 2 | Q64: 13 | R64: 117 | S64: 141 | T64: -24 | U64: 29
A65: 0.07 | B65: =VLOOKUP($A65,$A$38:$K$48,COLUMN(B11),FALSE) -> Lenaerts Jaan | C65: =VLOOKUP($A65,$A$38:$K$48,COLUMN(C11),FALSE) -> 7 | D65: 7 | E65: 0 | F65: 0 | G65: 0 | H65: 0 | I65: 0 | J65: 0 | K65: 0 | M65: 9 | N65: Supraboys | O65: 8 | P65: 2 | Q65: 14 | R65: 122 | S65: 141 | T65: -19 | U65: 26
M66: 10 | N66: Vijfde Wiel | O66: 6 | P66: 2 | Q66: 16 | R66: 110 | S66: 156 | T66: -46 | U66: 20
C67: =C50 -> 25 | D67: =D50 -> 25 | F67: =F50 -> 1 | G67: =G50 -> 119 | H67: =IF(ISERROR(G67/D67),"",G67/D67) -> 4.76 | J67: =J50 -> 6 | K67: =K50 -> 1 | M67: 11 | N67: KDS. Turnhout | O67: 5 | P67: 1 | Q67: 18 | R67: 82 | S67: 178 | T67: -96 | U67: 16
M68: 12 | N68: Boomerangs B | O68: 3 | P68: 0 | Q68: 21 | R68: 81 | S68: 309 | T68: -228 | U68: 9
M69: 13 | N69: Biljart Palace | O69: 1 | P69: 0 | Q69: 23 | R69: 74 | S69: 357 | T69: -283 | U69: 3

Sheet Seizoen 2012-2013
B1: Competitie | M1: Wedstrijden
B3: Speler | C3: Aanwezig | D3: Matchen | E3: Afvaller | F3: Forfait | G3: Doelpunten | H3: Gem doelp. | I3: % aandeel | J3: Geel | K3: Rood | U3: Thuis | Z3: Uit
B4: De Decker Guy | C4: 6 | D4: 5 | H4: =IF(ISERROR(G4/D4),"",G4/D4) -> 0 | I4: =IF(ISERROR($G4/$G$18),"",$G4/$G$18) -> 0 | J4: 0 | K4: 0 | M4: Datum | N4: Wedstrijd | O4: Winst | P4: Gelijk | Q4: Verlies | R4: Voor | S4: Tegen | T4: DS | U4: Winst | V4: Gelijk | W4: Verlies | X4: Voor | Y4: Tegen | Z4: Winst | AA4: Gelijk | AB4: Verlies | AC4: Voor | AD4: Tegen
B5: Lenaerts Jaan | I5: 0 | J5: 0 | K5: 0 | M5: 2012-09-05 | N5: HVP United - De Cupmaten | O5: =U5+Z5 -> 0 | P5: 0 | Q5: =W5+AB5 -> 1 | R5: =X5+AC5 -> 4 | S5: =Y5+AD5 -> 16 | T5: =R5-S5 -> -12 | U5: 0 | V5: 0 | W5: 0 | X5: 0 | Y5: 0 | Z5: 0 | AA5: 0 | AB5: 1 | AC5: 4 | AD5: 16
B6: De Decker Koen | C6: 15 | D6: 14 | E6: 1 | G6: 4 | H6: =IF(ISERROR(G6/D6),"",G6/D6) -> 0.2857142857 | I6: 0.05128205128 | J6: 0 | K6: 0 | M6: 2012-09-14 | N6: De Brouwerij - De Cupmaten | O6: =U6+Z6 -> 0 | P6: =V6+AA6 -> 0 | Q6: =W6+AB6 -> 1 | R6: =X6+AC6 -> 0 | S6: =Y6+AD6 -> 5 | T6: =R6-S6 -> -5 | U6: 0 | V6: 0 | W6: 0 | X6: 0 | Y6: 0 | Z6: 0 | AA6: 0 | AB6: 1 | AC6: 0 | AD6: 5
B7: Van Gils Bart | C7: 13 | D7: 12 | E7: 1 | G7: 15 | H7: =IF(ISERROR(G7/D7),"",G7/D7) -> 1.25 | I7: 0.1923076923 | J7: 0 | K7: 0 | M7: 2012-09-17 | N7: Giel - De Cupmaten (BK) | O7: 0 | P7: 0 | Q7: 1 | R7: =X7+AC7 -> 1 | S7: 9 | T7: -8 | U7: 0 | V7: 0 | W7: 0 | X7: 0 | Y7: 0 | Z7: 0 | AA7: 0 | AB7: 1 | AC7: 1 | AD7: 9
B8: Vajda Dierckx Davy | C8: 9 | D8: 7 | E8: 1 | G8: 8 | H8: =IF(ISERROR(G8/D8),"",G8/D8) -> 1.142857143 | I8: 0.1025641026 | J8: 0 | K8: 0 | M8: 2012-09-27 | N8: De Cupmaten - Vijfde Wiel | O8: 0 | P8: 0 | Q8: 1 | R8: 3 | S8: 4 | T8: -1 | U8: 0 | V8: 0 | W8: 1 | X8: 3 | Y8: 4 | Z8: 0 | AA8: 0 | AB8: 0 | AC8: 0 | AD8: 0
B9: De Decker Hans | C9: 14 | D9: 6 | E9: 1 | G9: 2 | H9: 0.3333333333 | I9: 0.02564102564 | J9: 1 | K9: 0 | M9: 2012-10-11 | N9: De Cupmaten - Supraboys | O9: 1 | P9: 0 | Q9: 0 | R9: 5 | S9: 4 | T9: 1 | U9: 1 | V9: 0 | W9: 0 | X9: 5 | Y9: 4 | Z9: 0 | AA9: 0 | AB9: 0 | AC9: 0 | AD9: 0
B10: Daemen Jan | C10: 11 | D10: 7 | E10: 4 | H10: 0 | I10: 0 | J10: 0 | K10: 0 | M10: 2012-10-19 | N10: The Young Ones - De Cupmaten | O10: 0 | P10: 0 | Q10: 1 | R10: 1 | S10: 3 | T10: -2 | U10: 0 | V10: 0 | W10: 0 | X10: 0 | Y10: 0 | Z10: 0 | AA10: 0 | AB10: 1 | AC10: 1 | AD10: 3
B11: Van Dijck Vincent | C11: 10 | D11: 10 | H11: 0 | I11: 0 | J11: 0 | K11: 0 | M11: 2012-11-15 | N11: De Cupmaten - Boomerangs B | O11: 1 | P11: 0 | Q11: 0 | R11: 20 | S11: 2 | T11: 18 | U11: 1 | V11: 0 | W11: 0 | X11: 20 | Y11: 2 | Z11: 0 | AA11: 0 | AB11: 0 | AC11: 0 | AD11: 0
B12: Westhof Jan | C12: 15 | D12: 15 | G12: 10 | H12: 0.6666666667 | I12: 0.1282051282 | J12: 0 | K12: 0 | M12: 2012-11-30 | N12: De Bergen B - De Cupmaten | O12: 1 | P12: 0 | Q12: 0 | R12: 11 | S12: 1 | T12: 10 | U12: 0 | V12: 0 | W12: 0 | X12: 0 | Y12: 0 | Z12: 1 | AA12: 0 | AB12: 0 | AC12: 11 | AD12: 1
B13: Dom Steven | C13: 14 | D13: 12 | G13: 18 | H13: =IF(ISERROR(G13/D13),"",G13/D13) -> 1.5 | I13: 0.2307692308 | J13: 1 | K13: 0 | M13: 2012-12-05 | N13: Atlaslions A - De Cupmaten (BK) | O13: 0 | P13: 0 | Q13: 1 | R13: 2 | S13: 8 | T13: -6 | U13: 0 | V13: 0 | W13: 0 | X13: 0 | Y13: 0 | Z13: 0 | AA13: 0 | AB13: 1 | AC13: 2 | AD13: 8
B14: Burreddu Efisio | C14: 6 | D14: 5 | E14: 1 | G14: 6 | H14: =IF(ISERROR(G14/D14),"",G14/D14) -> 1.2 | I14: 0.07692307692 | J14: 0 | K14: 0 | M14: 2012-12-13 | N14: De Cupmaten - Den Toren (BK) | O14: =U14+Z14 -> 0 | P14: =V14+AA14 -> 0 | Q14: =W14+AB14 -> 1 | R14: =X14+AC14 -> 3 | S14: =Y14+AD14 -> 4 | T14: =R14-S14 -> -1 | U14: 0 | V14: 0 | W14: 1 | X14: 3 | Y14: 4 | Z14: 0 | AA14: 0 | AB14: 0 | AC14: 0 | AD14: 0
B15: Bloemen Bart | C15: 14 | D15: 14 | G15: 5 | H15: =IF(ISERROR(G15/D15),"",G15/D15) -> 0.3571428571 | I15: 0.0641025641 | J15: 0 | K15: 0 | M15: 2012-12-17 | N15: Het vervolg - De Cupmaten | O15: 0 | P15: 0 | Q15: 1 | R15: 5 | S15: 7 | T15: -2 | U15: 0 | V15: 0 | W15: 0 | X15: 0 | Y15: 0 | Z15: 0 | AA15: 0 | AB15: 1 | AC15: 5 | AD15: 7
B16: Daemen Geert-Jan | C16: 12 | D16: 10 | G16: 10 | H16: =IF(ISERROR(G16/D16),"",G16/D16) -> 1 | I16: 0.1282051282 | J16: 1 | K16: 0 | M16: 2013-01-17 | N16: De Cupmaten - De Brouwerij | O16: 0 | P16: 0 | Q16: 1 | R16: 1 | S16: 10 | T16: -9 | U16: 0 | V16: 0 | W16: 1 | X16: 1 | Y16: 10 | Z16: 0 | AA16: 0 | AB16: 0 | AC16: 0 | AD16: 0
M17: 2013-01-23 | N17: Boomerangs B - De Cupmaten | O17: 1 | P17: 0 | Q17: 0 | R17: 3 | S17: 1 | T17: 2 | U17: 0 | V17: 0 | W17: 0 | X17: 0 | Y17: 0 | Z17: 1 | AA17: 0 | AB17: 0 | AC17: 3 | AD17: 1
C18: 16 | D18: 16 | F18: 0 | G18: =SUM(G4:G16) -> 78 | H18: =IF(ISERROR(G18/D18),"",G18/D18) -> 4.875 | J18: =SUM(J4:J17) -> 3 | K18: =SUM(K4:K17) -> 0 | M18: 2013-02-07 | N18: De Cupmaten - Het Vervolg | O18: 0 | P18: 0 | Q18: 1 | R18: 3 | S18: 6 | T18: -3 | U18: 0 | V18: 0 | W18: 1 | X18: 3 | Y18: 6 | Z18: 0 | AA18: 0 | AB18: 0 | AC18: 0 | AD18: 0
M19: 2013-02-28 | N19: De Cupmaten - The Young Ones | O19: 0 | P19: 0 | Q19: 1 | R19: 4 | S19: 8 | T19: -4 | U19: 0 | V19: 0 | W19: 1 | X19: 4 | Y19: 8 | Z19: 0 | AA19: 0 | AB19: 0 | AC19: 0 | AD19: 0
B20: Beker | M20: 2013-03-06 | N20: Vijfde Wiel - De Cupmaten | O20: 0 | P20: 0 | Q20: 1 | R20: 3 | S20: 9 | T20: -6 | U20: 0 | V20: 0 | W20: 0 | X20: 0 | Y20: 0 | Z20: 0 | AA20: 0 | AB20: 1 | AC20: 3 | AD20: 9
M21: 2013-03-28 | N21: De Cupmaten - De Bergen B | O21: 1 | P21: 0 | Q21: 0 | R21: 10 | S21: 0 | T21: 10 | U21: 1 | V21: 0 | W21: 0 | X21: 10 | Y21: 0 | Z21: 0 | AA21: 0 | AB21: 0 | AC21: 0 | AD21: 0
B22: Speler | C22: Aanwezig | D22: Matchen | E22: Afvaller | F22: Forfait | G22: Doelpunten | H22: Gem doelp. | I22: % aandeel | J22: Geel | K22: Rood | M22: 2013-04-04 | N22: De Cupmaten - HVP United | O22: 0 | P22: 0 | Q22: 1 | R22: 2 | S22: 7 | T22: -5 | U22: 0 | V22: 0 | W22: 1 | X22: 2 | Y22: 7 | Z22: 0 | AA22: 0 | AB22: 0 | AC22: 0 | AD22: 0
B23: De Decker Guy | C23: 2 | D23: 2 | H23: =IF(ISERROR(G23/D23),"",G23/D23) -> 0 | I23: =IF(ISERROR($G23/$G$37),"",$G23/$G$37) -> 0 | J23: 0 | K23: 0 | M23: 2013-04-17 | N23: Supraboys - De Cupmaten | O23: 1 | P23: 0 | Q23: 0 | R23: 4 | S23: 3 | T23: 1 | U23: 0 | V23: 0 | W23: 0 | X23: 0 | Y23: 0 | Z23: 1 | AA23: 0 | AB23: 0 | AC23: 4 | AD23: 3
B24: Lenaerts Jaan | H24: =IF(ISERROR(G24/D24),"",G24/D24) ->  | I24: 0 | J24: 0 | K24: 0
B25: De Decker Koen | C25: 1 | D25: 1 | G25: 1 | H25: 1 | I25: 0.1666666667 | J25: 0 | K25: 0 | M25: Totaal | O25: =SUM(O5:O24) -> 6 | P25: 0 | Q25: 13 | R25: 85 | S25: 107 | T25: -22 | U25: 3 | V25: 0 | W25: 6 | X25: 51 | Y25: 45 | Z25: 3 | AA25: 0 | AB25: 7 | AC25: 34 | AD25: 62
B26: Van Gils Bart | C26: 2 | D26: 2 | H26: 0 | I26: 0 | J26: 0 | K26: 0
B27: Vajda Dierckx Davy | C27: 2 | D27: 2 | G27: 1 | H27: 0.5 | I27: 0.1666666667 | J27: 0 | K27: 0 | N27: Gemiddelde | O27: =IF(ISERROR(O$25/($O$25+$P$25+$Q$25)),"",O$25/($O$25+$P$25+$Q$25)) -> 0.3157894737 | P27: 0 | Q27: 0.6842105263 | R27: 4.473684211 | S27: 5.631578947 | T27: -1.157894737 | U27: =IF(ISERROR(U$25/($U$25+$V$25+$W$25)),"",U$25/($U$25+$V$25+$W$25)) -> 0.3333333333 | V27: =IF(ISERROR(V$25/($U$25+$V$25+$W$25)),"",V$25/($U$25+$V$25+$W$25)) -> 0 | W27: =IF(ISERROR(W$25/($U$25+$V$25+$W$25)),"",W$25/($U$25+$V$25+$W$25)) -> 0.6666666667 | X27: =IF(ISERROR(X$25/($U$25+$V$25+$W$25)),"",X$25/($U$25+$V$25+$W$25)) -> 5.666666667 | Y27: =IF(ISERROR(Y$25/($U$25+$V$25+$W$25)),"",Y$25/($U$25+$V$25+$W$25)) -> 5 | Z27: =IF(ISERROR(Z$25/($Z$25+$AA$25+$AB$25)),"",Z$25/($Z$25+$AA$25+$AB$25)) -> 0.3 | AA27: =IF(ISERROR(AA$25/($Z$25+$AA$25+$AB$25)),"",AA$25/($Z$25+$AA$25+$AB$25)) -> 0 | AB27: =IF(ISERROR(AB$25/($Z$25+$AA$25+$AB$25)),"",AB$25/($Z$25+$AA$25+$AB$25)) -> 0.7 | AC27: =IF(ISERROR(AC$25/($Z$25+$AA$25+$AB$25)),"",AC$25/($Z$25+$AA$25+$AB$25)) -> 3.4 | AD27: =IF(ISERROR(AD$25/($Z$25+$AA$25+$AB$25)),"",AD$25/($Z$25+$AA$25+$AB$25)) -> 6.2
B28: De Decker Hans | C28: 2 | D28: 1 | H28: 0 | I28: 0 | J28: 0 | K28: 0
B29: Daemen Jan | C29: 1 | D29: 1 | H29: 0 | I29: 0 | J29: 0 | K29: 0
B30: Van Dijck Vincent | C30: 1 | D30: 1 | H30: 0 | I30: 0 | J30: 0 | K30: 0
B31: Westhof Jan | C31: 2 | D31: 2 | G31: 1 | H31: 0.5 | I31: 0.1666666667 | J31: 0 | K31: 0
B32: Dom Steven | C32: 2 | D32: 2 | H32: 0 | I32: 0 | J32: 0 | K32: 0
B33: Burreddu Efisio | I33: 0 | J33: 0 | K33: 0
B34: Bloemen Bart | C34: 2 | D34: 2 | G34: 3 | H34: 1.5 | I34: =IF(ISERROR($G34/$G$37),"",$G34/$G$37) -> 0.5 | J34: 0 | K34: 0
B35: Daemen Geert-Jan | C35: 1 | D35: 1 | H35: =IF(ISERROR(G35/D35),"",G35/D35) -> 0 | I35: =IF(ISERROR($G35/$G$37),"",$G35/$G$37) -> 0 | J35: 0 | K35: 0
C37: 3 | D37: 3 | F37: 0 | G37: =SUM(G23:G35) -> 6 | H37: =IF(ISERROR(G37/D37),"",G37/D37) -> 2 | J37: =SUM(J23:J36) -> 0 | K37: =SUM(K23:K36) -> 0
B39: Totaal
B41: Speler | C41: Aanwezig | D41: Matchen | E41: Afvaller | F41: Forfait | G41: Doelpunten | H41: Gem doelp. | I41: % aandeel | J41: Geel | K41: Rood
A42: =$G42-$G42/100+(D42/100) -> 0.07 | B42: De Decker Guy | C42: =C23+C4 -> 8 | D42: 7 | E42: 0 | F42: 0 | G42: 0 | H42: =IF(ISERROR(G42/D42),"",G42/D42) -> 0 | I42: =IF(ISERROR($G42/$G$56),"",$G42/$G$56) -> 0 | J42: =J4+J23 -> 0 | K42: 0
A43: =$G43-$G43/100+(D43/100)-1 -> -1 | B43: Lenaerts Jaan | C43: 0 | D43: 0 | E43: 0 | F43: 0 | G43: 0 | H43: =IF(ISERROR(G43/D43),"",G43/D43) ->  | I43: 0 | J43: 0 | K43: 0
A44: =$G44-$G44/100+(D44/100)-0.01 -> 5.09 | B44: De Decker Koen | C44: 16 | D44: 15 | E44: 1 | F44: 0 | G44: 5 | H44: 0.3333333333 | I44: 0.05952380952 | J44: 0 | K44: 0
A45: =$G45-$G45/100+(D45/100)-0.11 -> 14.88 | B45: Van Gils Bart | C45: 15 | D45: 14 | E45: 1 | F45: 0 | G45: 15 | H45: 1.071428571 | I45: 0.1785714286 | J45: 0 | K45: 0
A46: =$G46-$G46/100+(D46/100)-0.04 -> 8.96 | B46: Vajda Dierckx Davy | C46: 11 | D46: 9 | E46: 1 | F46: 0 | G46: 9 | H46: 1 | I46: 0.1071428571 | J46: 0 | K46: 0
A47: =$G47-$G47/100+(D47/100)-0.09 -> 1.96 | B47: De Decker Hans | C47: 16 | D47: 7 | E47: 1 | F47: 0 | G47: 2 | H47: 0.2857142857 | I47: 0.02380952381 | J47: 1 | K47: 0
A48: =$G48-$G48/100+(D48/100)-0.08 -> 0 | B48: Daemen Jan | C48: 12 | D48: 8 | E48: 4 | F48: 0 | G48: 0 | H48: 0 | I48: 0 | J48: 0 | K48: 0
A49: =$G49-$G49/100+(D49/100)-0.07 -> 0.04 | B49: Van Dijck Vincent | C49: 11 | D49: 11 | E49: 0 | F49: 0 | G49: 0 | H49: 0 | I49: 0 | J49: 0 | K49: 0 | R49: Forfait
A50: =$G50-$G50/100+(D50/100) -> 11.06 | B50: Westhof Jan | C50: 17 | D50: 17 | E50: 0 | F50: 0 | G50: 11 | H50: 0.6470588235 | I50: 0.130952381 | J50: 0 | K50: 0
A51: =$G51-$G51/100+(D51/100) -> 17.96 | B51: Dom Steven | C51: 16 | D51: 14 | E51: 0 | F51: 0 | G51: 18 | H51: 1.285714286 | I51: 0.2142857143 | J51: 1 | K51: 0
A52: =$G52-$G52/100+(D52/100) -> 5.99 | B52: Burreddu Efisio | C52: =C33+C14 -> 6 | D52: =D33+D14 -> 5 | E52: =E33+E14 -> 1 | F52: =F33+F14 -> 0 | G52: =G33+G14 -> 6 | H52: 1.2 | I52: 0.07142857143 | J52: =J33+J14 -> 0 | K52: =K33+K14 -> 0
A53: =$G53-$G53/100+(D53/100) -> 8.08 | B53: Bloemen Bart | C53: =C34+C15 -> 16 | D53: 16 | E53: 0 | F53: 0 | G53: 8 | H53: 0.5 | I53: 0.09523809524 | J53: =J34+J15 -> 0 | K53: =K34+K15 -> 0
A54: =$G54-$G54/100+(D54/100) -> 10.01 | B54: Daemen Geert-Jan | C54: =C35+C16 -> 13 | D54: 11 | E54: 0 | F54: 0 | G54: 10 | H54: =IF(ISERROR(G54/D54),"",G54/D54) -> 0.9090909091 | I54: 0.119047619 | J54: =J16+J35 -> 1 | K54: 0
C56: =C37+C18 -> 19 | D56: =D18+D37 -> 19 | F56: =F18+F37 -> 0 | G56: =SUM(G42:G54) -> 84 | H56: =IF(ISERROR(G56/D56),"",G56/D56) -> 4.421052632 | J56: =SUM(J42:J55) -> 3 | K56: =SUM(K42:K55) -> 0
B58: Totaal
B60: Speler | C60: Aanwezig | D60: Matchen | E60: Afvaller | F60: Forfait | G60: Doelpunten | H60: Gem doelp. | I60: % aandeel | J60: Geel | K60: Rood | M60: Eindklassement
A61: =LARGE($A$42:$A$54,ROW(A1)) -> 17.96 | B61: =VLOOKUP($A61,$A$42:$K$54,COLUMN(B1),FALSE) -> Dom Steven | C61: 16 | D61: 14 | E61: 0 | F61: 0 | G61: 18 | H61: 1.285714286 | I61: 0.2142857143 | J61: 1 | K61: 0
A62: 14.88 | B62: =VLOOKUP($A62,$A$42:$K$54,COLUMN(B2),FALSE) -> Van Gils Bart | C62: =VLOOKUP($A62,$A$42:$K$54,COLUMN(C2),FALSE) -> 15 | D62: 14 | E62: 1 | F62: 0 | G62: 15 | H62: 1.071428571 | I62: 0.1785714286 | J62: 0 | K62: 0 | N62: Ploeg | O62: Winst | P62: Gelijk | Q62: Verlies | R62: Voor | S62: Tegen | T62: DS | U62: Punten
A63: 11.06 | B63: Westhof Jan | C63: =VLOOKUP($A63,$A$42:$K$54,COLUMN(C3),FALSE) -> 17 | D63: 17 | E63: 0 | F63: 0 | G63: 11 | H63: 0.6470588235 | I63: 0.130952381 | J63: 0 | K63: 0 | M63: 1 | N63: De Brouwerij | O63: 13 | P63: 3 | Q63: 0 | R63: 155 | S63: 42 | T63: 113 | U63: 42
A64: 10.01 | B64: Daemen Geert-Jan | C64: =VLOOKUP($A64,$A$42:$K$54,COLUMN(C4),FALSE) -> 13 | D64: 11 | E64: 0 | F64: 0 | G64: 10 | H64: 0.9090909091 | I64: 0.119047619 | J64: 1 | K64: 0 | M64: 2 | N64: HVP United | O64: 13 | P64: 2 | Q64: 1 | R64: 142 | S64: 38 | T64: 104 | U64: 41
A65: 8.96 | B65: Vajda Dierckx Davy | C65: =VLOOKUP($A65,$A$42:$K$54,COLUMN(C5),FALSE) -> 11 | D65: 9 | E65: 1 | F65: 0 | G65: 9 | H65: 1 | I65: 0.1071428571 | J65: 0 | K65: 0 | M65: 3 | N65: The Young Ones | O65: 12 | P65: 0 | Q65: 4 | R65: 117 | S65: 57 | T65: 60 | U65: 36
A66: 8.08 | B66: Bloemen Bart | C66: =VLOOKUP($A66,$A$42:$K$54,COLUMN(C6),FALSE) -> 16 | D66: 16 | E66: 0 | F66: 0 | G66: 8 | H66: 0.5 | I66: 0.09523809524 | J66: 0 | K66: 0 | M66: 4 | N66: Het Vervolg | O66: 9 | P66: 2 | Q66: 5 | R66: 124 | S66: 87 | T66: 37 | U66: 29
A67: 5.99 | B67: Burreddu Efisio | C67: =VLOOKUP($A67,$A$42:$K$54,COLUMN(C7),FALSE) -> 6 | D67: 5 | E67: 1 | F67: 0 | G67: 6 | H67: 1.2 | I67: 0.07142857143 | J67: 0 | K67: 0 | M67: 5 | N67: Vijfde Wiel | O67: 7 | P67: 1 | Q67: 8 | R67: 84 | S67: 93 | T67: -9 | U67: 22
A68: 5.09 | B68: De Decker Koen | C68: =VLOOKUP($A68,$A$42:$K$54,COLUMN(C8),FALSE) -> 16 | D68: 15 | E68: 1 | F68: 0 | G68: 5 | H68: 0.3333333333 | I68: 0.05952380952 | J68: 0 | K68: 0 | M68: 6 | N68: De Cupmaten | O68: 6 | P68: 0 | Q68: 10 | R68: 79 | S68: 86 | T68: -7 | U68: 18
A69: 1.96 | B69: De Decker Hans | C69: =VLOOKUP($A69,$A$42:$K$54,COLUMN(C9),FALSE) -> 16 | D69: 7 | E69: 1 | F69: 0 | G69: 2 | H69: 0.2857142857 | I69: 0.02380952381 | J69: 1 | K69: 0 | M69: 7 | N69: Supraboys | O69: 4 | P69: 0 | Q69: 12 | R69: 69 | S69: 107 | T69: -38 | U69: 12
A70: 0.07 | B70: De Decker Guy | C70: =VLOOKUP($A70,$A$42:$K$54,COLUMN(C10),FALSE) -> 8 | D70: 7 | E70: 0 | F70: 0 | G70: 0 | H70: 0 | I70: 0 | J70: 0 | K70: 0 | M70: 8 | N70: Boomerangs B | O70: 2 | P70: 0 | Q70: 14 | R70: 41 | S70: 248 | T70: -207 | U70: 6
A71: 0.04 | B71: Van Dijck Vincent | C71: =VLOOKUP($A71,$A$42:$K$54,COLUMN(C11),FALSE) -> 11 | D71: 11 | E71: 0 | F71: 0 | G71: 0 | H71: 0 | I71: 0 | J71: 0 | K71: 0 | M71: 9 | N71: De Bergen B | O71: 1 | P71: 2 | Q71: 13 | R71: 52 | S71: 105 | T71: -53 | U71: 5
A72: 0 | B72: Daemen Jan | C72: =VLOOKUP($A72,$A$42:$K$54,COLUMN(C12),FALSE) -> 12 | D72: 8 | E72: 4 | F72: 0 | G72: 0 | H72: 0 | I72: 0 | J72: 0 | K72: 0
A73: -1 | B73: Lenaerts Jaan | C73: 0 | D73: 0 | E73: 0 | F73: 0 | G73: 0 | I73: 0 | J73: 0 | K73: 0
C75: =C56 -> 19 | D75: =D56 -> 19 | F75: =F56 -> 0 | G75: =G56 -> 84 | H75: =IF(ISERROR(G75/D75),"",G75/D75) -> 4.421052632 | J75: =J56 -> 3 | K75: =K56 -> 0

Sheet Seizoen 2013-2014
B1: Competitie | M1: Wedstrijden
U2: Thuis | Z2: Uit
B3: Speler | C3: Aanwezig | D3: Matchen | E3: Afvaller | F3: Forfait | G3: Doelpunten | H3: Gem doelp. | I3: % aandeel | J3: Geel | K3: Rood | M3: Datum | N3: Wedstrijd | O3: Winst | P3: Gelijk | Q3: Verlies | R3: Voor | S3: Tegen | T3: DS | U3: Winst | V3: Gelijk | W3: Verlies | X3: Voor | Y3: Tegen | Z3: Winst | AA3: Gelijk | AB3: Verlies | AC3: Voor | AD3: Tegen
B4: De Decker Guy | C4: 8 | D4: 4 | H4: =IF(ISERROR(G4/D4),"",G4/D4) -> 0 | I4: =IF(ISERROR($G4/$G$17),"",$G4/$G$17) -> 0 | J4: 0 | K4: 0 | M4: 2013-09-20 | N4: Verschilboys B - De Cupmaten | O4: =U4+Z4 -> 0 | P4: 0 | Q4: =$W4+$AB4 -> 1 | R4: =$X4+$AC4 -> 2 | S4: =$Y4+$AD4 -> 4 | T4: =$R4-$S4 -> -2 | U4: 0 | V4: 0 | W4: 0 | X4: 0 | Y4: 0 | Z4: 0 | AA4: 0 | AB4: 1 | AC4: 2 | AD4: 4
B5: De Decker Koen | C5: 13 | D5: 12 | E5: 1 | G5: 1 | H5: =IF(ISERROR(G5/D5),"",G5/D5) -> 0.08333333333 | I5: 0.01538461538 | J5: 0 | K5: 0 | M5: 2013-09-26 | N5: De Cupmaten - Rima Sportif B | O5: =U5+Z5 -> 0 | P5: =V5+AA5 -> 1 | Q5: 0 | R5: 3 | S5: 3 | T5: 0 | U5: =AA5+AF37 -> 0 | V5: 1 | W5: 0 | X5: 3 | Y5: 3 | Z5: 0 | AA5: =AG5+AL5 -> 0 | AB5: 0 | AC5: 0 | AD5: 0
B6: Van Gils Bart | C6: 13 | D6: 12 | G6: 8 | H6: =IF(ISERROR(G6/D6),"",G6/D6) -> 0.6666666667 | I6: 0.1230769231 | J6: 0 | K6: 0 | M6: 2013-09-30 | N6: Roosen - De Cupmaten (BK) | O6: 1 | P6: 0 | Q6: 0 | R6: 6 | S6: 1 | T6: 5 | U6: =AA6+AF38 -> 0 | V6: =AB6+AG6 -> 0 | W6: 0 | X6: 0 | Y6: 0 | Z6: 1 | AA6: 0 | AB6: 0 | AC6: 6 | AD6: 1
B7: Vajda Dierckx Davy | C7: 10 | D7: 8 | E7: 1 | G7: 3 | H7: =IF(ISERROR(G7/D7),"",G7/D7) -> 0.375 | I7: 0.04615384615 | J7: 1 | K7: 0 | M7: 2013-10-17 | N7: De Cupmaten - Supraboys | O7: 1 | P7: 0 | Q7: 0 | R7: 3 | S7: 2 | T7: 1 | U7: 1 | V7: 0 | W7: 0 | X7: 3 | Y7: 2 | Z7: 0 | AA7: 0 | AB7: 0 | AC7: 0 | AD7: 0
B8: De Decker Hans | C8: 15 | D8: 14 | G8: 8 | H8: 0.5714285714 | I8: 0.1230769231 | J8: 0 | K8: 0 | M8: 2013-10-30 | N8: Boomerangs B - De Cupmaten | O8: 1 | P8: 0 | Q8: 0 | R8: 10 | S8: 4 | T8: 6 | U8: =AA8+AF40 -> 0 | V8: 0 | W8: 0 | X8: 0 | Y8: 0 | Z8: 1 | AA8: 0 | AB8: 0 | AC8: 10 | AD8: 4 | AE8: * 1 owngoal
B9: Daemen Jan | C9: 12 | D9: 6 | E9: 2 | H9: 0 | I9: 0 | J9: 0 | K9: 0 | M9: 2013-11-06 | N9: A.S. Fortuna - De Cupmaten | O9: 1 | P9: 0 | Q9: 0 | R9: 6 | S9: 1 | T9: 5 | U9: =AA9+AF41 -> 0 | V9: 0 | W9: 0 | X9: 0 | Y9: 0 | Z9: 1 | AA9: 0 | AB9: 0 | AC9: 6 | AD9: 1 | AE9: * 1 owngoal
B10: Van Dijck Vincent | C10: 10 | D10: 9 | G10: 1 | H10: 0.1111111111 | I10: 0.01538461538 | J10: 0 | K10: 0 | M10: 2013-11-14 | N10: De Cupmaten - Roosen | O10: 1 | P10: 0 | Q10: 0 | R10: 3 | S10: 1 | T10: 2 | U10: 1 | V10: 0 | W10: 0 | X10: 3 | Y10: 1 | Z10: 0 | AA10: 0 | AB10: 0 | AC10: 0 | AD10: 0 | AE10: * 1 owngoal
B11: Westhof Jan | C11: 15 | D11: 14 | E11: 1 | G11: 17 | H11: 1.214285714 | I11: 0.2615384615 | J11: 1 | K11: 0 | M11: 2013-11-20 | N11: Youngsters - De Cupmaten | O11: 0 | P11: 0 | Q11: 1 | R11: 3 | S11: 6 | T11: -3 | U11: =AA11+AF43 -> 0 | V11: 1 | W11: 0 | X11: 0 | Y11: 0 | Z11: 0 | AA11: 0 | AB11: 1 | AC11: 3 | AD11: 6
B12: Dom Steven | C12: 16 | D12: 16 | G12: 20 | H12: =IF(ISERROR(G12/D12),"",G12/D12) -> 1.25 | I12: 0.3076923077 | J12: 0 | K12: 0 | M12: 2013-11-28 | N12: De Cupmaten -Lierseweg (BK) | O12: 0 | P12: 0 | Q12: 1 | R12: 5 | S12: 6 | T12: -1 | U12: =AA12+AF44 -> 0 | V12: 1 | W12: 0 | X12: 0 | Y12: 0 | Z12: 0 | AA12: 0 | AB12: 1 | AC12: 5 | AD12: 6
B13: Bloemen Bart | C13: 7 | D13: 7 | G13: 1 | H13: =IF(ISERROR(G13/D13),"",G13/D13) -> 0.1428571429 | I13: 0.01538461538 | J13: 1 | K13: 0 | M13: 2013-12-02 | N13: Roma - De Cupmaten (BK) | O13: 0 | P13: 0 | Q13: 1 | R13: 3 | S13: 5 | T13: -2 | U13: 0 | V13: 0 | W13: 0 | X13: 0 | Y13: 0 | Z13: 0 | AA13: 0 | AB13: 1 | AC13: 3 | AD13: 5
B14: Daemen Geert-Jan | C14: 14 | D14: 12 | E14: 1 | G14: 6 | H14: =IF(ISERROR(G14/D14),"",G14/D14) -> 0.5 | I14: 0.09230769231 | J14: 0 | K14: 0 | M14: 2013-12-12 | N14: De Cupmaten - Vijfde Wiel | O14: 0 | P14: 0 | Q14: 1 | R14: 1 | S14: 5 | T14: -4 | U14: =AA14+AF46 -> 0 | V14: =AB14+AG13 -> 0 | W14: 1 | X14: 1 | Y14: 5 | Z14: 0 | AA14: =AG13+AL13 -> 0 | AB14: =AH13+AM13 -> 0 | AC14: 0 | AD14: 0
B15: Daemen Martijn | C15: 3 | D15: 3 | H15: =IF(ISERROR(G15/D15),"",G15/D15) -> 0 | I15: 0 | J15: 0 | K15: 0 | M15: 2014-01-09 | N15: De Cupmaten - De Fuik (BK) | O15: =U15+Z15 -> 0 | P15: 1 | Q15: =$W15+$AB15 -> 0 | R15: =$X15+$AC15 -> 2 | S15: =$Y15+$AD15 -> 2 | T15: =$R15-$S15 -> 0 | U15: =AA15+AF47 -> 0 | V15: 1 | W15: 0 | X15: 2 | Y15: 2 | Z15: 0 | AA15: =AG14+AL14 -> 0 | AB15: =AH14+AM14 -> 0 | AC15: 0 | AD15: 0 | AE15: * 1 owngoal
M16: 2014-01-16 | N16: De Cupmaten - Verschilboys B | O16: 0 | P16: 0 | Q16: 1 | R16: 4 | S16: 7 | T16: -3 | U16: =AA16+AF48 -> 0 | V16: =AB16+AG16 -> 0 | W16: 1 | X16: 4 | Y16: 7 | Z16: 0 | AA16: =AG16+AL16 -> 0 | AB16: 0 | AC16: 0 | AD16: 0
C17: 16 | D17: 16 | F17: 0 | G17: =SUM(G4:G14) -> 65 | H17: =IF(ISERROR(G17/D17),"",G17/D17) -> 4.0625 | J17: =SUM(J4:J16) -> 3 | K17: =SUM(K4:K16) -> 0 | M17: 2014-01-29 | N17: Rima Sportif B - De Cupmaten | O17: 1 | P17: 0 | Q17: 0 | R17: 8 | S17: 3 | T17: 5 | U17: =AA17+AF49 -> 0 | V17: 0 | W17: 0 | X17: 0 | Y17: 0 | Z17: 1 | AA17: 0 | AB17: 0 | AC17: 8 | AD17: 3
M18: 2014-02-05 | N18: Supraboys - De Cupmaten | O18: 0 | P18: 0 | Q18: 1 | R18: 5 | S18: 6 | T18: -1 | U18: =AA18+AF51 -> 0 | V18: 1 | W18: 0 | X18: 0 | Y18: 0 | Z18: 0 | AA18: 0 | AB18: 1 | AC18: 5 | AD18: 6
B19: Beker | M19: 2014-03-03 | N19: Roosen - De Cupmaten | O19: 1 | P19: 0 | Q19: 0 | R19: 3 | S19: 2 | T19: 1 | U19: 0 | V19: 0 | W19: 0 | X19: 0 | Y19: 0 | Z19: 1 | AA19: 0 | AB19: 0 | AC19: 3 | AD19: 2
M20: 2014-03-13 | N20: De Cupmaten - Boomerangs B | O20: 1 | P20: 0 | Q20: 0 | R20: 7 | S20: 1 | T20: 6 | U20: 1 | V20: 0 | W20: 0 | X20: 7 | Y20: 1 | Z20: 0 | AA20: 0 | AB20: 0 | AC20: 0 | AD20: 0
B21: Speler | C21: Aanwezig | D21: Matchen | E21: Afvaller | F21: Forfait | G21: Doelpunten | H21: Gem doelp. | I21: % aandeel | J21: Geel | K21: Rood | M21: 2014-03-19 | N21: Vijfde Wiel - De Cupmaten | O21: 0 | P21: 0 | Q21: 1 | R21: 3 | S21: 5 | T21: -2 | U21: 0 | V21: 1 | W21: 0 | X21: 0 | Y21: 0 | Z21: 0 | AA21: 0 | AB21: 1 | AC21: 3 | AD21: 5
B22: De Decker Guy | C22: 3 | D22: 2 | H22: =IF(ISERROR(G22/D22),"",G22/D22) -> 0 | I22: =IF(ISERROR($G22/$G$34),"",$G22/$G$34) -> 0 | J22: 0 | K22: 0 | M22: 2014-04-03 | N22: De Cupmaten - A.S. Fortuna | O22: 0 | P22: 0 | Q22: 1 | R22: 3 | S22: 6 | T22: -3 | U22: 0 | V22: 0 | W22: 1 | X22: 3 | Y22: 6 | Z22: 0 | AA22: 0 | AB22: 0 | AC22: 0 | AD22: 0
B23: De Decker Koen | C23: 4 | D23: 4 | H23: =IF(ISERROR(G23/D23),"",G23/D23) -> 0 | I23: 0 | J23: 0 | K23: 0 | M23: 2014-04-17 | N23: De Cupmaten - Youngsters | O23: =U23+Z23 -> 0 | P23: =V23+AA23 -> 0 | Q23: 1 | R23: 4 | S23: 7 | T23: -3 | U23: 0 | V23: 0 | W23: 1 | X23: 4 | Y23: 7 | Z23: 0 | AA23: 0 | AB23: 0 | AC23: 0 | AD23: 0
B24: Van Gils Bart | C24: 4 | D24: 3 | E24: 1 | G24: 2 | H24: 0.6666666667 | I24: 0.1333333333 | J24: 1 | K24: 0 | M24: Totaal | O24: =SUM(O4:O23) -> 8 | P24: 2 | Q24: 10 | R24: 84 | S24: 77 | T24: 7 | U24: 3 | V24: 6 | W24: 4 | X24: 30 | Y24: 34 | Z24: 5 | AA24: 0 | AB24: 6 | AC24: 54 | AD24: 43
B25: Vajda Dierckx Davy | C25: 3 | D25: 3 | G25: 3 | H25: 1 | I25: 0.2 | J25: 0 | K25: 0
B26: De Decker Hans | C26: 4 | D26: 3 | E26: 1 | H26: 0 | I26: 0 | J26: 0 | K26: 0 | N26: Gemiddelde | O26: =IF(ISERROR(O$24/($O$24+$P$24+$Q$24)),"",O$24/($O$24+$P$24+$Q$24)) -> 0.4 | P26: 0.1 | Q26: 0.5 | R26: 4.2 | S26: 3.85 | T26: 0.35 | U26: =IF(ISERROR(U$24/($U$24+$V$24+$W$24)),"",U$24/($U$24+$V$24+$W$24)) -> 0.2307692308 | V26: =IF(ISERROR(V$24/($U$24+$V$24+$W$24)),"",V$24/($U$24+$V$24+$W$24)) -> 0.4615384615 | W26: =IF(ISERROR(W$24/($U$24+$V$24+$W$24)),"",W$24/($U$24+$V$24+$W$24)) -> 0.3076923077 | X26: =IF(ISERROR(X$24/($U$24+$V$24+$W$24)),"",X$24/($U$24+$V$24+$W$24)) -> 2.307692308 | Y26: =IF(ISERROR(Y$24/($U$24+$V$24+$W$24)),"",Y$24/($U$24+$V$24+$W$24)) -> 2.615384615 | Z26: =IF(ISERROR(Z$24/($Z$24+$AA$24+$AB$24)),"",Z$24/($Z$24+$AA$24+$AB$24)) -> 0.4545454545 | AA26: =IF(ISERROR(AA$24/($Z$24+$AA$24+$AB$24)),"",AA$24/($Z$24+$AA$24+$AB$24)) -> 0 | AB26: =IF(ISERROR(AB$24/($Z$24+$AA$24+$AB$24)),"",AB$24/($Z$24+$AA$24+$AB$24)) -> 0.5454545455 | AC26: =IF(ISERROR(AC$24/($Z$24+$AA$24+$AB$24)),"",AC$24/($Z$24+$AA$24+$AB$24)) -> 4.909090909 | AD26: =IF(ISERROR(AD$24/($Z$24+$AA$24+$AB$24)),"",AD$24/($Z$24+$AA$24+$AB$24)) -> 3.909090909
B27: Daemen Jan | C27: 2 | D27: 1 | E27: 1 | H27: 0 | I27: 0 | J27: 0 | K27: 0
B28: Van Dijck Vincent | C28: 2 | D28: 2 | H28: 0 | I28: 0 | J28: 0 | K28: 0
B29: Westhof Jan | C29: 4 | D29: 4 | G29: 3 | H29: 0.75 | I29: 0.2 | J29: 0 | K29: 0
B30: Dom Steven | C30: 4 | D30: 4 | G30: 5 | H30: 1.25 | I30: 0.3333333333 | J30: 1 | K30: 0
B31: Bloemen Bart | C31: 1 | D31: 1 | E31: 1 | H31: 0 | I31: 0 | J31: 0 | K31: 0
B32: Daemen Geert-Jan | C32: 4 | D32: 4 | G32: 2 | H32: =IF(ISERROR(G32/D32),"",G32/D32) -> 0.5 | I32: 0.1333333333 | J32: 0 | K32: 0
C34: 4 | D34: 4 | F34: 0 | G34: =SUM(G22:G32) -> 15 | H34: =IF(ISERROR(G34/D34),"",G34/D34) -> 3.75 | J34: =SUM(J22:J33) -> 2 | K34: =SUM(K22:K33) -> 0
B36: Totaal
B38: Speler | C38: Aanwezig | D38: Matchen | E38: Afvaller | F38: Forfait | G38: Doelpunten | H38: Gem doelp. | I38: % aandeel | J38: Geel | K38: Rood
A39: =$G39-$G39/100+(D39/100)-0.001 -> 0.059 | B39: De Decker Guy | C39: =C22+C4 -> 11 | D39: 6 | E39: 0 | F39: 0 | G39: 0 | H39: =IF(ISERROR(G39/D39),"",G39/D39) -> 0 | I39: =IF(ISERROR($G39/$G$52),"",$G39/$G$52) -> 0 | J39: =J4+J22 -> 0 | K39: 0
A40: =$G40-$G40/100+(D40/100)-0.02 -> 1.13 | B40: De Decker Koen | C40: 17 | D40: 16 | E40: 1 | F40: 0 | G40: 1 | H40: =IF(ISERROR(G40/D40),"",G40/D40) -> 0.0625 | I40: 0.0125 | J40: 0 | K40: 0
A41: =$G41-$G41/100+(D41/100)-0.11 -> 9.94 | B41: Van Gils Bart | C41: 17 | D41: 15 | E41: 1 | F41: 0 | G41: 10 | H41: 0.6666666667 | I41: 0.125 | J41: 1 | K41: 0
A42: =$G42-$G42/100+(D42/100)-0.04 -> 6.01 | B42: Vajda Dierckx Davy | C42: 13 | D42: 11 | E42: 1 | F42: 0 | G42: 6 | H42: 0.5454545455 | I42: 0.075 | J42: 1 | K42: 0
A43: =$G43-$G43/100+(D43/100)-0.09 -> 8 | B43: De Decker Hans | C43: 19 | D43: 17 | E43: 1 | F43: 0 | G43: 8 | H43: 0.4705882353 | I43: 0.1 | J43: 0 | K43: 0
A44: =$G44-$G44/100+(D44/100)-0.08 -> -0.01 | B44: Daemen Jan | C44: 14 | D44: 7 | E44: 3 | F44: 0 | G44: 0 | H44: 0 | I44: 0 | J44: 0 | K44: 0
A45: =$G45-$G45/100+(D45/100)-0.07 -> 1.03 | B45: Van Dijck Vincent | C45: 12 | D45: 11 | E45: 0 | F45: 0 | G45: 1 | H45: 0.09090909091 | I45: 0.0125 | J45: 0 | K45: 0
A46: =$G46-$G46/100+(D46/100)-0.0001 -> 19.9799 | B46: Westhof Jan | C46: 19 | D46: 18 | E46: 1 | F46: 0 | G46: 20 | H46: 1.111111111 | I46: 0.25 | J46: 1 | K46: 0
A47: =$G47-$G47/100+(D47/100) -> 24.95 | B47: Dom Steven | C47: 20 | D47: 20 | E47: 0 | F47: 0 | G47: 25 | H47: 1.25 | I47: 0.3125 | J47: 1 | K47: 0
A48: =$G48-$G48/100+(D48/100) -> 1.07 | B48: Bloemen Bart | C48: 8 | D48: 8 | E48: 1 | F48: 0 | G48: 1 | H48: 0.125 | I48: 0.0125 | J48: =J31+J13 -> 1 | K48: =K31+K13 -> 0
A49: =$G49-$G49/100+(D49/100) -> 8.08 | B49: Daemen Geert-Jan | C49: 18 | D49: 16 | E49: 1 | F49: 0 | G49: 8 | H49: =IF(ISERROR(G49/D49),"",G49/D49) -> 0.5 | I49: 0.1 | J49: =J14+J32 -> 0 | K49: =K14+K32 -> 0
A50: =$G50-$G50/100+(D50/100) -> 0.03 | B50: Daemen Martijn | C50: =C15 -> 3 | D50: =D15 -> 3 | E50: =E15 -> 0 | F50: =F15 -> 0 | G50: =G15 -> 0 | H50: =IF(ISERROR(G50/D50),"",G50/D50) -> 0 | I50: 0 | J50: =J15 -> 0 | K50: =K15 -> 0
C52: =C34+C17 -> 20 | D52: =D17+D34 -> 20 | F52: =F17+F34 -> 0 | G52: =SUM(G39:G50) -> 80 | H52: =IF(ISERROR(G52/D52),"",G52/D52) -> 4 | J52: =SUM(J39:J51) -> 5 | K52: =SUM(K39:K51) -> 0
B54: Totaal | M54: Eindklassement
B56: Speler | C56: Aanwezig | D56: Matchen | E56: Afvaller | F56: Forfait | G56: Doelpunten | H56: Gem doelp. | I56: % aandeel | J56: Geel | K56: Rood | N56: Ploeg | O56: Winst | P56: Gelijk | Q56: Verlies | R56: Voor | S56: Tegen | T56: DS | U56: Punten
A57: =LARGE($A$39:$A$50,ROW(A1)) -> 24.95 | B57: =VLOOKUP($A57,$A$39:$K$50,COLUMN(B1),FALSE) -> Dom Steven | C57: 20 | D57: 20 | E57: 0 | F57: 0 | G57: 25 | H57: 1.25 | I57: 0.3125 | J57: 1 | K57: 0 | M57: 1 | N57: Verschilboys B | O57: 14 | P57: 1 | Q57: 1 | R57: 125 | S57: 36 | T57: =R57-S57 -> 89 | U57: 43
A58: =LARGE($A$39:$A$50,ROW(A2)) -> 19.9799 | B58: =VLOOKUP($A58,$A$39:$K$50,COLUMN(B2),FALSE) -> Westhof Jan | C58: 19 | D58: 18 | E58: 1 | F58: 0 | G58: 20 | H58: 1.111111111 | I58: 0.25 | J58: 1 | K58: 0 | M58: 2 | N58: Youngsters | O58: 12 | P58: 0 | Q58: 4 | R58: 138 | S58: 62 | T58: =R58-S58 -> 76 | U58: 36
A59: 9.94 | B59: =VLOOKUP($A59,$A$39:$K$50,COLUMN(B3),FALSE) -> Van Gils Bart | C59: 17 | D59: 15 | E59: 1 | F59: 0 | G59: 10 | H59: 0.6666666667 | I59: 0.125 | J59: 1 | K59: 0 | M59: 3 | N59: Supraboys | O59: 11 | P59: 1 | Q59: 4 | R59: 87 | S59: 77 | T59: 10 | U59: 34
A60: 8.08 | B60: =VLOOKUP($A60,$A$39:$K$50,COLUMN(B4),FALSE) -> Daemen Geert-Jan | C60: 18 | D60: 16 | E60: 1 | F60: 0 | G60: 8 | H60: 0.5 | I60: 0.1 | J60: 0 | K60: 0 | M60: 4 | N60: Vijfde Wiel | O60: 9 | P60: 1 | Q60: 6 | R60: 89 | S60: 68 | T60: 21 | U60: 28
A61: 8 | B61: =VLOOKUP($A61,$A$39:$K$50,COLUMN(B5),FALSE) -> De Decker Hans | C61: 19 | D61: 17 | E61: 1 | F61: 0 | G61: 8 | H61: 0.4705882353 | I61: 0.1 | J61: 0 | K61: 0 | M61: 5 | N61: De Cupmaten | O61: 7 | P61: 1 | Q61: 8 | R61: 68 | S61: 63 | T61: 5 | U61: 22
A62: 6.01 | B62: =VLOOKUP($A62,$A$39:$K$50,COLUMN(B6),FALSE) -> Vajda Dierckx Davy | C62: 13 | D62: 11 | E62: 1 | F62: 0 | G62: 6 | H62: 0.5454545455 | I62: 0.075 | J62: 1 | K62: 0 | M62: 6 | N62: Rima Sportif B | O62: 6 | P62: 1 | Q62: 9 | R62: 55 | S62: 68 | T62: -13 | U62: 19
A63: 1.13 | B63: =VLOOKUP($A63,$A$39:$K$50,COLUMN(B7),FALSE) -> De Decker Koen | C63: 17 | D63: 16 | E63: 1 | F63: 0 | G63: 1 | H63: 0.0625 | I63: 0.0125 | J63: 0 | K63: 0 | M63: 7 | N63: A.S. Fortuna | O63: 5 | P63: 1 | Q63: 10 | R63: 81 | S63: 106 | T63: -25 | U63: 16
A64: 1.07 | B64: =VLOOKUP($A64,$A$39:$K$50,COLUMN(B8),FALSE) -> Bloemen Bart | C64: 8 | D64: 8 | E64: 1 | F64: 0 | G64: 1 | H64: 0.125 | I64: 0.0125 | J64: 1 | K64: 0 | M64: 8 | N64: Roosen | O64: 3 | P64: 0 | Q64: 13 | R64: 53 | S64: 112 | T64: -59 | U64: 9
A65: 1.03 | B65: =VLOOKUP($A65,$A$39:$K$50,COLUMN(B9),FALSE) -> Van Dijck Vincent | C65: 12 | D65: 11 | E65: 0 | F65: 0 | G65: 1 | H65: 0.09090909091 | I65: 0.0125 | J65: 0 | K65: 0 | M65: 9 | N65: Boomerangs B | O65: 2 | P65: 0 | Q65: 14 | R65: 36 | S65: 140 | T65: -104 | U65: 6
A66: 0.059 | B66: =VLOOKUP($A66,$A$39:$K$50,COLUMN(B10),FALSE) -> De Decker Guy | C66: 11 | D66: 6 | E66: 0 | F66: 0 | G66: 0 | H66: 0 | I66: 0 | J66: 0 | K66: 0
A67: 0.03 | B67: =VLOOKUP($A67,$A$39:$K$50,COLUMN(B11),FALSE) -> Daemen Martijn | C67: 3 | D67: 3 | E67: 0 | F67: 0 | G67: 0 | H67: 0 | I67: 0 | J67: 0 | K67: 0
A68: -0.01 | B68: =VLOOKUP($A68,$A$39:$K$50,COLUMN(B12),FALSE) -> Daemen Jan | C68: 14 | D68: 7 | E68: 3 | F68: 0 | G68: 0 | H68: 0 | I68: 0 | J68: 0 | K68: 0
C70: =C52 -> 20 | D70: =D52 -> 20 | F70: =F52 -> 0 | G70: =G52 -> 80 | H70: =IF(ISERROR(G70/D70),"",G70/D70) -> 4 | J70: =J52 -> 5 | K70: =K52 -> 0

Sheet Seizoen 2014-2015
B1: Competitie | M1: Wedstrijden
U2: Thuis | Z2: Uit
B3: Speler | C3: Aanwezig | D3: Matchen | E3: Afvaller | F3: Forfait | G3: Doelpunten | H3: Gem doelp. | I3: % aandeel | J3: Geel | K3: Rood | M3: Datum | N3: Wedstrijd | O3: Winst | P3: Gelijk | Q3: Verlies | R3: Voor | S3: Tegen | T3: DS | U3: Winst | V3: Gelijk | W3: Verlies | X3: Voor | Y3: Tegen | Z3: Winst | AA3: Gelijk | AB3: Verlies | AC3: Voor | AD3: Tegen
B4: De Decker Guy | C4: 7 | D4: 4 | G4: 0 | H4: =IF(ISERROR(G4/D4),"",G4/D4) -> 0 | I4: =IF(ISERROR($G4/$G$17),"",$G4/$G$17) -> 0 | J4: 0 | K4: 0 | M4: 2014-09-11 | N4: De Cupmaten - Roosen | O4: =U4+Z4 -> 1 | P4: 0 | Q4: =$W4+$AB4 -> 0 | R4: =$X4+$AC4 -> 2 | S4: =$Y4+$AD4 -> 0 | T4: =$R4-$S4 -> 2 | U4: 1 | V4: 0 | W4: 0 | X4: 2 | Y4: 0 | Z4: 0 | AA4: 0 | AB4: 0 | AC4: 0 | AD4: 0
B5: De Decker Koen | C5: 11 | D5: 10 | G5: 4 | H5: =IF(ISERROR(G5/D5),"",G5/D5) -> 0.4 | I5: 0.1 | J5: 0 | K5: 0 | M5: 2014-09-15 | N5: White Socks A - De Cupmaten | O5: =U5+Z5 -> 0 | P5: =V5+AA5 -> 0 | Q5: 1 | R5: 4 | S5: 10 | T5: -6 | U5: =AA5+AF38 -> 0 | V5: 0 | W5: 0 | X5: 0 | Y5: 0 | Z5: 0 | AA5: =AG5+AL5 -> 0 | AB5: 1 | AC5: 4 | AD5: 10
B6: Van Gils Bart | C6: 7 | D6: 4 | G6: 2 | H6: =IF(ISERROR(G6/D6),"",G6/D6) -> 0.5 | I6: 0.05 | J6: 1 | K6: 0 | M6: 2014-09-29 | N6: Wöbbe B - De Cupmaten | O6: 1 | P6: 0 | Q6: 0 | R6: 3 | S6: 1 | T6: 2 | U6: 0 | V6: 0 | W6: 0 | X6: 0 | Y6: 0 | Z6: 1 | AA6: 0 | AB6: 0 | AC6: 3 | AD6: 1
B7: Vajda Dierckx Davy | C7: 6 | D7: 6 | G7: 2 | H7: =IF(ISERROR(G7/D7),"",G7/D7) -> 0.3333333333 | I7: 0.05 | J7: 0 | K7: 0 | M7: 2014-10-06 | N7: De Bergen A - De Cupmaten (BK) | O7: 0 | P7: 0 | Q7: 1 | R7: 0 | S7: 8 | T7: -8 | U7: =AA7+AF40 -> 0 | V7: 0 | W7: 0 | X7: 0 | Y7: 0 | Z7: 0 | AA7: =AG7+AL7 -> 0 | AB7: 1 | AC7: 0 | AD7: 8
B8: De Decker Hans | C8: 11 | D8: 11 | G8: 7 | H8: 0.6363636364 | I8: 0.175 | J8: 0 | K8: 0 | M8: 2014-10-13 | N8: FC Beton - De Cupmaten | O8: 1 | P8: 0 | Q8: 0 | R8: 4 | S8: 0 | T8: 4 | U8: 0 | V8: 0 | W8: 0 | X8: 0 | Y8: 0 | Z8: 1 | AA8: 0 | AB8: 0 | AC8: 4 | AD8: 0 | AE8: * own goal
B9: Daemen Jan | C9: 3 | D9: 0 | G9: 0 | I9: 0 | J9: 0 | K9: 0 | M9: 2014-10-23 | N9: De Cupmaten - De Bergen DS | O9: 0 | P9: 0 | Q9: 1 | R9: 4 | S9: 6 | T9: -2 | U9: =AA9+AF42 -> 0 | V9: 0 | W9: 1 | X9: 4 | Y9: 6 | Z9: 0 | AA9: =AG9+AL9 -> 0 | AB9: =AH9+AM9 -> 0 | AC9: 0 | AD9: 0
B10: Van Dijck Vincent | C10: 7 | D10: 6 | G10: 3 | H10: 0.5 | I10: 0.075 | J10: 0 | K10: 0 | M10: 2014-11-06 | N10: De Cupmaten - Dubos Verzekeringen | O10: 1 | P10: 0 | Q10: 0 | R10: 5 | S10: 3 | T10: 2 | U10: 1 | V10: 0 | W10: 0 | X10: 5 | Y10: 3 | Z10: 0 | AA10: 0 | AB10: 0 | AC10: 0 | AD10: 0
B11: Westhof Jan | C11: 9 | D11: 9 | G11: 8 | H11: 0.8888888889 | I11: 0.2 | J11: 1 | K11: 0 | M11: 2014-11-12 | N11: Boomerangs B - De Cupmaten | O11: 1 | P11: 0 | Q11: 0 | R11: 4 | S11: 2 | T11: 2 | U11: =AA11+AF44 -> 0 | V11: 0 | W11: 0 | X11: 0 | Y11: 0 | Z11: 1 | AA11: =AG11+AL11 -> 0 | AB11: =AH11+AM11 -> 0 | AC11: 4 | AD11: 2
B12: Dom Steven | C12: 11 | D12: 11 | G12: 12 | H12: =IF(ISERROR(G12/D12),"",G12/D12) -> 1.090909091 | I12: 0.3 | J12: 1 | K12: 0 | M12: 2014-11-17 | N12: A.S. Fortuna - De Cupmaten | O12: 1 | P12: 0 | Q12: 0 | R12: 4 | S12: 0 | T12: 4 | U12: 0 | V12: 0 | W12: 0 | X12: 0 | Y12: 0 | Z12: 1 | AA12: 0 | AB12: 0 | AC12: 4 | AD12: 0
B13: Daemen Geert-Jan | C13: 4 | D13: 4 | G13: 2 | H13: =IF(ISERROR(G13/D13),"",G13/D13) -> 0.5 | I13: =IF(ISERROR($G13/$G$17),"",$G13/$G$17) -> 0.05 | J13: 0 | K13: 0 | M13: 2014-11-27 | N13: De Cupmaten - Unlimited B | O13: 0 | P13: 1 | Q13: 0 | R13: 4 | S13: 4 | T13: 0 | U13: =AA13+AF46 -> 0 | V13: 1 | W13: 0 | X13: 4 | Y13: 4 | Z13: 0 | AA13: =AG13+AL13 -> 0 | AB13: =AH13+AM13 -> 0 | AC13: 0 | AD13: 0
B14: Daemen Martijn | C14: 7 | D14: 7 | G14: 0 | H14: =IF(ISERROR(G14/D14),"",G14/D14) -> 0 | I14: =IF(ISERROR($G14/$G$17),"",$G14/$G$17) -> 0 | J14: 0 | K14: 0 | M14: 2014-12-03 | N14: De Sjepap - De Cupmaten | O14: 1 | P14: 0 | Q14: 0 | R14: 5 | S14: 2 | T14: 3 | U14: 0 | V14: 0 | W14: 0 | X14: 0 | Y14: 0 | Z14: 1 | AA14: 0 | AB14: 0 | AC14: 5 | AD14: 2
M15: 2014-12-11 | N15: De Cupmaten - Fettah B | O15: 0 | P15: 0 | Q15: 1 | R15: 2 | S15: 12 | T15: -10 | U15: =AA15+AF48 -> 0 | V15: 0 | W15: 1 | X15: 2 | Y15: 12 | Z15: 0 | AA15: =AG15+AL15 -> 0 | AB15: =AH15+AM15 -> 0 | AC15: 0 | AD15: 0
M16: 2015-01-08 | N16: Spinpedes B - De Cupmaten (BK) | O16: 0 | P16: 0 | Q16: 0 | R16: 0 | S16: 0 | T16: 0 | U16: 0 | V16: 0 | W16: 0 | X16: 0 | Y16: 0 | Z16: 0 | AA16: 0 | AB16: 0 | AC16: 0 | AD16: 0
C17: 11 | D17: 11 | F17: 0 | G17: =SUM(G4:G13) -> 40 | H17: =IF(ISERROR(G17/D17),"",G17/D17) -> 3.636363636 | J17: =SUM(J4:J16) -> 3 | K17: =SUM(K4:K16) -> 0 | M17: 2015-01-14 | N17: Dubos Verzekeringen - De Cupmaten | O17: 0 | P17: 0 | Q17: 0 | R17: 0 | S17: 0 | T17: 0 | U17: =AA17+AF49 -> 0 | V17: 0 | W17: 0 | X17: 0 | Y17: 0 | Z17: 0 | AA17: =AG17+AL17 -> 0 | AB17: =AH17+AM17 -> 0 | AC17: 0 | AD17: 0
M18: 2015-01-22 | N18: De Cupmaten - De Sjepap | O18: 0 | P18: 0 | Q18: 0 | R18: 0 | S18: 0 | T18: 0 | U18: 0 | V18: 0 | W18: 0 | X18: 0 | Y18: 0 | Z18: 0 | AA18: 0 | AB18: 0 | AC18: 0 | AD18: 0
B19: Beker | M19: 2015-01-30 | N19: Fettah B - De Cupmaten | O19: 0 | P19: 0 | Q19: 0 | R19: 0 | S19: 0 | T19: 0 | U19: =AA19+AF51 -> 0 | V19: 0 | W19: 0 | X19: 0 | Y19: 0 | Z19: 0 | AA19: =AG19+AL19 -> 0 | AB19: =AH19+AM19 -> 0 | AC19: 0 | AD19: 0
M20: 2015-02-06 | N20: Roosen - De Cupmaten | O20: 0 | P20: 0 | Q20: 0 | R20: 0 | S20: 0 | T20: 0 | U20: 0 | V20: 0 | W20: 0 | X20: 0 | Y20: 0 | Z20: 0 | AA20: 0 | AB20: 0 | AC20: 0 | AD20: 0
B21: Speler | C21: Aanwezig | D21: Matchen | E21: Afvaller | F21: Forfait | G21: Doelpunten | H21: Gem doelp. | I21: % aandeel | J21: Geel | K21: Rood | M21: 2015-02-12 | N21: De Cupmaten - Wöbbe B | O21: 0 | P21: 0 | Q21: 0 | R21: 0 | S21: 0 | T21: 0 | U21: =AA21+AF53 -> 0 | V21: 0 | W21: 0 | X21: 0 | Y21: 0 | Z21: 0 | AA21: =AG21+AL21 -> 0 | AB21: =AH21+AM21 -> 0 | AC21: 0 | AD21: 0
B22: De Decker Guy | C22: 1 | D22: 1 | G22: 0 | H22: =IF(ISERROR(G22/D22),"",G22/D22) -> 0 | I22: =IF(ISERROR($G22/$G$35),"",$G22/$G$35) ->  | J22: 0 | K22: 0 | M22: 2015-02-19 | N22: De Cupmaten - A.S. Fortuna | O22: 0 | P22: 0 | Q22: 0 | R22: 0 | S22: 0 | T22: 0 | U22: 0 | V22: 0 | W22: 0 | X22: 0 | Y22: 0 | Z22: 0 | AA22: 0 | AB22: 0 | AC22: 0 | AD22: 0
B23: De Decker Koen | C23: 1 | D23: 1 | G23: 0 | H23: =IF(ISERROR(G23/D23),"",G23/D23) -> 0 | J23: 0 | K23: 0 | M23: 2015-02-27 | N23: De Bergen DS - De Cupmaten | O23: 0 | P23: 0 | Q23: 0 | R23: 0 | S23: 0 | T23: 0 | U23: =AA23+AF55 -> 0 | V23: 0 | W23: 0 | X23: 0 | Y23: 0 | Z23: 0 | AA23: =AG23+AL23 -> 0 | AB23: =AH23+AM23 -> 0 | AC23: 0 | AD23: 0
B24: Van Gils Bart | H24: =IF(ISERROR(G24/D24),"",G24/D24) ->  | J24: 0 | K24: 0 | M24: 2015-03-05 | N24: De Cupmaten - FC Beton | O24: 0 | P24: 0 | Q24: 0 | R24: 0 | S24: 0 | T24: 0 | U24: 0 | V24: 0 | W24: 0 | X24: 0 | Y24: 0 | Z24: 0 | AA24: 0 | AB24: 0 | AC24: 0 | AD24: 0
B25: Vajda Dierckx Davy | C25: 1 | D25: 1 | G25: 0 | H25: 0 | J25: 0 | K25: 0 | M25: 2015-03-19 | N25: De Cupmaten - Boomerangs B | O25: 0 | P25: 0 | Q25: 0 | R25: 0 | S25: 0 | T25: 0 | U25: =AA25+AF57 -> 0 | V25: 0 | W25: 0 | X25: 0 | Y25: 0 | Z25: 0 | AA25: =AG25+AL25 -> 0 | AB25: =AH25+AM25 -> 0 | AC25: 0 | AD25: 0
B26: De Decker Hans | C26: 1 | D26: 1 | G26: 0 | H26: 0 | J26: 0 | K26: 0 | M26: 2015-03-27 | N26: Unlimited B - De Cupmaten | O26: 0 | P26: 0 | Q26: 0 | R26: 0 | S26: 0 | T26: 0 | U26: 0 | V26: 0 | W26: 0 | X26: 0 | Y26: 0 | Z26: 0 | AA26: 0 | AB26: 0 | AC26: 0 | AD26: 0
B27: Daemen Jan | C27: 1 | D27: 0 | G27: 0 | J27: 0 | K27: 0 | M27: 2015-04-09 | N27: De Cupmaten - White Socks A | O27: 0 | P27: 0 | Q27: 0 | R27: 0 | S27: 0 | T27: 0 | U27: =AA27+AF59 -> 0 | V27: 0 | W27: 0 | X27: 0 | Y27: 0 | Z27: 0 | AA27: =AG27+AL27 -> 0 | AB27: =AH27+AM27 -> 0 | AC27: 0 | AD27: 0
B28: Van Dijck Vincent | C28: 1 | D28: 1 | G28: 0 | H28: 0 | J28: 0 | K28: 0 | M28: Totaal | O28: =SUM(O4:O23) -> 7 | P28: 1 | Q28: 4 | R28: 41 | S28: 48 | T28: -7 | U28: 2 | V28: 1 | W28: 2 | X28: 17 | Y28: 25 | Z28: 5 | AA28: 0 | AB28: 2 | AC28: 24 | AD28: 23
B29: Westhof Jan | C29: 1 | D29: 1 | G29: 0 | H29: 0 | J29: 0 | K29: 0
B30: Dom Steven | C30: 1 | D30: 1 | G30: 0 | H30: 0 | J30: 0 | K30: 0 | N30: Gemiddelde | O30: =IF(ISERROR(O$28/($O$28+$P$28+$Q$28)),"",O$28/($O$28+$P$28+$Q$28)) -> 0.5833333333 | P30: 0.08333333333 | Q30: 0.3333333333 | R30: 3.416666667 | S30: 4 | T30: -0.5833333333 | U30: =IF(ISERROR(U$28/($U$28+$V$28+$W$28)),"",U$28/($U$28+$V$28+$W$28)) -> 0.4 | V30: =IF(ISERROR(V$28/($U$28+$V$28+$W$28)),"",V$28/($U$28+$V$28+$W$28)) -> 0.2 | W30: =IF(ISERROR(W$28/($U$28+$V$28+$W$28)),"",W$28/($U$28+$V$28+$W$28)) -> 0.4 | X30: =IF(ISERROR(X$28/($U$28+$V$28+$W$28)),"",X$28/($U$28+$V$28+$W$28)) -> 3.4 | Y30: =IF(ISERROR(Y$28/($U$28+$V$28+$W$28)),"",Y$28/($U$28+$V$28+$W$28)) -> 5 | Z30: =IF(ISERROR(Z$28/($Z$28+$AA$28+$AB$28)),"",Z$28/($Z$28+$AA$28+$AB$28)) -> 0.7142857143 | AA30: =IF(ISERROR(AA$28/($Z$28+$AA$28+$AB$28)),"",AA$28/($Z$28+$AA$28+$AB$28)) -> 0 | AB30: =IF(ISERROR(AB$28/($Z$28+$AA$28+$AB$28)),"",AB$28/($Z$28+$AA$28+$AB$28)) -> 0.2857142857 | AC30: =IF(ISERROR(AC$28/($Z$28+$AA$28+$AB$28)),"",AC$28/($Z$28+$AA$28+$AB$28)) -> 3.428571429 | AD30: =IF(ISERROR(AD$28/($Z$28+$AA$28+$AB$28)),"",AD$28/($Z$28+$AA$28+$AB$28)) -> 3.285714286
B31: Daemen Geert-Jan | C31: 1 | D31: 1 | G31: 0 | H31: 0 | J31: 0 | K31: 0
B32: Daemen Martijn | J32: 0 | K32: 0
C35: 1 | D35: 1 | F35: 0 | G35: =SUM(G22:G34) -> 0 | H35: =IF(ISERROR(G35/D35),"",G35/D35) -> 0 | J35: =SUM(J22:J34) -> 0 | K35: =SUM(K22:K34) -> 0
B37: Totaal
B39: Speler | C39: Aanwezig | D39: Matchen | E39: Afvaller | F39: Forfait | G39: Doelpunten | H39: Gem doelp. | I39: % aandeel | J39: Geel | K39: Rood
A40: =$G40-$G40/100+(D40/100)-0.001 -> 0.049 | B40: De Decker Guy | C40: =C22+C4 -> 8 | D40: 5 | E40: 0 | F40: 0 | G40: 0 | H40: =IF(ISERROR(G40/D40),"",G40/D40) -> 0 | I40: =IF(ISERROR($G40/$G$52),"",$G40/$G$52) -> 0 | J40: =J4+J22 -> 0 | K40: 0
A41: =$G41-$G41/100+(D41/100)-0.02 -> 4.05 | B41: De Decker Koen | C41: 12 | D41: 11 | E41: 0 | F41: 0 | G41: 4 | H41: =IF(ISERROR(G41/D41),"",G41/D41) -> 0.3636363636 | I41: 0.1 | J41: 0 | K41: 0
A42: =$G42-$G42/100+(D42/100)-0.11 -> 1.91 | B42: Van Gils Bart | C42: 7 | D42: 4 | E42: 0 | F42: 0 | G42: 2 | H42: =IF(ISERROR(G42/D42),"",G42/D42) -> 0.5 | I42: 0.05 | J42: 1 | K42: 0
A43: =$G43-$G43/100+(D43/100)-0.04 -> 2.01 | B43: Vajda Dierckx Davy | C43: 7 | D43: 7 | E43: 0 | F43: 0 | G43: 2 | H43: 0.2857142857 | I43: 0.05 | J43: 0 | K43: 0
A44: =$G44-$G44/100+(D44/100)-0.09 -> 6.96 | B44: De Decker Hans | C44: 12 | D44: 12 | E44: 0 | F44: 0 | G44: 7 | H44: 0.5833333333 | I44: 0.175 | J44: 0 | K44: 0
A45: =$G45-$G45/100+(D45/100)-0.08 -> -0.08 | B45: Daemen Jan | C45: 4 | D45: 0 | E45: 0 | F45: 0 | G45: 0 | I45: 0 | J45: 0 | K45: 0
A46: =$G46-$G46/100+(D46/100)-0.07 -> 2.97 | B46: Van Dijck Vincent | C46: 8 | D46: 7 | E46: 0 | F46: 0 | G46: 3 | H46: 0.4285714286 | I46: 0.075 | J46: 0 | K46: 0
A47: =$G47-$G47/100+(D47/100)-0.0001 -> 8.0199 | B47: Westhof Jan | C47: 10 | D47: 10 | E47: 0 | F47: 0 | G47: 8 | H47: 0.8 | I47: 0.2 | J47: 1 | K47: 0
A48: =$G48-$G48/100+(D48/100) -> 12 | B48: Dom Steven | C48: 12 | D48: 12 | E48: 0 | F48: 0 | G48: 12 | H48: 1 | I48: 0.3 | J48: 1 | K48: 0
A49: =$G49-$G49/100+(D49/100) -> 2.03 | B49: Daemen Geert-Jan | C49: 5 | D49: 5 | E49: 0 | F49: 0 | G49: 2 | H49: =IF(ISERROR(G49/D49),"",G49/D49) -> 0.4 | I49: 0.05 | J49: 0 | K49: 0
A50: =$G50-$G50/100+(D50/100) -> 0.07 | B50: Daemen Martijn | C50: =C14+C32 -> 7 | D50: =D14+D32 -> 7 | E50: =E14+E32 -> 0 | F50: =F14+F32 -> 0 | G50: =G14+G32 -> 0 | H50: =IF(ISERROR(G50/D50),"",G50/D50) -> 0 | I50: 0 | J50: 0 | K50: 0
C52: =C35+C17 -> 12 | D52: =D17+D35 -> 12 | F52: =F17+F35 -> 0 | G52: =SUM(G40:G50) -> 40 | H52: =IF(ISERROR(G52/D52),"",G52/D52) -> 3.333333333 | J52: =SUM(J40:J51) -> 3 | K52: =SUM(K40:K51) -> 0
B54: Totaal
B56: Speler | C56: Aanwezig | D56: Matchen | E56: Afvaller | F56: Forfait | G56: Doelpunten | H56: Gem doelp. | I56: % aandeel | J56: Geel | K56: Rood
A57: =LARGE($A$40:$A$50,ROW(A1)) -> 12 | B57: =VLOOKUP($A57,$A$40:$K$50,COLUMN(B1),FALSE) -> Dom Steven | C57: 12 | D57: 12 | E57: 0 | F57: 0 | G57: 12 | H57: 1 | I57: 0.3 | J57: 1 | K57: 0
A58: 8.0199 | B58: =VLOOKUP($A58,$A$40:$K$50,COLUMN(B2),FALSE) -> Westhof Jan | C58: 10 | D58: 10 | E58: 0 | F58: 0 | G58: 8 | H58: 0.8 | I58: 0.2 | J58: 1 | K58: 0
A59: 6.96 | B59: =VLOOKUP($A59,$A$40:$K$50,COLUMN(B3),FALSE) -> De Decker Hans | C59: 12 | D59: 12 | E59: 0 | F59: 0 | G59: 7 | H59: 0.5833333333 | I59: 0.175 | J59: 0 | K59: 0
A60: 4.05 | B60: =VLOOKUP($A60,$A$40:$K$50,COLUMN(B4),FALSE) -> De Decker Koen | C60: 12 | D60: 11 | E60: 0 | F60: 0 | G60: 4 | H60: 0.3636363636 | I60: 0.1 | J60: 0 | K60: 0
A61: 2.97 | B61: =VLOOKUP($A61,$A$40:$K$50,COLUMN(B5),FALSE) -> Van Dijck Vincent | C61: 8 | D61: 7 | E61: 0 | F61: 0 | G61: 3 | H61: 0.4285714286 | I61: 0.075 | J61: 0 | K61: 0
A62: 2.03 | B62: =VLOOKUP($A62,$A$40:$K$50,COLUMN(B6),FALSE) -> Daemen Geert-Jan | C62: 5 | D62: 5 | E62: 0 | F62: 0 | G62: 2 | H62: 0.4 | I62: 0.05 | J62: 0 | K62: 0
A63: 2.01 | B63: =VLOOKUP($A63,$A$40:$K$50,COLUMN(B7),FALSE) -> Vajda Dierckx Davy | C63: 7 | D63: 7 | E63: 0 | F63: 0 | G63: 2 | H63: 0.2857142857 | I63: 0.05 | J63: 0 | K63: 0
A64: 1.91 | B64: =VLOOKUP($A64,$A$40:$K$50,COLUMN(B8),FALSE) -> Van Gils Bart | C64: 7 | D64: 4 | E64: 0 | F64: 0 | G64: 2 | H64: 0.5 | I64: 0.05 | J64: 1 | K64: 0
A65: 0.07 | B65: =VLOOKUP($A65,$A$40:$K$50,COLUMN(B9),FALSE) -> Daemen Martijn | C65: 7 | D65: 7 | E65: 0 | F65: 0 | G65: 0 | H65: 0 | I65: 0 | J65: 0 | K65: 0
A66: 0.049 | B66: =VLOOKUP($A66,$A$40:$K$50,COLUMN(B10),FALSE) -> De Decker Guy | C66: 8 | D66: 5 | E66: 0 | F66: 0 | G66: 0 | H66: 0 | I66: 0 | J66: 0 | K66: 0
A67: -0.08 | B67: =VLOOKUP($A67,$A$40:$K$50,COLUMN(B11),FALSE) -> Daemen Jan | C67: 4 | D67: 0 | E67: 0 | F67: 0 | G67: 0 | I67: 0 | J67: 0 | K67: 0
C69: =C52 -> 12 | D69: =D52 -> 12 | F69: =F52 -> 0 | G69: =G52 -> 40 | H69: =IF(ISERROR(G69/D69),"",G69/D69) -> 3.333333333 | J69: =J52 -> 3 | K69: =K52 -> 0

Sheet Totaal
C3: Algemeen totaal
C5: Speler | D5: Doelpunten | E5: Matchen | F5: Gem doelp. | G5: % aandeel | H5: Geel | I5: Rood | J5: Aanwez. | K5: Afvaller
A6: =$D6-$D6/100+(E6/100) -> 0.65 | B6: =J6-J6/100-(D6/E6) -> 76.23 | C6: De Decker Guy | D6: =+'Seizoen 2009-2010'!G36+'Seizoen 2010-2011'!G36+'Seizoen 2011-2012'!G38+'Seizoen 2012-2013 '!G42+'Seizoen 2013-2014 '!G39+'Seizoen 2014-2015'!G40 -> 0 | E6: ='Seizoen 2009-2010'!D36+'Seizoen 2010-2011'!D36+'Seizoen 2011-2012'!D38+'Seizoen 2012-2013 '!D42+'Seizoen 2013-2014 '!D39+'Seizoen 2014-2015'!D40 -> 65 | F6: =D6/E6 -> 0 | G6: =$D6/$E$23 -> 0 | H6: ='Seizoen 2009-2010'!J36+'Seizoen 2010-2011'!J36+'Seizoen 2011-2012'!J38+'Seizoen 2012-2013 '!J42+'Seizoen 2013-2014 '!J39+'Seizoen 2014-2015'!J40 -> 0 | I6: ='Seizoen 2009-2010'!K36+'Seizoen 2010-2011'!K36+'Seizoen 2011-2012'!K38+'Seizoen 2012-2013 '!K42+'Seizoen 2013-2014 '!K39+'Seizoen 2014-2015'!K40 -> 0 | J6: ='Seizoen 2009-2010'!C60+'Seizoen 2010-2011'!C63+'Seizoen 2011-2012'!C38+'Seizoen 2012-2013 '!C42+'Seizoen 2013-2014 '!C39+'Seizoen 2014-2015'!C40 -> 77 | K6: ='Seizoen 2010-2011'!E63+'Seizoen 2011-2012'!E64+'Seizoen 2013-2014 '!E39+'Seizoen 2014-2015'!E22+'Seizoen 2014-2015'!E40 -> 2
A7: =$D7-$D7/100 -> 1.98 | B7: =J7-J7/100-(D7/E7) -> 36.57444444 | C7: Lenaerts Jaan | D7: ='Seizoen 2009-2010'!G37+'Seizoen 2010-2011'!G37+'Seizoen 2011-2012'!G39+'Seizoen 2012-2013 '!G43 -> 2 | E7: ='Seizoen 2009-2010'!D37+'Seizoen 2010-2011'!D37+'Seizoen 2011-2012'!D39+'Seizoen 2012-2013 '!C43 -> 36 | F7: =D7/E7 -> 0.05555555556 | G7: 0.004149377593 | H7: ='Seizoen 2009-2010'!J37+'Seizoen 2010-2011'!J37+'Seizoen 2011-2012'!J39+'Seizoen 2012-2013 '!J43 -> 2 | I7: ='Seizoen 2009-2010'!K37+'Seizoen 2010-2011'!K37+'Seizoen 2011-2012'!K39+'Seizoen 2012-2013 '!K43 -> 1 | J7: ='Seizoen 2009-2010'!C61+'Seizoen 2010-2011'!C62+'Seizoen 2011-2012'!C39+'Seizoen 2012-2013 '!C43 -> 37
A8: 19.8 | B8: =J8-J8/100-(E8/D8) -> 89.55 | C8: De Decker Koen | D8: ='Seizoen 2009-2010'!G38+'Seizoen 2010-2011'!G38+'Seizoen 2011-2012'!G40+'Seizoen 2012-2013 '!G44+'Seizoen 2013-2014 '!G40+'Seizoen 2014-2015'!G41 -> 20 | E8: ='Seizoen 2009-2010'!D38+'Seizoen 2010-2011'!D38+'Seizoen 2011-2012'!D40+'Seizoen 2012-2013 '!C44+'Seizoen 2013-2014 '!D40+'Seizoen 2014-2015'!D41 -> 90 | F8: 0.2222222222 | G8: 0.04149377593 | H8: ='Seizoen 2009-2010'!J38+'Seizoen 2010-2011'!J38+'Seizoen 2011-2012'!J39+'Seizoen 2011-2012'!J40+'Seizoen 2012-2013 '!J44+'Seizoen 2013-2014 '!J40+'Seizoen 2014-2015'!J41 -> 1 | I8: ='Seizoen 2009-2010'!K38+'Seizoen 2010-2011'!K38+'Seizoen 2011-2012'!K40+'Seizoen 2012-2013 '!K44+'Seizoen 2013-2014 '!K40+'Seizoen 2014-2015'!K41 -> 0 | J8: ='Seizoen 2009-2010'!C57+'Seizoen 2010-2011'!C59+'Seizoen 2011-2012'!C40+'Seizoen 2012-2013 '!C44+'Seizoen 2013-2014 '!C40+'Seizoen 2014-2015'!C41 -> 95 | K8: ='Seizoen 2011-2012'!E62+'Seizoen 2012-2013 '!E68+'Seizoen 2013-2014 '!E40+'Seizoen 2014-2015'!E41 -> 3
A9: 72.27 | B9: =J9-J9/100-(E9/D9) -> 87.9630137 | C9: Van Gils Bart | D9: ='Seizoen 2009-2010'!G39+'Seizoen 2010-2011'!G39+'Seizoen 2011-2012'!G41+'Seizoen 2012-2013 '!G45+'Seizoen 2013-2014 '!G41+'Seizoen 2014-2015'!G42 -> 73 | E9: ='Seizoen 2009-2010'!D39+'Seizoen 2010-2011'!D39+'Seizoen 2011-2012'!D41+'Seizoen 2012-2013 '!D45+'Seizoen 2013-2014 '!D41+'Seizoen 2014-2015'!D42 -> 83 | F9: 0.8795180723 | G9: 0.1514522822 | H9: ='Seizoen 2009-2010'!J39+'Seizoen 2010-2011'!J39+'Seizoen 2011-2012'!J41+'Seizoen 2012-2013 '!J45+'Seizoen 2013-2014 '!J41+'Seizoen 2014-2015'!J42 -> 8 | I9: ='Seizoen 2009-2010'!K39+'Seizoen 2010-2011'!K39+'Seizoen 2011-2012'!K41+'Seizoen 2012-2013 '!K45+'Seizoen 2013-2014 '!K41+'Seizoen 2014-2015'!K42 -> 2 | J9: ='Seizoen 2009-2010'!C53+'Seizoen 2010-2011'!C56+'Seizoen 2011-2012'!C41+'Seizoen 2012-2013 '!C45+'Seizoen 2013-2014 '!C41+'Seizoen 2014-2015'!C42 -> 90 | K9: ='Seizoen 2012-2013 '!E62+'Seizoen 2013-2014 '!E41+'Seizoen 2014-2015'!E42 -> 2
A10: 42.57 | B10: =J10-J10/100-(E10/D10) -> 66.84488372 | C10: Vajda Dierckx Davy | D10: ='Seizoen 2009-2010'!G40+'Seizoen 2010-2011'!G40+'Seizoen 2011-2012'!G42+'Seizoen 2012-2013 '!G46+'Seizoen 2013-2014 '!G42+'Seizoen 2014-2015'!G43 -> 43 | E10: ='Seizoen 2009-2010'!D40+'Seizoen 2010-2011'!D40+'Seizoen 2011-2012'!D42+'Seizoen 2012-2013 '!D46+'Seizoen 2013-2014 '!D42+'Seizoen 2014-2015'!D43 -> 63 | F10: 0.6825396825 | G10: 0.08921161826 | H10: ='Seizoen 2009-2010'!J40+'Seizoen 2010-2011'!J40+'Seizoen 2011-2012'!J42+'Seizoen 2012-2013 '!J46+'Seizoen 2013-2014 '!J42+'Seizoen 2014-2015'!J43 -> 1 | I10: ='Seizoen 2009-2010'!K40+'Seizoen 2010-2011'!K40+'Seizoen 2011-2012'!K42+'Seizoen 2012-2013 '!K46+'Seizoen 2013-2014 '!K42+'Seizoen 2014-2015'!K43 -> 0 | J10: ='Seizoen 2009-2010'!C56+'Seizoen 2010-2011'!C57+'Seizoen 2011-2012'!C42+'Seizoen 2012-2013 '!C46+'Seizoen 2013-2014 '!C42+'Seizoen 2014-2015'!C43 -> 69 | K10: ='Seizoen 2011-2012'!E59+'Seizoen 2012-2013 '!E65+'Seizoen 2013-2014 '!E42+'Seizoen 2013-2014 '!E43+'Seizoen 2014-2015'!E43 -> 4
A11: =$D11-$D11/100+0.01 -> 42.58 | B11: =J11-J11/100-(E11/D11) -> 109.5444186 | C11: De Decker Hans | D11: =+'Seizoen 2009-2010'!G41+'Seizoen 2010-2011'!G41+'Seizoen 2011-2012'!G43+'Seizoen 2012-2013 '!G47+'Seizoen 2013-2014 '!G43+'Seizoen 2014-2015'!G44 -> 43 | E11: ='Seizoen 2009-2010'!D41+'Seizoen 2010-2011'!D41+'Seizoen 2011-2012'!D43+'Seizoen 2012-2013 '!D47+'Seizoen 2013-2014 '!D43+'Seizoen 2014-2015'!D44 -> 100 | F11: 0.43 | G11: 0.08921161826 | H11: ='Seizoen 2009-2010'!J41+'Seizoen 2010-2011'!J41+'Seizoen 2011-2012'!J43+'Seizoen 2012-2013 '!J47+'Seizoen 2013-2014 '!J43+'Seizoen 2014-2015'!J44 -> 3 | I11: ='Seizoen 2009-2010'!K41+'Seizoen 2010-2011'!K41+'Seizoen 2011-2012'!K43+'Seizoen 2012-2013 '!K47+'Seizoen 2013-2014 '!K43+'Seizoen 2014-2015'!K44 -> 1 | J11: ='Seizoen 2009-2010'!C54+'Seizoen 2010-2011'!C61+'Seizoen 2011-2012'!C43+'Seizoen 2012-2013 '!C47+'Seizoen 2013-2014 '!C43+'Seizoen 2014-2015'!C44 -> 113 | K11: ='Seizoen 2012-2013 '!E69+'Seizoen 2014-2015'!E44 -> 1
A12: 0.99 | B12: 3.71 | C12: Broeders Martijn | D12: ='Seizoen 2009-2010'!G42 -> 1 | E12: ='Seizoen 2009-2010'!D42 -> 4 | F12: 0.25 | G12: 0.002074688797 | H12: ='Seizoen 2009-2010'!J42 -> 0 | I12: ='Seizoen 2009-2010'!K42 -> 0 | J12: ='Seizoen 2009-2010'!C59 -> 4
A13: =$D13-$D13/100 -> 2.97 | B13: 6.43 | C13: Stymans Gert | D13: ='Seizoen 2010-2011'!G42 -> 3 | E13: ='Seizoen 2010-2011'!D42 -> 6 | F13: 0.5 | G13: 0.00622406639 | H13: ='Seizoen 2010-2011'!J42 -> 1 | I13: ='Seizoen 2010-2011'!K42 -> 0 | J13: ='Seizoen 2010-2011'!C60 -> 7
A14: 21.78 | B14: =J14-J14/100-(E14/D14)+1 -> 86.28181818 | C14: Van Dijck Vincent | D14: ='Seizoen 2009-2010'!G43+'Seizoen 2010-2011'!G43+'Seizoen 2011-2012'!G45+'Seizoen 2012-2013 '!G49+'Seizoen 2013-2014 '!G45+'Seizoen 2014-2015'!G46 -> 22 | E14: ='Seizoen 2009-2010'!D43+'Seizoen 2010-2011'!D43+'Seizoen 2011-2012'!D45+'Seizoen 2012-2013 '!D49+'Seizoen 2013-2014 '!D45+'Seizoen 2014-2015'!D46 -> 84 | F14: 0.2619047619 | G14: 0.04564315353 | H14: ='Seizoen 2009-2010'!J43+'Seizoen 2010-2011'!J43+'Seizoen 2011-2012'!J45+'Seizoen 2012-2013 '!J49+'Seizoen 2013-2014 '!J45+'Seizoen 2014-2015'!J46 -> 1 | I14: ='Seizoen 2009-2010'!K43+'Seizoen 2010-2011'!K43+'Seizoen 2012-2013 '!K49+'Seizoen 2013-2014 '!K45+'Seizoen 2014-2015'!K46 -> 0 | J14: ='Seizoen 2009-2010'!C58+'Seizoen 2010-2011'!C58+'Seizoen 2012-2013 '!C49+'Seizoen 2011-2012'!C45+'Seizoen 2013-2014 '!C45+'Seizoen 2014-2015'!C46 -> 90 | K14: ='Seizoen 2009-2010'!E58+'Seizoen 2010-2011'!E58+'Seizoen 2011-2012'!E60+'Seizoen 2013-2014 '!E45+'Seizoen 2014-2015'!E46 -> 3
A15: =$D15-$D15/100+0.1 -> 72.37 | B15: =J15-J15/100-(E15/D15) -> 109.4142466 | C15: Westhof Jan | D15: ='Seizoen 2009-2010'!G44+'Seizoen 2010-2011'!G44+'Seizoen 2011-2012'!G46+'Seizoen 2012-2013 '!G50+'Seizoen 2013-2014 '!G46+'Seizoen 2014-2015'!G47 -> 73 | E15: ='Seizoen 2009-2010'!D44+'Seizoen 2010-2011'!D44+'Seizoen 2011-2012'!D46+'Seizoen 2012-2013 '!D50+'Seizoen 2013-2014 '!D46+'Seizoen 2014-2015'!D47 -> 107 | F15: 0.6822429907 | G15: 0.1514522822 | H15: ='Seizoen 2009-2010'!J44+'Seizoen 2010-2011'!J44+'Seizoen 2011-2012'!J46+'Seizoen 2012-2013 '!J50+'Seizoen 2013-2014 '!J46+'Seizoen 2014-2015'!J47 -> 3 | I15: ='Seizoen 2009-2010'!K44+'Seizoen 2010-2011'!K44+'Seizoen 2011-2012'!K46+'Seizoen 2012-2013 '!K50+'Seizoen 2013-2014 '!K46+'Seizoen 2014-2015'!K47 -> 0 | J15: ='Seizoen 2009-2010'!C55+'Seizoen 2010-2011'!C55+'Seizoen 2011-2012'!C46+'Seizoen 2012-2013 '!C50+'Seizoen 2013-2014 '!C46+'Seizoen 2014-2015'!C47 -> 112 | K15: ='Seizoen 2009-2010'!E55+'Seizoen 2011-2012'!E57+'Seizoen 2013-2014 '!E46+'Seizoen 2014-2015'!E47 -> 3
A16: =$D16-$D16/100 -> 152.46 | B16: =J16-J16/100-(E16/D16) -> 113.1357143 | C16: Dom Steven | D16: ='Seizoen 2009-2010'!G45+'Seizoen 2010-2011'!G45+'Seizoen 2011-2012'!G47+'Seizoen 2012-2013 '!G51+'Seizoen 2013-2014 '!G47+'Seizoen 2014-2015'!G48 -> 154 | E16: ='Seizoen 2009-2010'!D45+'Seizoen 2010-2011'!D45+'Seizoen 2011-2012'!D47+'Seizoen 2012-2013 '!D51+'Seizoen 2013-2014 '!D47+'Seizoen 2014-2015'!D48 -> 110 | F16: 1.4 | G16: 0.3195020747 | H16: ='Seizoen 2009-2010'!J45+'Seizoen 2010-2011'!J45+'Seizoen 2011-2012'!J47+'Seizoen 2012-2013 '!J51+'Seizoen 2013-2014 '!J47+'Seizoen 2014-2015'!J48 -> 7 | I16: ='Seizoen 2009-2010'!K45+'Seizoen 2010-2011'!K45+'Seizoen 2011-2012'!K47+'Seizoen 2012-2013 '!K51+'Seizoen 2013-2014 '!K47+'Seizoen 2014-2015'!K48 -> 0 | J16: ='Seizoen 2009-2010'!C52+'Seizoen 2010-2011'!C54+'Seizoen 2011-2012'!C47+H49+'Seizoen 2012-2013 '!C51+'Seizoen 2013-2014 '!C47+'Seizoen 2014-2015'!C48 -> 115 | K16: ='Seizoen 2009-2010'!E52+'Seizoen 2013-2014 '!E47+'Seizoen 2014-2015'!E48 -> 1
A17: =($D17-$D17/100)+0.1 -> 1.09 | B17: =J17-J17/100 -> 23.76 | C17: Daemen Jan | D17: ='Seizoen 2011-2012'!G44+'Seizoen 2012-2013 '!G48+'Seizoen 2013-2014 '!G44+'Seizoen 2014-2015'!G45 -> 1 | E17: ='Seizoen 2011-2012'!D44+'Seizoen 2012-2013 '!D48+'Seizoen 2013-2014 '!D44+'Seizoen 2014-2015'!D45 -> 23 | F17: 0.04347826087 | G17: 0.002074688797 | H17: ='Seizoen 2011-2012'!J44+'Seizoen 2012-2013 '!J48+'Seizoen 2013-2014 '!J44+'Seizoen 2014-2015'!J45 -> 0 | I17: ='Seizoen 2011-2012'!K44+'Seizoen 2012-2013 '!K48+'Seizoen 2013-2014 '!K44+'Seizoen 2014-2015'!K45 -> 0 | J17: ='Seizoen 2011-2012'!C44+'Seizoen 2012-2013 '!C48+'Seizoen 2014-2015'!C45 -> 24 | K17: ='Seizoen 2012-2013 '!E72+'Seizoen 2013-2014 '!E44+'Seizoen 2014-2015'!E45 -> 7
A18: =($D18-$D18/100)+0.1 -> 6.04 | B18: =J18-J18/100-(E18/D18) -> 5.106666667 | C18: Burreddu Efisio | D18: ='Seizoen 2012-2013 '!G52 -> 6 | E18: ='Seizoen 2012-2013 '!D52 -> 5 | F18: 1.2 | G18: 0.01244813278 | H18: ='Seizoen 2012-2013 '!J52 -> 0 | I18: ='Seizoen 2012-2013 '!K52 -> 0 | J18: ='Seizoen 2012-2013 '!C52 -> 6
A19: =($D19-$D19/100)+0.2 -> 9.11 | B19: =J19-J19/100-(E19/D19) -> 21.09333333 | C19: Bloemen Bart | D19: ='Seizoen 2012-2013 '!G53+'Seizoen 2013-2014 '!G48 -> 9 | E19: ='Seizoen 2012-2013 '!D53+'Seizoen 2013-2014 '!D48 -> 24 | F19: 0.375 | G19: 0.01867219917 | H19: ='Seizoen 2012-2013 '!J53+'Seizoen 2013-2014 '!J48 -> 1 | I19: ='Seizoen 2012-2013 '!K53+'Seizoen 2013-2014 '!K48 -> 0 | J19: ='Seizoen 2012-2013 '!C53+'Seizoen 2013-2014 '!C48 -> 24 | K19: ='Seizoen 2013-2014 '!E48 -> 1
A20: =$D20-$D20/100+E20/100 -> 32.18 | B20: =IF(ISERROR(J20-J20/100-(E20/D20)),"",J20-J20/100-(E20/D20)) -> 52.8875 | C20: Daemen Geert-Jan | D20: ='Seizoen 2011-2012'!G48+'Seizoen 2012-2013 '!G54+'Seizoen 2013-2014 '!G49+'Seizoen 2014-2015'!G49 -> 32 | E20: ='Seizoen 2011-2012'!D48+'Seizoen 2012-2013 '!D54+'Seizoen 2013-2014 '!D49+'Seizoen 2014-2015'!D49 -> 50 | F20: =IF(ISERROR(D20/E20),"",D20/E20) -> 0.64 | G20: 0.06639004149 | H20: ='Seizoen 2011-2012'!J48+'Seizoen 2012-2013 '!J54+'Seizoen 2013-2014 '!J49+'Seizoen 2014-2015'!J49 -> 1 | I20: ='Seizoen 2011-2012'!K48+'Seizoen 2012-2013 '!K54+'Seizoen 2013-2014 '!K49+'Seizoen 2014-2015'!K49 -> 0 | J20: ='Seizoen 2011-2012'!C48+'Seizoen 2012-2013 '!C54+'Seizoen 2013-2014 '!C49+'Seizoen 2014-2015'!C49 -> 55 | K20: ='Seizoen 2011-2012'!E58+'Seizoen 2013-2014 '!E49+'Seizoen 2014-2015'!E49 -> 2
A21: =$D21-$D21/100+E21/100 -> 0.1 | B21: =J21-J21/100 -> 9.9 | C21: Daemen Martijn | D21: ='Seizoen 2013-2014 '!G50+'Seizoen 2014-2015'!G50 -> 0 | E21: ='Seizoen 2013-2014 '!D50+'Seizoen 2014-2015'!D50 -> 10 | F21: =IF(ISERROR(D21/E21),"",D21/E21) -> 0 | G21: 0 | H21: ='Seizoen 2013-2014 '!J50+'Seizoen 2014-2015'!J50 -> 0 | I21: ='Seizoen 2013-2014 '!K50+'Seizoen 2014-2015'!K50 -> 0 | J21: ='Seizoen 2013-2014 '!D50+'Seizoen 2014-2015'!C50 -> 10 | K21: ='Seizoen 2013-2014 '!E50+'Seizoen 2014-2015'!E50 -> 0
E23: =SUM(D6:D21) -> 482 | H23: =SUM(H6:H22) -> 29 | I23: =SUM(I6:I22) -> 4 | J23: ='Seizoen 2009-2010'!C63+'Seizoen 2010-2011'!C65+'Seizoen 2011-2012'!C67+'Seizoen 2012-2013 '!C56+'Seizoen 2013-2014 '!C52+'Seizoen 2014-2015'!C52 -> 120
C26: Individueel totaal
C28: Speler | D28: Doelpunten | E28: Matchen | F28: Gem doelp. | G28: % aandeel | H28: Geel | I28: Rood
A29: =LARGE($A$6:$A$21,ROW(A1)) -> 152.46 | C29: =VLOOKUP($A29,$A$6:$I$21,COLUMN(C1),FALSE) -> Dom Steven | D29: 154 | E29: 110 | F29: 1.4 | G29: 0.3195020747 | H29: 7 | I29: 0
A30: =LARGE($A$6:$A$21,ROW(A2)) -> 72.37 | C30: =VLOOKUP($A30,$A$6:$I$20,COLUMN(C2),FALSE) -> Westhof Jan | D30: 73 | E30: 107 | F30: 0.6822429907 | G30: 0.1514522822 | H30: 3 | I30: 0
A31: 72.27 | C31: =VLOOKUP($A31,$A$6:$I$20,COLUMN(C3),FALSE) -> Van Gils Bart | D31: 73 | E31: 83 | F31: 0.8795180723 | G31: 0.1514522822 | H31: 8 | I31: 2
A32: 42.58 | C32: =VLOOKUP($A32,$A$6:$I$20,COLUMN(C4),FALSE) -> De Decker Hans | D32: 43 | E32: 100 | F32: 0.43 | G32: 0.08921161826 | H32: 3 | I32: 1
A33: 42.57 | C33: =VLOOKUP($A33,$A$6:$I$20,COLUMN(C5),FALSE) -> Vajda Dierckx Davy | D33: 43 | E33: 63 | F33: 0.6825396825 | G33: 0.08921161826 | H33: 1 | I33: 0
A34: 32.18 | C34: =VLOOKUP($A34,$A$6:$I$20,COLUMN(C6),FALSE) -> Daemen Geert-Jan | D34: 32 | E34: 50 | F34: 0.64 | G34: 0.06639004149 | H34: 1 | I34: 0
A35: 21.78 | C35: =VLOOKUP($A35,$A$6:$I$20,COLUMN(C7),FALSE) -> Van Dijck Vincent | D35: 22 | E35: 84 | F35: 0.2619047619 | G35: 0.04564315353 | H35: 1 | I35: 0
A36: 19.8 | C36: =VLOOKUP($A36,$A$6:$I$20,COLUMN(C8),FALSE) -> De Decker Koen | D36: 20 | E36: 90 | F36: 0.2222222222 | G36: 0.04149377593 | H36: 1 | I36: 0
A37: 9.11 | C37: =VLOOKUP($A37,$A$6:$I$20,COLUMN(C9),FALSE) -> Bloemen Bart | D37: 9 | E37: 24 | F37: 0.375 | G37: 0.01867219917 | H37: 1 | I37: 0
A38: 6.04 | C38: =VLOOKUP($A38,$A$6:$I$20,COLUMN(C10),FALSE) -> Burreddu Efisio | D38: 6 | E38: 5 | F38: 1.2 | G38: 0.01244813278 | H38: 0 | I38: 0
A39: 2.97 | C39: =VLOOKUP($A39,$A$6:$I$20,COLUMN(C11),FALSE) -> Stymans Gert | D39: 3 | E39: 6 | F39: 0.5 | G39: 0.00622406639 | H39: 1 | I39: 0
A40: 1.98 | C40: =VLOOKUP($A40,$A$6:$I$20,COLUMN(C12),FALSE) -> Lenaerts Jaan | D40: 2 | E40: 36 | F40: 0.05555555556 | G40: 0.004149377593 | H40: 2 | I40: 1
A41: 1.09 | C41: Daemen Jan | D41: 1 | E41: 23 | F41: 0.04347826087 | G41: 0.002074688797 | H41: 0 | I41: 0
A42: 0.99 | C42: Broeders Martijn | D42: 1 | E42: 4 | F42: 0.25 | G42: 0.002074688797 | H42: 0 | I42: 0
A43: 0.65 | C43: De Decker Guy | D43: 0 | E43: 65 | F43: 0 | G43: 0 | H43: 0 | I43: 0
A44: 0.1 | C44: =VLOOKUP($A44,$A$6:$I$21,COLUMN(C16),FALSE) -> Daemen Martijn | D44: 0 | E44: 10 | F44: 0 | G44: 0 | H44: 0 | I44: 0
D46: =SUM(D29:D44) -> 482 | E46: ='Seizoen 2009-2010'!D47+'Seizoen 2010-2011'!D47+'Seizoen 2011-2012'!D67+'Seizoen 2012-2013 '!D56+'Seizoen 2013-2014 '!D52+'Seizoen 2014-2015'!D52 -> 118 | F46: =D46/E46 -> 4.084745763 | H46: =SUM(H29:H44) -> 29 | I46: =SUM(I29:I44) -> 4
C48: Algemeen totaal
K51: Thuis | P51: Uit
D52: Wedstrijden | E52: Winst | F52: Gelijk | G52: Verlies | H52: Voor | I52: Tegen | J52: DS | K52: Winst | L52: Gelijk | M52: Verlies | N52: Voor | O52: Tegen | P52: Winst | Q52: Gelijk | R52: Verlies | S52: Voor | T52: Tegen
C53: Seizoen 2009-2010 | D53: =G53+F53+E53 -> 23 | E53: ='Seizoen 2009-2010'!O27 -> 4 | F53: ='Seizoen 2009-2010'!P27 -> 2 | G53: ='Seizoen 2009-2010'!Q27 -> 17 | H53: ='Seizoen 2009-2010'!R27 -> 78 | I53: ='Seizoen 2009-2010'!S27 -> 152 | J53: ='Seizoen 2009-2010'!T27 -> -74 | K53: ='Seizoen 2009-2010'!U27 -> 1 | L53: ='Seizoen 2009-2010'!V27 -> 1 | M53: ='Seizoen 2009-2010'!W27 -> 10 | N53: ='Seizoen 2009-2010'!X27 -> 30 | O53: ='Seizoen 2009-2010'!Y27 -> 73 | P53: ='Seizoen 2009-2010'!Z27 -> 3 | Q53: ='Seizoen 2009-2010'!AA27 -> 1 | R53: ='Seizoen 2009-2010'!AB27 -> 7 | S53: ='Seizoen 2009-2010'!AC27 -> 48 | T53: ='Seizoen 2009-2010'!AD27 -> 79
C54: Seizoen 2010-2011 | D54: =G54+F54+E54 -> 21 | E54: ='Seizoen 2010-2011'!O25 -> 6 | F54: ='Seizoen 2010-2011'!P25 -> 1 | G54: ='Seizoen 2010-2011'!Q25 -> 14 | H54: ='Seizoen 2010-2011'!R25 -> 92 | I54: ='Seizoen 2010-2011'!S25 -> 128 | J54: ='Seizoen 2010-2011'!T25 -> -36 | K54: ='Seizoen 2010-2011'!U25 -> 5 | L54: ='Seizoen 2010-2011'!V25 -> 0 | M54: ='Seizoen 2010-2011'!W25 -> 6 | N54: ='Seizoen 2010-2011'!X25 -> 59 | O54: ='Seizoen 2010-2011'!Y25 -> 61 | P54: ='Seizoen 2010-2011'!Z25 -> 1 | Q54: ='Seizoen 2010-2011'!AA25 -> 1 | R54: ='Seizoen 2010-2011'!AB25 -> 8 | S54: ='Seizoen 2010-2011'!AC25 -> 33 | T54: ='Seizoen 2010-2011'!AD25 -> 67
C55: Seizoen 2011-2012 | D55: =G55+F55+E55 -> 26 | E55: ='Seizoen 2011-2012'!O31 -> 10 | F55: ='Seizoen 2011-2012'!P31 -> 2 | G55: ='Seizoen 2011-2012'!Q31 -> 14 | H55: ='Seizoen 2011-2012'!R31 -> 128 | I55: ='Seizoen 2011-2012'!S31 -> 149 | J55: ='Seizoen 2011-2012'!T31 -> -21 | K55: ='Seizoen 2011-2012'!U31 -> 6 | L55: ='Seizoen 2011-2012'!V31 -> 0 | M55: ='Seizoen 2011-2012'!W31 -> 7 | N55: ='Seizoen 2011-2012'!X31 -> 67 | O55: ='Seizoen 2011-2012'!Y31 -> 70 | P55: ='Seizoen 2011-2012'!Z31 -> 4 | Q55: ='Seizoen 2011-2012'!AA31 -> 2 | R55: ='Seizoen 2011-2012'!AB31 -> 7 | S55: ='Seizoen 2011-2012'!AC31 -> 61 | T55: ='Seizoen 2011-2012'!AD31 -> 79
C56: Seizoen 2012-2013 | D56: =E56+F56+G56 -> 19 | E56: ='Seizoen 2012-2013 '!O25 -> 6 | F56: ='Seizoen 2012-2013 '!P25 -> 0 | G56: ='Seizoen 2012-2013 '!Q25 -> 13 | H56: ='Seizoen 2012-2013 '!R25 -> 85 | I56: ='Seizoen 2012-2013 '!S25 -> 107 | J56: ='Seizoen 2012-2013 '!T25 -> -22 | K56: ='Seizoen 2012-2013 '!U25 -> 3 | L56: ='Seizoen 2012-2013 '!V25 -> 0 | M56: ='Seizoen 2012-2013 '!W25 -> 6 | N56: ='Seizoen 2012-2013 '!X25 -> 51 | O56: ='Seizoen 2012-2013 '!Y25 -> 45 | P56: ='Seizoen 2012-2013 '!Z25 -> 3 | Q56: ='Seizoen 2012-2013 '!AA25 -> 0 | R56: ='Seizoen 2012-2013 '!AB25 -> 7 | S56: ='Seizoen 2012-2013 '!AC25 -> 34 | T56: ='Seizoen 2012-2013 '!AD25 -> 62
C57: Seizoen 2013-2014 | D57: =E57+F57+G57 -> 20 | E57: ='Seizoen 2013-2014 '!O24 -> 8 | F57: ='Seizoen 2013-2014 '!P24 -> 2 | G57: ='Seizoen 2013-2014 '!Q24 -> 10 | H57: ='Seizoen 2013-2014 '!R24 -> 84 | I57: ='Seizoen 2013-2014 '!S24 -> 77 | J57: ='Seizoen 2013-2014 '!T24 -> 7 | K57: ='Seizoen 2013-2014 '!U24 -> 3 | L57: ='Seizoen 2013-2014 '!V24 -> 6 | M57: ='Seizoen 2013-2014 '!W24 -> 4 | N57: ='Seizoen 2013-2014 '!X24 -> 30 | O57: ='Seizoen 2013-2014 '!Y24 -> 34 | P57: ='Seizoen 2013-2014 '!Z24 -> 5 | Q57: ='Seizoen 2013-2014 '!AA24 -> 0 | R57: ='Seizoen 2013-2014 '!AB24 -> 6 | S57: ='Seizoen 2013-2014 '!AC24 -> 54 | T57: ='Seizoen 2013-2014 '!AD24 -> 43
C58: Seizoen 2014-2015 | D58: =G58+F58+E58 -> 12 | E58: ='Seizoen 2014-2015'!O28 -> 7 | F58: ='Seizoen 2014-2015'!P28 -> 1 | G58: ='Seizoen 2014-2015'!Q28 -> 4 | H58: ='Seizoen 2014-2015'!R28 -> 41 | I58: ='Seizoen 2014-2015'!S28 -> 48 | J58: ='Seizoen 2014-2015'!T28 -> -7 | K58: ='Seizoen 2014-2015'!U28 -> 2 | L58: ='Seizoen 2014-2015'!V28 -> 1 | M58: ='Seizoen 2014-2015'!W28 -> 2 | N58: ='Seizoen 2014-2015'!X28 -> 17 | O58: ='Seizoen 2014-2015'!Y28 -> 25 | P58: ='Seizoen 2014-2015'!Z28 -> 5 | Q58: ='Seizoen 2014-2015'!AA28 -> 0 | R58: ='Seizoen 2014-2015'!AB28 -> 2 | S58: ='Seizoen 2014-2015'!AC28 -> 24 | T58: ='Seizoen 2014-2015'!AD28 -> 23
C59: Totaal | D59: =SUM(D53:D58) -> 121 | E59: 41 | F59: 8 | G59: 72 | H59: 508 | I59: 661 | J59: -153 | K59: 20 | L59: 8 | M59: 35 | N59: 254 | O59: 308 | P59: 21 | Q59: 4 | R59: 37 | S59: 254 | T59: 353
D61: Gemiddelde | E61: =E$59/$D$59 -> 0.3388429752 | F61: 0.06611570248 | G61: 0.5950413223 | H61: 4.198347107 | I61: 5.462809917 | J61: -1.26446281 | K61: =K$59/($K$59+$L$59+$M$59) -> 0.3174603175 | L61: =L$59/($K$59+$L$59+$M$59) -> 0.126984127 | M61: =M$59/($K$59+$L$59+$M$59) -> 0.5555555556 | N61: =N$59/($K$59+$L$59+$M$59) -> 4.031746032 | O61: =O$59/($K$59+$L$59+$M$59) -> 4.888888889 | P61: =P$59/($P$59+$Q$59+$R$59) -> 0.3387096774 | Q61: =Q$59/($P$59+$Q$59+$R$59) -> 0.06451612903 | R61: =R$59/($P$59+$Q$59+$R$59) -> 0.5967741935 | S61: =S$59/($P$59+$Q$59+$R$59) -> 4.096774194 | T61: =T$59/($P$59+$Q$59+$R$59) -> 5.693548387
C64: Mijlpalen
C66: Eerste Wedstrijd | D66: 17/09/2009 De Cupmaten - Spinpedes B 0-10
C67: Eerste Doelpunt | D67: 23/09/2009 De Waterput - De Cupmaten - 28' Jan Westhof
C68: Eerste Gele kaart | D68: 17/09/2009 De Cupmaten - Spinpedes B - 36' Steven Dom
C69: Eerste Rode Kaart | D69: 21/01/2010 Spinpedes B - De Cupmaten - 45' Bart Van Gils
C70: Eerste Own goal | D70: 16/11/2009 Ministerie - De Cupmaten - 10' Jaan Lenaerts
C71: Eerste Hattrick (echte) | D71: 18/02/2010 De Cupmaten - Wollewei - Steven Dom
C72: Eerste Nul gehouden | D72: 28/03/2013 De Cupmaten - De Bergen B - Jan Daemen
C73: Grootste verlies | D73: 05/09/2012 HVP United - De Cupmaten 4-16
C74: Grootste winst | D74: 15/11/2012 De Cupmaten – Boomerangs B 20-2
C77: Doelpunt 50 | D77: 3/03/2010 Desportivo - De Cupmaten - 32' Hans De Decker
C78: Doelpunt 100 | D78: 25/10/2010 Turnhout 86 - De Cupmaten - 45' Steven Dom
C79: Doelpunt 150 | D79: 28/03/2011 KDS. Turnhout - De Cupmaten - 5' Steven Dom
C80: Doelpunt 200 | D80: 23/11/2011 De Bergen A - De Cupmaten - 43' Vincent Van Dijck
C81: Doelpunt 250 | D81: 23/02/2012 De Cupmaten - Biljart Palace - 26' Steven Dom
C82: Doelpunt 300 | D82: 15/11/2012 De Cupmaten – Boomerangs B - 20' Geert-Jan Daemen
C83: Doelpunt 350 | D83: 28/03/2013 De Cupmaten - De Bergen B - '12 Bart Bloemen
C84: Doelpunt 400 | D84: 28/11/2013 De Cupmaten - Lierseweg (BK) - '44 Davy Vajda Dierckx
C85: Doelpunt 450 | D85: 29/09/2014 Wöbbe B - De Cupmaten - '14 Geert-Jan Daemen
C87: Topscorers
D89: Seizoen 2009-2010
C90: 1 | D90: ='Seizoen 2009-2010'!B52 -> Dom Steven | E90: ='Seizoen 2009-2010'!G52 -> 22
C91: 2 | D91: ='Seizoen 2009-2010'!B53 -> Van Gils Bart | E91: ='Seizoen 2009-2010'!G53 -> 16
C92: 3 | D92: ='Seizoen 2009-2010'!B54 -> De Decker Hans | E92: ='Seizoen 2009-2010'!G54 -> 15
D94: Seizoen 2010-2011
C95: 1 | D95: ='Seizoen 2010-2011'!B54 -> Dom Steven | E95: ='Seizoen 2010-2011'!G54 -> 37
C96: 2 | D96: ='Seizoen 2010-2011'!B55 -> Westhof Jan | E96: ='Seizoen 2010-2011'!G55 -> 10
C97: 3 | D97: ='Seizoen 2010-2011'!B56 -> Van Gils Bart | E97: ='Seizoen 2010-2011'!G56 -> 10
D99: Seizoen 2011-2012
C100: 1 | D100: ='Seizoen 2011-2012'!B55 -> Dom Steven | E100: ='Seizoen 2011-2012'!G55 -> 40
C101: 2 | D101: ='Seizoen 2011-2012'!B56 -> Van Gils Bart | E101: ='Seizoen 2011-2012'!G56 -> 20
C102: 3 | D102: ='Seizoen 2011-2012'!B57 -> Westhof Jan | E102: ='Seizoen 2011-2012'!G57 -> 12
D104: Seizoen 2012-2013
C105: 1 | D105: ='Seizoen 2012-2013 '!B61 -> Dom Steven | E105: ='Seizoen 2012-2013 '!G61 -> 18
C106: 2 | D106: ='Seizoen 2012-2013 '!B62 -> Van Gils Bart | E106: ='Seizoen 2012-2013 '!G62 -> 15
C107: 3 | D107: ='Seizoen 2012-2013 '!B63 -> Westhof Jan | E107: ='Seizoen 2012-2013 '!G63 -> 11
D109: Seizoen 2013-2014
C110: 1 | D110: ='Seizoen 2013-2014 '!B57 -> Dom Steven | E110: ='Seizoen 2013-2014 '!G57 -> 25
C111: 2 | D111: ='Seizoen 2013-2014 '!B58 -> Westhof Jan | E111: ='Seizoen 2013-2014 '!G58 -> 20
C112: 3 | D112: ='Seizoen 2013-2014 '!B59 -> Van Gils Bart | E112: ='Seizoen 2013-2014 '!G59 -> 10
D114: Seizoen 2014-2015
C115: 1 | D115: ='Seizoen 2014-2015'!B57 -> Dom Steven | E115: ='Seizoen 2014-2015'!G57 -> 12
C116: 2 | D116: ='Seizoen 2014-2015'!B58 -> Westhof Jan | E116: ='Seizoen 2014-2015'!G58 -> 8
C117: 3 | D117: ='Seizoen 2014-2015'!B59 -> De Decker Hans | E117: ='Seizoen 2014-2015'!G59 -> 7
D119: All-time
C120: 1 | D120: =C29 -> Dom Steven | E120: 154
C121: 2 | D121: Westhof Jan | E121: 73
C122: 3 | D122: Van Gils Bart | E122: 73
C124: Aanwezigheden
C126: Speler | D126: Aanwezigheden | E126: % Aanwezig | F126: Matchen | G126: % Matchen
B127: =LARGE($B$6:$B$21,ROW(K1)) -> 113.1357143 | C127: =VLOOKUP($B127,$B$6:$J$21,COLUMN(B1),FALSE) -> Dom Steven | D127: =VLOOKUP($B127,$B$6:$J$21,COLUMN(I1),FALSE) -> 115 | E127: =$D127/$D$144 -> 0.9583333333 | F127: =VLOOKUP($B127,$B$6:$K$21,COLUMN(D1),FALSE) -> 110 | G127: =$F127/$F$144 -> 0.9322033898
B128: 109.5444186 | C128: De Decker Hans | D128: 113 | E128: =$D128/$D$144 -> 0.9416666667 | F128: 100 | G128: =$F128/$F$144 -> 0.8474576271
B129: 109.4142466 | C129: Westhof Jan | D129: 112 | E129: 0.9333333333 | F129: 107 | G129: 0.906779661
B130: 89.55 | C130: De Decker Koen | D130: 95 | E130: 0.7916666667 | F130: 90 | G130: 0.7627118644
B131: 87.9630137 | C131: Van Gils Bart | D131: 90 | E131: 0.75 | F131: 83 | G131: 0.7033898305
B132: 86.28181818 | C132: Van Dijck Vincent | D132: 90 | E132: 0.75 | F132: 84 | G132: 0.7118644068
B133: 76.23 | C133: De Decker Guy | D133: 77 | E133: 0.6416666667 | F133: 65 | G133: 0.5508474576
B134: 66.84488372 | C134: Vajda Dierckx Davy | D134: 69 | E134: 0.575 | F134: 63 | G134: 0.5338983051
B135: 52.8875 | C135: Daemen Geert-Jan | D135: 55 | E135: 0.4583333333 | F135: 50 | G135: 0.4237288136
B136: 36.57444444 | C136: Lenaerts Jaan | D136: 37 | E136: 0.3083333333 | F136: 36 | G136: 0.3050847458
B137: 23.76 | C137: Daemen Jan | D137: 24 | E137: 0.2 | F137: 23 | G137: 0.1949152542
B138: 21.09333333 | C138: Bloemen Bart | D138: 24 | E138: 0.2 | F138: 24 | G138: 0.2033898305
B139: 9.9 | C139: Daemen Martijn | D139: 10 | E139: 0.08333333333 | F139: 10 | G139: 0.08474576271
B140: 6.43 | C140: Stymans Gert | D140: 7 | E140: 0.05833333333 | F140: 6 | G140: 0.05084745763
B141: 5.106666667 | C141: Burreddu Efisio | D141: 6 | E141: 0.05 | F141: 5 | G141: 0.04237288136
B142: 3.71 | C142: Broeders Martijn | D142: 4 | E142: 0.03333333333 | F142: 4 | G142: 0.03389830508
D144: =J23 -> 120 | F144: =E46 -> 118
C146: Tegenstanders gemaakte doelpunten
C148: Plaats | D148: Tegenstander | E148: Doelpunten | F148: Wedstrijden | G148: Gem. | H148: For. | I148: W | J148: G | K148: V
C149: 1 | D149: Boomerangs B | E149: 73 | F149: 9 | G149: =E149/F149 -> 8.111111111 | H149: 1 | I149: 7 | J149: 0 | K149: 2
C150: 2 | D150: KDS. Turnhout | E150: 40 | F150: 6 | G150: 6.67 | I150: 5 | J150: 0 | K150: 1
C151: 3 | D151: Supraboys | E151: 26 | F151: 7 | G151: =E151/F151 -> 3.714285714 | I151: 4 | J151: 1 | K151: 2
C152: 4 | D152: De Bergen B | E152: 21 | F152: 2 | G152: 10.5 | I152: 2 | J152: 0 | K152: 0
C153: 5 | D153: Biljart Palace | E153: 18 | F153: 2 | G153: 9.5 | I153: 2 | J153: 0 | K153: 0
C154: 6 | D154: Turnhout 86 | E154: 16 | F154: 4 | G154: 4 | I154: 0 | J154: 0 | K154: 4
C155: 7 | D155: P&V Turnhout | E155: 16 | F155: 4 | G155: 4 | I155: 0 | J155: 2 | K155: 2
C156: 8 | D156: De Waterput | E156: 15 | F156: 4 | G156: 3.75 | I156: 0 | J156: 0 | K156: 4
C157: 9 | D157: Boost | E157: 14 | F157: 3 | G157: 4 | I157: 1 | J157: 0 | K157: 2
C158: 10 | D158: Verschilboys B | E158: 13 | F158: 4 | G158: =E158/F158 -> 3.25 | I158: 1 | J158: 0 | K158: 3
C159: 11 | D159: De Ster | E159: 11 | F159: 2 | G159: 5.5 | I159: 0 | J159: 0 | K159: 2
C160: 12 | D160: Rima Sportif B | E160: 11 | F160: 2 | G160: =E160/F160 -> 5.5 | I160: 1 | J160: 1 | K160: 0
C161: 13 | D161: Vijde Wiel | E161: 10 | F161: 4 | G161: 2.5 | H161: 1 | I161: 0 | J161: 1 | K161: 3
C162: 14 | D162: Roosen | E162: 10 | F162: 3 | G162: =E162/F162 -> 3.333333333 | I162: 3 | J162: 0 | K162: 0
C163: 15 | D163: Ministerie | E163: 9 | F163: 4 | G163: 2.25 | I163: 0 | J163: 0 | K163: 4
C164: 16 | D164: Barza | E164: 9 | F164: 2 | G164: 4.5 | I164: 1 | J164: 0 | K164: 1
C165: 17 | D165: Het Vervolg | E165: 8 | F165: 2 | G165: 4 | I165: 0 | J165: 0 | K165: 2
C166: 18 | D166: Hoek van Portugal | E166: 7 | F166: 2 | G166: 3.5 | I166: 1 | J166: 0 | K166: 1
C167: 19 | D167: Arendonk | E167: 7 | F167: 2 | G167: 3.5 | I167: 0 | J167: 0 | K167: 2
C168: 20 | D168: De Zwaluw | E168: 7 | F168: 1 | G168: 7 | I168: 0 | J168: 0 | K168: 1
C169: 21 | D169: De Kempen | E169: 7 | F169: 1 | G169: 7 | I169: 1 | J169: 0 | K169: 0
C170: 22 | D170: Wollewei | E170: 6 | F170: 2 | G170: 3 | I170: 0 | J170: 1 | K170: 1
C171: 23 | D171: Tugas | E171: 6 | F171: 2 | G171: 3 | I171: 0 | J171: 0 | K171: 2
C172: 24 | D172: AS Fortuna | E172: 9 | F172: 2 | G172: 6 | I172: 2 | J172: 0 | K172: 0
C173: 25 | D173: Dubos Verzekeringen | E173: 5 | F173: 1 | G173: 5 | I173: 1 | J173: 0 | K173: 0
C174: 26 | D174: Lierseweg | E174: 5 | F174: 1 | G174: 5 | I174: 0 | J174: 0 | K174: 1
C175: 27 | D175: Spinpedes B | E175: 5 | F175: 2 | G175: 2.5 | I175: 1 | J175: 0 | K175: 1
C176: 28 | D176: De Sjepap | E176: 10 | F176: 3 | G176: =E176/F176 -> 3.333333333 | I176: 1 | J176: 0 | K176: 2
C177: 29 | D177: The Young Ones | E177: 5 | F177: 2 | G177: 2.5 | I177: 0 | J177: 0 | K177: 2
D178: Unlimited B | E178: 4 | F178: 1 | G178: 4 | I178: 0 | J178: 1 | K178: 0
C179: 30 | D179: White Socks A | E179: 4 | F179: 1 | G179: 4 | I179: 0 | J179: 0 | K179: 1
C180: 31 | D180: De Bergen DS | E180: 4 | F180: 1 | G180: 4 | I180: 0 | J180: 0 | K180: 1
C181: 32 | D181: De Bergen A | E181: 4 | F181: 2 | G181: 2 | I181: 0 | J181: 0 | K181: 2
C182: 33 | D182: HVP United | E182: 4 | F182: 1 | G182: 4 | I182: 0 | J182: 0 | K182: 1
C183: 34 | D183: FC Beton | E183: 3 | F183: 1 | G183: 3 | I183: 1 | J183: 0 | K183: 0
C184: 35 | D184: Wöbbe B | E184: 3 | F184: 1 | G184: 3 | I184: 1 | J184: 0 | K184: 0
C185: 36 | D185: Roma | E185: 3 | F185: 1 | G185: 3 | I185: 0 | J185: 0 | K185: 1
C186: 37 | D186: Youngsters | E186: 3 | F186: 1 | G186: 3 | I186: 0 | J186: 0 | K186: 1
C187: 38 | D187: Het Kafeeke | E187: 3 | F187: 1 | G187: 3 | I187: 0 | J187: 0 | K187: 1
C188: 39 | D188: Jumpaz United | E188: 3 | F188: 2 | G188: 1.5 | I188: 0 | J188: 0 | K188: 2
C189: 40 | D189: Montana | E189: 3 | F189: 2 | G189: 1.5 | I189: 0 | J189: 0 | K189: 2
C190: 41 | D190: Den Toren | E190: 3 | F190: 1 | G190: 3 | I190: 0 | J190: 0 | K190: 1
C191: 42 | D191: Desportivo | E191: 2 | F191: 2 | G191: 1 | I191: 0 | J191: 0 | K191: 2
C192: 43 | D192: Atlaslions A | E192: 2 | F192: 1 | G192: 2 | I192: 0 | J192: 0 | K192: 1
C193: 44 | D193: De Fuik | E193: 2 | F193: 1 | G193: 2 | I193: 0 | J193: 1 | K193: 0
C194: 45 | D194: Giel | E194: 1 | F194: 1 | G194: 1 | I194: 0 | J194: 0 | K194: 1
C195: 46 | D195: De Plekkers | E195: 1 | F195: 1 | G195: 1 | I195: 0 | J195: 0 | K195: 1
C196: 47 | D196: Atlético | E196: 1 | F196: 1 | G196: 1 | I196: 0 | J196: 0 | K196: 1
C197: 48 | D197: De Brouwerij | E197: 1 | F197: 2 | G197: 0.5 | I197: 0 | J197: 0 | K197: 2
C198: 49 | D198: Fettah | E198: 2 | F198: 1 | G198: 2 | H198: 1 | I198: 1 | J198: 0 | K198: 1
D201: Forfait | E201: 15 | F201: 3
D202: Own goals | E202: 11
C205: Afvallers
C206: Speler | D206: % Aanwezig | E206: Afvaller | F206: Seizoen 13-14 | O206: Speler | P206: % Aanwezig | Q206: Afvaller | R206: Seizoen 13-14
C207: =C127 -> Dom Steven | D207: =$J$16/$J$23 -> 0.9583333333 | E207: =$K$16 -> 1 | F207: ='Seizoen 2013-2014 '!$E$47 -> 0 | O207: De Decker Guy | P207: 0.6632653061 | Q207: 2 | R207: 0
C208: =C128 -> De Decker Hans | D208: =$J$15/$J$23 -> 0.9333333333 | E208: =$K$15 -> 3 | F208: ='Seizoen 2013-2014 '!$E$46 -> 1 | O208: Van Dijck Vincent | P208: 0.7653061224 | Q208: 2 | R208: 0
C209: Westhof Jan | D209: =$J$11/$J$23 -> 0.9416666667 | E209: =$K$11 -> 1 | F209: ='Seizoen 2013-2014 '!$E$43 -> 1 | O209: Dom Steven | P209: 0.9489795918 | Q209: 1 | R209: 0
C210: De Decker Koen | D210: =$J$14/$J$23 -> 0.75 | E210: =$K$14 -> 3 | F210: ='Seizoen 2013-2014 '!$E$41 -> 1 | O210: Vajda Dierckx Davy | P210: 0.6979591837 | Q210: 4 | R210: 1
C211: Van Gils Bart | D211: =$J$9/$J$23 -> 0.75 | E211: =$K$9 -> 2 | F211: ='Seizoen 2013-2014 '!$E$45 -> 0 | O211: Daemen Geert-Jan | P211: 0.7321428571 | Q211: 2 | R211: 1
C212: Van Dijck Vincent | D212: =$J$8/$J$23 -> 0.7916666667 | E212: =$K$8 -> 3 | F212: ='Seizoen 2013-2014 '!$E$40 -> 1 | O212: De Decker Koen | P212: 0.7653061224 | Q212: 3 | R212: 1
C213: De Decker Guy | D213: =$J$6/$J$23 -> 0.6416666667 | E213: =$K$6 -> 2 | F213: ='Seizoen 2013-2014 '!$E$39 -> 0 | O213: Bloemen Bart | P213: 0.7741935484 | Q213: 1 | R213: 1
C214: Vajda Dierckx Davy | D214: =($J$10/$J$23)*1.2 -> 0.69 | E214: =$K$10 -> 4 | F214: ='Seizoen 2013-2014 '!$E$42 -> 1 | O214: Van Gils Bart | P214: 0.7755102041 | Q214: 3 | R214: 1
C215: Daemen Geert-Jan | D215: =$J$20/($J$23-42) -> 0.7051282051 | E215: =$K$20 -> 2 | F215: ='Seizoen 2013-2014 '!$E$49 -> 1 | O215: De Decker Hans | P215: 0.9387755102 | Q215: 1 | R215: 1
C216: Bloemen Bart | D216: =$J$19/($J$23-67) -> 0.4528301887 | E216: =$K$19 -> 1 | F216: ='Seizoen 2013-2014 '!$E$48 -> 1 | O216: Westhof Jan | P216: 0.9489795918 | Q216: 3 | R216: 1
C217: Daemen Jan | D217: =$J$17/($J$23-42) -> 0.3076923077 | E217: =$K$17 -> 7 | F217: ='Seizoen 2013-2014 '!$E$44 -> 3 | O217: Daemen Jan | P217: 0.3571428571 | Q217: 7 | R217: 3
C220: Afvallers
C221: Speler | D221: % Aanwezig | E221: Afvaller | F221: Seizoen 13-14
C222: De Decker Guy | D222: 0.6632653061 | E222: 2 | F222: 0
C223: Van Dijck Vincent | D223: 0.7653061224 | E223: 2 | F223: 0
C224: Dom Steven | D224: 0.9489795918 | E224: 1 | F224: 0
C225: Vajda Dierckx Davy | D225: 0.6979591837 | E225: 4 | F225: 1
C226: Daemen Geert-Jan | D226: 0.7321428571 | E226: 2 | F226: 1
C227: De Decker Koen | D227: 0.7653061224 | E227: 3 | F227: 1
C228: Bloemen Bart | D228: 0.7741935484 | E228: 1 | F228: 1
C229: Van Gils Bart | D229: 0.7755102041 | E229: 3 | F229: 1
C230: De Decker Hans | D230: 0.9387755102 | E230: 1 | F230: 1
C231: Westhof Jan | D231: 0.9489795918 | E231: 3 | F231: 1
C232: Daemen Jan | D232: 0.3571428571 | E232: 7 | F232: 3
